Workbook

Sheet 结存
G1: 值
A2: 内部编号 | B2: SKU | C2: 存货名称 | D2: 规格 | E2: 单位 | F2: 存货大类 | G2: 期初数量 | H2: 收入数量 | I2: 发出数量 | J2: 结存(透视表) | K2: 结存(公式) | L2: 结存差异
A3: 1 | B3: 0001010273 | C3: 蓝光-美女与野兽第2季贝儿的心愿1DVD+1BD | D3: 2 | E3: 套 | F3: 调用成品 | H3: 12 | J3: =G3+H3-I3 -> 12 | K3: =VLOOKUP(A:A,明细!D:M,10,0) -> 12 | L3: =J3 - K3 -> 0
A4: 2 | B4: 0001010274 | C4: 蓝光-八恶人1BD+1DVD | D4: 2 | E4: 套 | F4: 调用成品 | H4: 22 | J4: 22 | K4: =VLOOKUP(A:A,明细!D:M,10,0) -> 22 | L4: 0
A5: 22 | B5: 0007050246 | C5: 猫王这是它的方式（旧版)2CD | D5: \ | E5: 套 | F5: CD成品 | H5: 20 | I5: 9 | J5: 11 | K5: =VLOOKUP(A:A,明细!D:M,10,0) -> 11 | L5: 0
A6: 526 | B6: 07010001 | C6: 蓝剧-地球百子第3季 4BD | D6: 4 | E6: 套 | F6: 蓝光电视剧 | G6: 21 | I6: 2 | J6: 19 | K6: =VLOOKUP(A:A,明细!D:M,10,0) -> 19 | L6: 0
A7: 527 | B7: 07010002 | C7: 蓝剧-降世神通：科拉传奇 第2季 神灵2BD | D7: 2 | E7: 套 | F7: 蓝光电视剧 | G7: 99 | J7: 99 | K7: =VLOOKUP(A:A,明细!D:M,10,0) -> 118 | L7: -19
A8: 529 | B8: 0701000235 | C8: 蓝剧传教士 第一季3BD | D8: 3 | E8: 套 | F8: 蓝光电视剧 | H8: 96 | I8: 6 | J8: 90 | K8: =VLOOKUP(A:A,明细!D:M,10,0) -> 90 | L8: 0
A9: 530 | B9: 07010003 | C9: 蓝剧-降世神通：科拉传奇 第3季2BD | D9: 2 | E9: 套 | F9: 蓝光电视剧 | G9: 99 | J9: 99 | K9: =VLOOKUP(A:A,明细!D:M,10,0) -> 118 | L9: -19
A10: 531 | B10: 07010004 | C10: 蓝剧-降世神通：科拉传奇 第4季2BD | D10: 2 | E10: 套 | F10: 蓝光电视剧 | G10: 85 | J10: 85 | K10: =VLOOKUP(A:A,明细!D:M,10,0) -> 104 | L10: -19
A11: 532 | B11: 07010005 | C11: 蓝剧-我是僵尸第2季 4BD | D11: 4 | E11: 套 | F11: 蓝光电视剧 | G11: 61 | I11: 6 | J11: 55 | K11: =VLOOKUP(A:A,明细!D:M,10,0) -> 55 | L11: 0
A12: 533 | B12: 07010006 | C12: 蓝剧-冰血暴第2季 3BD | D12: 3 | E12: 套 | F12: 蓝光电视剧 | G12: 72 | I12: 2 | J12: 70 | K12: =VLOOKUP(A:A,明细!D:M,10,0) -> 89 | L12: -19
A13: 534 | B13: 07010008 | C13: 蓝剧-我是僵尸第2季 4BD | D13: 4 | E13: 套 | F13: 蓝光电视剧 | G13: 61 | J13: 61 | K13: =VLOOKUP(A:A,明细!D:M,10,0) -> 80 | L13: -19
A14: 536 | B14: 07010010 | C14: 蓝剧-黑色孤儿第1季 2BD | D14: 2 | E14: 套 | F14: 蓝光电视剧 | G14: 86 | I14: 1 | J14: 85 | K14: =VLOOKUP(A:A,明细!D:M,10,0) -> 104 | L14: -19
A15: 537 | B15: 07010011 | C15: 蓝剧-黑色孤儿第2季 2BD | D15: 2 | E15: 套 | F15: 蓝光电视剧 | G15: 85 | I15: 6 | J15: 79 | K15: =VLOOKUP(A:A,明细!D:M,10,0) -> 98 | L15: -19
A16: 538 | B16: 07010012 | C16: 蓝剧-地球百子第1季 3BD | D16: 3 | E16: 套 | F16: 蓝光电视剧 | G16: 95 | J16: 95 | K16: =VLOOKUP(A:A,明细!D:M,10,0) -> 95 | L16: 0
A17: 539 | B17: 07010013 | C17: 蓝剧-黑色孤儿第3季 2BD | D17: 2 | E17: 套 | F17: 蓝光电视剧 | G17: 83 | H17: 4 | I17: 1 | J17: 86 | K17: =VLOOKUP(A:A,明细!D:M,10,0) -> 86 | L17: 0
A18: 541 | B18: 07010015 | C18: 蓝剧-黑色孤儿第4季 2BD | D18: 2 | E18: 套 | F18: 蓝光电视剧 | G18: 74 | I18: 11 | J18: 63 | K18: =VLOOKUP(A:A,明细!D:M,10,0) -> 63 | L18: 0
A19: 562 | B19: 0702000026 | C19: 蓝影我们都为比尔着盛装1BD | D19: 1 | E19: 套 | F19: 蓝光电影 | H19: 98 | J19: 98 | K19: =VLOOKUP(A:A,明细!D:M,10,0) -> 98 | L19: 0
A20: 563 | B20: 0702000027 | C20: 蓝影攀登梅鲁峰1BD | D20: 1 | E20: 套 | F20: 蓝光电影 | H20: 2 | I20: 2 | J20: 0 | K20: =VLOOKUP(A:A,明细!D:M,10,0) -> 0 | L20: 0
A21: 568 | B21: 0702000032 | C21: 蓝影年轻气盛1BD | D21: 1 | E21: 套 | F21: 蓝光电影 | H21: 99 | I21: 4 | J21: 95 | K21: =VLOOKUP(A:A,明细!D:M,10,0) -> 95 | L21: 0
A22: 571 | B22: 07020003 | C22: 蓝影-遇见你之前1BD+1DVD | D22: 2 | E22: 套 | F22: 蓝光电影 | G22: 73 | J22: 73 | K22: =VLOOKUP(A:A,明细!D:M,10,0) -> 73 | L22: 0
A23: 572 | B23: 07020004 | C23: 蓝影 -一切都会过去：淘儿唱片的浮与沉 1BD | D23: 1 | E23: 套 | F23: 蓝光电影 | G23: 87 | J23: 87 | K23: =VLOOKUP(A:A,明细!D:M,10,0) -> 87 | L23: 0
A24: 573 | B24: 07020005 | C24: 蓝影-猫王:是这样的:特别版 1BD+1DVD | D24: 2 | E24: 套 | F24: 蓝光电影 | G24: 85 | I24: 16 | J24: 69 | K24: =VLOOKUP(A:A,明细!D:M,10,0) -> 69 | L24: 0
A25: 574 | B25: 07020006 | C25: 蓝影-辛普森一家20周年特辑 2BD | D25: 2 | E25: 套 | F25: 蓝光电影 | G25: 15 | J25: 15 | K25: =VLOOKUP(A:A,明细!D:M,10,0) -> 15 | L25: 0
A26: 576 | B26: 07020008 | C26: 蓝影-三傻大闹宝莱坞1BD | D26: 1 | E26: 套 | F26: 蓝光电影 | G26: 72 | J26: 72 | K26: =VLOOKUP(A:A,明细!D:M,10,0) -> 72 | L26: 0
A27: 577 | B27: 07020009 | C27: 蓝影-盖世枭雄1BD | D27: 1 | E27: 套 | F27: 蓝光电影 | G27: 73 | J27: 73 | K27: =VLOOKUP(A:A,明细!D:M,10,0) -> 73 | L27: 0
A28: 578 | B28: 07020010 | C28: 蓝影-功夫熊猫21BD+2DVD | D28: 3 | E28: 套 | F28: 蓝光电影 | G28: 89 | I28: 8 | J28: 81 | K28: =VLOOKUP(A:A,明细!D:M,10,0) -> 81 | L28: 0
A29: 579 | B29: 07020011 | C29: 蓝影-功夫熊猫3 1BD+1DVD | D29: 2 | E29: 套 | F29: 蓝光电影 | G29: 75 | I29: 8 | J29: 67 | K29: =VLOOKUP(A:A,明细!D:M,10,0) -> 67 | L29: 0
A30: 582 | B30: 07020014 | C30: 蓝影 -银河护卫队 1BD | D30: 1 | E30: 套 | F30: 蓝光电影 | G30: 77 | J30: 77 | K30: =VLOOKUP(A:A,明细!D:M,10,0) -> 77 | L30: 0
A31: 583 | B31: 07020015 | C31: 蓝影-元气囝仔 2BD+2DVD | D31: 4 | E31: 套 | F31: 蓝光电影 | G31: 98 | I31: 4 | J31: 94 | K31: =VLOOKUP(A:A,明细!D:M,10,0) -> 94 | L31: 0
A32: 584 | B32: 07020016 | C32: 蓝影-X战警：金刚狼 6BD | D32: 6 | E32: 套 | F32: 蓝光电影 | H32: 10 | I32: 10 | J32: 0 | K32: =VLOOKUP(A:A,明细!D:M,10,0) -> 0 | L32: 0
A33: 585 | B33: 07020017 | C33: 蓝影-刑事 1BD+1DVD | D33: 2 | E33: 套 | F33: 蓝光电影 | G33: 4 | J33: 4 | K33: =VLOOKUP(A:A,明细!D:M,10,0) -> 4 | L33: 0
A34: 588 | B34: 07020020 | C34: 蓝影-猫王-埃尔维斯之旅 1BD | D34: 1 | E34: 套 | F34: 蓝光电影 | G34: 97 | I34: 1 | J34: 96 | K34: =VLOOKUP(A:A,明细!D:M,10,0) -> 96 | L34: 0
A35: 590 | B35: 07020022 | C35: 蓝影-美国不为人知的历史 1BD | D35: 1 | E35: 套 | F35: 蓝光电影 | G35: 89 | I35: 1 | J35: =G35+H35-I35 -> 88 | K35: =VLOOKUP(A:A,明细!D:M,10,0) -> 88 | L35: =J35 - K35 -> 0
A36: 591 | B36: 07020023 | C36: 蓝影-绿野仙踪1BD | D36: 1 | E36: 套 | F36: 蓝光电影 | G36: 82 | J36: 82 | K36: =VLOOKUP(A:A,明细!D:M,10,0) -> 82 | L36: 0
A37: 594 | B37: 07020026 | C37: 蓝影-耐撕侦探1BD+1DVD | D37: 2 | E37: 套 | F37: 蓝光电影 | H37: 98 | I37: 3 | J37: 95 | K37: =VLOOKUP(A:A,明细!D:M,10,0) -> 95 | L37: 0
A38: 596 | B38: 07020028 | C38: 蓝影-模仿游戏1BD+1DVD | D38: 2 | E38: 套 | F38: 蓝光电影 | G38: 99 | J38: 99 | K38: =VLOOKUP(A:A,明细!D:M,10,0) -> 99 | L38: 0
A39: 598 | B39: 07020030 | C39: 蓝影-金钱怪兽1BD | D39: 1 | E39: 套 | F39: 蓝光电影 | G39: 90 | J39: 90 | K39: =VLOOKUP(A:A,明细!D:M,10,0) -> 90 | L39: 0
A40: 599 | B40: 07020031 | C40: 蓝影-杀死一只知更鸟1BD | D40: 1 | E40: 套 | F40: 蓝光电影 | G40: 79 | I40: 1 | J40: 78 | K40: =VLOOKUP(A:A,明细!D:M,10,0) -> 78 | L40: 0
A41: 604 | B41: 07020036 | C41: 蓝影- 喷火战斗机住在温布利球场 1BD | D41: 1 | E41: 套 | F41: 蓝光电影 | G41: 86 | J41: 86 | K41: =VLOOKUP(A:A,明细!D:M,10,0) -> 86 | L41: 0
A42: 605 | B42: 07020037 | C42: 蓝影-鲁邦三世：卡里奥斯特罗城 1BD | D42: 1 | E42: 套 | F42: 蓝光电影 | G42: 85 | J42: 85 | K42: =VLOOKUP(A:A,明细!D:M,10,0) -> 85 | L42: 0
A43: 606 | B43: 07020038 | C43: 蓝影-钢之炼金术师完整版 6BD | D43: 6 | E43: 套 | F43: 蓝光电影 | G43: 43 | J43: 43 | K43: =VLOOKUP(A:A,明细!D:M,10,0) -> 43 | L43: 0
A44: 607 | B44: 07020039 | C44: 蓝影-钢之炼金术师：兄弟会（上） 4BD | D44: 4 | E44: 套 | F44: 蓝光电影 | G44: 88 | I44: 16 | J44: 72 | K44: =VLOOKUP(A:A,明细!D:M,10,0) -> 72 | L44: 0
A45: 608 | B45: 07020040 | C45: 蓝影-钢之炼金术师：兄弟会（下） 4BD | D45: 4 | E45: 套 | F45: 蓝光电影 | G45: 86 | I45: 9 | J45: 77 | K45: =VLOOKUP(A:A,明细!D:M,10,0) -> 77 | L45: 0
A46: 609 | B46: 07020041 | C46: 蓝影-海贼王剧场版10：强者天下 1BD+1DVD | D46: 2 | E46: 套 | F46: 蓝光电影 | G46: 89 | J46: 89 | K46: =VLOOKUP(A:A,明细!D:M,10,0) -> 89 | L46: 0
A47: 610 | B47: 07020042 | C47: 蓝影-控方证人 1BD | D47: 1 | E47: 套 | F47: 蓝光电影 | G47: 87 | J47: 87 | K47: =VLOOKUP(A:A,明细!D:M,10,0) -> 87 | L47: 0
A48: 611 | B48: 07020043 | C48: 蓝影-狼厅 3BD | D48: 3 | E48: 套 | F48: 蓝光电影 | G48: 75 | I48: 1 | J48: 74 | K48: =VLOOKUP(A:A,明细!D:M,10,0) -> 74 | L48: 0
A49: 613 | B49: 07020045 | C49: 蓝影-李小龙首播集 4BD | D49: 4 | E49: 套 | F49: 蓝光电影 | G49: 65 | J49: 65 | K49: =VLOOKUP(A:A,明细!D:M,10,0) -> 65 | L49: 0
A50: 614 | B50: 07020046 | C50: 蓝影-卡罗尔1BD | D50: 1 | E50: 套 | F50: 蓝光电影 | G50: 84 | J50: 84 | K50: =VLOOKUP(A:A,明细!D:M,10,0) -> 84 | L50: 0
A51: 615 | B51: 07020047 | C51: 蓝影-无人生还 2BD | D51: \ | E51: 套 | F51: 蓝光电影 | G51: 84 | J51: 84 | K51: =VLOOKUP(A:A,明细!D:M,10,0) -> 84 | L51: 0
A52: 621 | B52: 0703000024 | C52: 蓝卡愤怒的小鸟1BD+1DVD | D52: 1BD+1DVD | E52: 套 | F52: 蓝光卡通 | G52: 22 | H52: 732 | I52: 269 | J52: 485 | K52: =VLOOKUP(A:A,明细!D:M,10,0) -> 485 | L52: 0
A53: 624 | B53: 07030001 | C53: 蓝卡-虞美人盛开的山坡 1BD+1DVD | D53: 2 | E53: 套 | F53: 蓝光卡通 | G53: 86 | J53: 86 | K53: =VLOOKUP(A:A,明细!D:M,10,0) -> 86 | L53: 0
A54: 625 | B54: 07030002 | C54: 蓝卡-辉夜姬物语 1BD+2DVD | D54: 3 | E54: 套 | F54: 蓝光卡通 | G54: 84 | J54: 84 | K54: =VLOOKUP(A:A,明细!D:M,10,0) -> 84 | L54: 0
A55: 627 | B55: 07030003 | C55: 蓝卡-海洋之歌1BD+1DVD | D55: 2 | E55: 套 | F55: 蓝光卡通 | G55: 85 | J55: 85 | K55: =VLOOKUP(A:A,明细!D:M,10,0) -> 85 | L55: 0
A56: 628 | B56: 07030004 | C56: 蓝卡-怪物之子 1BD+1DVD | D56: 2 | E56: 套 | F56: 蓝光卡通 | G56: 98 | J56: 98 | K56: =VLOOKUP(A:A,明细!D:M,10,0) -> 98 | L56: 0
A57: 629 | B57: 07030005 | C57: 蓝卡-穿越时空的少女 1BD+2DVD | D57: 3 | E57: 套 | F57: 蓝光卡通 | G57: 77 | J57: 77 | K57: =VLOOKUP(A:A,明细!D:M,10,0) -> 77 | L57: 0
A58: 630 | B58: 07030006 | C58: 蓝卡-非凡的世界 1BD+1DVD | D58: 2 | E58: 套 | F58: 蓝光卡通 | G58: 86 | J58: 86 | K58: =VLOOKUP(A:A,明细!D:M,10,0) -> 86 | L58: 0
A59: 632 | B59: 07030008 | C59: 蓝卡-夏日大作战 1BD+2DVD | D59: 3 | E59: 套 | F59: 蓝光卡通 | G59: 88 | J59: 88 | K59: =VLOOKUP(A:A,明细!D:M,10,0) -> 88 | L59: 0
A60: 633 | B60: 07030009 | C60: 蓝卡-星际牛仔 4BD | D60: 4 | E60: 套 | F60: 蓝光卡通 | G60: 19 | I60: 10 | J60: 9 | K60: =VLOOKUP(A:A,明细!D:M,10,0) -> 9 | L60: 0
A61: 634 | B61: 07030010 | C61: 蓝卡-言叶之庭 1BD | D61: 1 | E61: 套 | F61: 蓝光卡通 | G61: 78 | J61: 78 | K61: =VLOOKUP(A:A,明细!D:M,10,0) -> 78 | L61: 0
A62: 635 | B62: 07030011 | C62: 蓝卡-凉宫春日的消失 1BD+2DVD | D62: \ | E62: 套 | F62: 蓝光卡通 | H62: 99 | I62: 4 | J62: 95 | K62: =VLOOKUP(A:A,明细!D:M,10,0) -> 95 | L62: 0
A63: 636 | B63: 0704000001 | C63: S-内识心理学 | D63: \ | E63: 本 | F63: 书本 | G63: 979 | I63: 323 | J63: 656 | K63: =VLOOKUP(A:A,明细!D:M,10,0) -> 656 | L63: 0
A64: 637 | B64: 0704000002 | C64: S-项目评价 | D64: \ | E64: 本 | F64: 书本 | G64: 45 | H64: 2021 | I64: 189 | J64: 1877 | K64: =VLOOKUP(A:A,明细!D:M,10,0) -> 1877 | L64: 0
A65: 638 | B65: 0704000003 | C65: S-人格理论 | D65: \ | E65: 本 | F65: 书本 | G65: 586 | I65: 63 | J65: 523 | K65: =VLOOKUP(A:A,明细!D:M,10,0) -> 523 | L65: 0
A66: 639 | B66: 0704000004 | C66: S-电器查询 | D66: \ | E66: 本 | F66: 书本 | G66: 258 | H66: 50 | I66: 85 | J66: 223 | K66: =VLOOKUP(A:A,明细!D:M,10,0) -> 223 | L66: 0
A67: 640 | B67: 0704000035 | C67: S-商业：一个不断变化的世界 | D67: \ | E67: 本 | F67: 书本 | G67: 527 | I67: 53 | J67: =G67+H67-I67 -> 474 | K67: =VLOOKUP(A:A,明细!D:M,10,0) -> 474 | L67: =J67 - K67 -> 0
A68: 641 | B68: 0704000036 | C68: S-我们的人民 | D68: \ | E68: 本 | F68: 书本 | G68: 2745 | I68: 60 | J68: 2685 | K68: =VLOOKUP(A:A,明细!D:M,10,0) -> 2685 | L68: 0
A69: 642 | B69: 07040001 | C69: S-恐怖故事（3本一套） | D69: \ | E69: 套 | F69: 书本 | G69: 91 | I69: 56 | J69: 35 | K69: =VLOOKUP(A:A,明细!D:M,10,0) -> 35 | L69: 0
A70: 643 | B70: 07040002 | C70: S-定量技术分析 | D70: \ | E70: 本 | F70: 书本 | G70: 570 | J70: 570 | K70: =VLOOKUP(A:A,明细!D:M,10,0) -> 570 | L70: 0
A71: 644 | B71: 0704000293 | C71: S-环境经济学 | D71: \ | E71: 本 | F71: 书本 | G71: 555 | I71: 136 | J71: 419 | K71: =VLOOKUP(A:A,明细!D:M,10,0) -> 419 | L71: 0
A72: 645 | B72: 07040003 | C72: S-公共演讲的艺术 | D72: \ | E72: 本 | F72: 书本 | G72: 1461 | I72: 58 | J72: 1403 | K72: =VLOOKUP(A:A,明细!D:M,10,0) -> 1403 | L72: 0
A73: 646 | B73: 07040004 | C73: S-媒体伦理 | D73: \ | E73: 本 | F73: 书本 | G73: 619 | J73: 619 | K73: =VLOOKUP(A:A,明细!D:M,10,0) -> 619 | L73: 0
A74: 647 | B74: 07040005 | C74: S-有效的小组讨论 | D74: \ | E74: 本 | F74: 书本 | G74: 382 | J74: 382 | K74: =VLOOKUP(A:A,明细!D:M,10,0) -> 382 | L74: 0
A75: 648 | B75: 07040006 | C75: S-大众传媒法 | D75: \ | E75: 本 | F75: 书本 | G75: 94 | I75: 75 | J75: 19 | K75: =VLOOKUP(A:A,明细!D:M,10,0) -> 19 | L75: 0
A76: 649 | B76: 07040007 | C76: S-行为研究方法 | D76: \ | E76: 本 | F76: 书本 | G76: 4620 | I76: 43 | J76: 4577 | K76: =VLOOKUP(A:A,明细!D:M,10,0) -> 4577 | L76: 0
A77: 650 | B77: 07040008 | C77: S-谈判精要 | D77: \ | E77: 本 | F77: 书本 | G77: 678 | I77: 140 | J77: 538 | K77: =VLOOKUP(A:A,明细!D:M,10,0) -> 538 | L77: 0
A78: 651 | B78: 07040009 | C78: S-合作、协商和团队合作 | D78: \ | E78: 本 | F78: 书本 | G78: 314 | I78: 3 | J78: 311 | K78: =VLOOKUP(A:A,明细!D:M,10,0) -> 311 | L78: 0
A79: 652 | B79: 07040010 | C79: S-管理技能养成 | D79: \ | E79: 本 | F79: 书本 | G79: 424 | I79: 132 | J79: 292 | K79: =VLOOKUP(A:A,明细!D:M,10,0) -> 292 | L79: 0
A80: 653 | B80: 07040011 | C80: S-实现改变 | D80: \ | E80: 本 | F80: 书本 | G80: 985 | J80: 985 | K80: =VLOOKUP(A:A,明细!D:M,10,0) -> 985 | L80: 0
A81: 654 | B81: 07040012 | C81: S-实践研究 | D81: \ | E81: 本 | F81: 书本 | G81: 2002 | I81: 36 | J81: 1966 | K81: =VLOOKUP(A:A,明细!D:M,10,0) -> 1966 | L81: 0
A82: 655 | B82: 07040013 | C82: S-校园法律 | D82: \ | E82: 本 | F82: 书本 | G82: 768 | I82: 70 | J82: 698 | K82: =VLOOKUP(A:A,明细!D:M,10,0) -> 698 | L82: 0
A83: 656 | B83: 07040014 | C83: S-伦理护理 | D83: \ | E83: 本 | F83: 书本 | G83: 966 | I83: 10 | J83: 956 | K83: =VLOOKUP(A:A,明细!D:M,10,0) -> 956 | L83: 0
A84: 657 | B84: 07040015 | C84: S-心理学 | D84: \ | E84: 本 | F84: 书本 | G84: 575 | J84: 575 | K84: =VLOOKUP(A:A,明细!D:M,10,0) -> 575 | L84: 0
A85: 658 | B85: 07040016 | C85: S-四十项心理学的研究 821 | D85: \ | E85: 本 | F85: 书本 | G85: 251 | I85: 250 | J85: 1 | K85: =VLOOKUP(A:A,明细!D:M,10,0) -> 1 | L85: 0
A86: 659 | B86: 07040017 | C86: S-实习手册 | D86: \ | E86: 本 | F86: 书本 | G86: 934 | J86: 934 | K86: =VLOOKUP(A:A,明细!D:M,10,0) -> 934 | L86: 0
A87: 660 | B87: 07040018 | C87: S-明了和优雅风格的教训 | D87: \ | E87: 本 | F87: 书本 | G87: 454 | J87: 454 | K87: =VLOOKUP(A:A,明细!D:M,10,0) -> 454 | L87: 0
A88: 661 | B88: 07040019 | C88: S-美国药疗保健 | D88: \ | E88: 本 | F88: 书本 | G88: 1029 | I88: 54 | J88: 975 | K88: =VLOOKUP(A:A,明细!D:M,10,0) -> 975 | L88: 0
A89: 662 | B89: 07040020 | C89: S-硕士考试指南 | D89: \ | E89: 本 | F89: 书本 | G89: 2144 | I89: 40 | J89: 2104 | K89: =VLOOKUP(A:A,明细!D:M,10,0) -> 2104 | L89: 0
A90: 663 | B90: 07040021 | C90: S-面试技巧 | D90: \ | E90: 本 | F90: 书本 | G90: 615 | I90: 20 | J90: 595 | K90: =VLOOKUP(A:A,明细!D:M,10,0) -> 595 | L90: 0
A91: 664 | B91: 07040022 | C91: S-麦克的学习技巧 | D91: \ | E91: 本 | F91: 书本 | G91: 594 | J91: 594 | K91: =VLOOKUP(A:A,明细!D:M,10,0) -> 594 | L91: 0
A92: 665 | B92: 07040023 | C92: S-医生的护理实践 | D92: \ | E92: 本 | F92: 书本 | G92: 1327 | J92: 1327 | K92: =VLOOKUP(A:A,明细!D:M,10,0) -> 1327 | L92: 0
A93: 666 | B93: 07040024 | C93: S-社会精神 | D93: \ | E93: 本 | F93: 书本 | G93: 606 | J93: 606 | K93: =VLOOKUP(A:A,明细!D:M,10,0) -> 606 | L93: 0
A94: 667 | B94: 07040025 | C94: S-临床评估工作簿 | D94: \ | E94: 本 | F94: 书本 | G94: 2358 | I94: 20 | J94: 2338 | K94: =VLOOKUP(A:A,明细!D:M,10,0) -> 2338 | L94: 0
A95: 668 | B95: 07040026 | C95: S-团体咨询 | D95: \ | E95: 本 | F95: 书本 | G95: 1522 | H95: 1 | I95: 50 | J95: 1473 | K95: =VLOOKUP(A:A,明细!D:M,10,0) -> 1473 | L95: 0
A96: 669 | B96: 07040027 | C96: S-小屁孩日记（9本一套） | D96: \ | E96: 套 | F96: 书本 | G96: 963 | I96: 5 | J96: 958 | K96: =VLOOKUP(A:A,明细!D:M,10,0) -> 958 | L96: 0
A97: 670 | B97: 07040028 | C97: S-上诉辩护 | D97: \ | E97: 本 | F97: 书本 | G97: 703 | J97: 703 | K97: =VLOOKUP(A:A,明细!D:M,10,0) -> 703 | L97: 0
A98: 671 | B98: 07040029 | C98: S-法律研究 | D98: \ | E98: 本 | F98: 书本 | G98: 807 | J98: 807 | K98: =VLOOKUP(A:A,明细!D:M,10,0) -> 807 | L98: 0
A99: 672 | B99: 07040030 | C99: S-法律写作和分析 | D99: \ | E99: 本 | F99: 书本 | G99: 0 | H99: 1012 | I99: 300 | J99: =G99+H99-I99 -> 712 | K99: =VLOOKUP(A:A,明细!D:M,10,0) -> 712 | L99: =J99 - K99 -> 0
A100: 673 | B100: 07040031 | C100: S-电子和计算机考试学习指南 | D100: \ | E100: 本 | F100: 书本 | G100: 719 | J100: 719 | K100: =VLOOKUP(A:A,明细!D:M,10,0) -> 719 | L100: 0
A101: 674 | B101: 07040032 | C101: S-民事诉讼 | D101: \ | E101: 本 | F101: 书本 | G101: 710 | I101: 3 | J101: 707 | K101: =VLOOKUP(A:A,明细!D:M,10,0) -> 707 | L101: 0
A102: 675 | B102: 07040033 | C102: S-机械实践 | D102: \ | E102: 本 | F102: 书本 | G102: 513 | I102: 50 | J102: 463 | K102: =VLOOKUP(A:A,明细!D:M,10,0) -> 463 | L102: 0
A103: 676 | B103: 07040034 | C103: S-程序员考试 | D103: \ | E103: 本 | F103: 书本 | G103: 1422 | I103: 10 | J103: 1412 | K103: =VLOOKUP(A:A,明细!D:M,10,0) -> 1412 | L103: 0
A104: 677 | B104: 07040027-1 | C104: S-小屁孩日记（1/9本一套） | D104: \ | E104: 本 | F104: 书本 | G104: 8 | J104: 8 | K104: =VLOOKUP(A:A,明细!D:M,10,0) -> 8 | L104: 0
A105: 678 | B105: 07040027-2 | C105: S-小屁孩日记（2/9本一套） | D105: \ | E105: 本 | F105: 书本 | G105: 1 | J105: 1 | K105: =VLOOKUP(A:A,明细!D:M,10,0) -> 1 | L105: 0
A106: 679 | B106: 07040027-3 | C106: S-小屁孩日记（3/9本一套） | D106: \ | E106: 本 | F106: 书本 | G106: 11 | J106: 11 | K106: =VLOOKUP(A:A,明细!D:M,10,0) -> 11 | L106: 0
A107: 680 | B107: 07040027-4 | C107: S-小屁孩日记（4/9本一套） | D107: \ | E107: 本 | F107: 书本 | G107: 15 | J107: 15 | K107: =VLOOKUP(A:A,明细!D:M,10,0) -> 15 | L107: 0
A108: 681 | B108: 07040027-5 | C108: S-小屁孩日记（5/9本一套） | D108: \ | E108: 本 | F108: 书本 | G108: 30 | J108: 30 | K108: =VLOOKUP(A:A,明细!D:M,10,0) -> 30 | L108: 0
A109: 682 | B109: 07040027-6 | C109: S-小屁孩日记（6/9本一套） | D109: \ | E109: 本 | F109: 书本 | G109: 570 | J109: 570 | K109: =VLOOKUP(A:A,明细!D:M,10,0) -> 570 | L109: 0
A110: 683 | B110: 07040027-7 | C110: S-小屁孩日记（7/9本一套） | D110: \ | E110: 本 | F110: 书本 | G110: 517 | J110: 517 | K110: =VLOOKUP(A:A,明细!D:M,10,0) -> 517 | L110: 0
A111: 684 | B111: 07040027-8 | C111: S-小屁孩日记（8/9本一套） | D111: \ | E111: 本 | F111: 书本 | G111: 454 | J111: 454 | K111: =VLOOKUP(A:A,明细!D:M,10,0) -> 454 | L111: 0
A112: 685 | B112: 07040027-9 | C112: S-小屁孩日记（9/9本一套） | D112: \ | E112: 本 | F112: 书本 | G112: 508 | J112: 508 | K112: =VLOOKUP(A:A,明细!D:M,10,0) -> 508 | L112: 0
A113: 688 | B113: 9090003 | C113: 蓝光瑞壳和莫蒂第1季1BD | D113: \ | E113: 套 | F113: 蓝光电影 | H113: 1 | I113: 1 | J113: 0 | K113: =VLOOKUP(A:A,明细!D:M,10,0) -> 0 | L113: 0
A114: 689 | B114: 0701000349 | C114: 奥丽芙.基特里奇2BD | D114: \ | E114: 套 | F114: 蓝光电视剧 | H114: 98 | I114: 2 | J114: 96 | K114: =VLOOKUP(A:A,明细!D:M,10,0) -> 96 | L114: 0
A115: 690 | B115: 0703000344 | C115: 瑞奇与叮当 | D115: \ | E115: 套 | F115: 蓝光卡通 | H115: 98 | I115: 2 | J115: 96 | K115: =VLOOKUP(A:A,明细!D:M,10,0) -> 96 | L115: 0
A116: 692 | B116: 0007050305 | C116: 滚石乐队15CD | D116: \ | E116: 套 | F116: CD成品 | H116: 98 | I116: 70 | J116: 28 | K116: =VLOOKUP(A:A,明细!D:M,10,0) -> 28 | L116: 0
A117: 693 | B117: 0702000350 | C117: 星际迷航3：超越星辰 | D117: \ | E117: 套 | F117: 蓝光电影 | H117: 99 | I117: 82 | J117: 17 | K117: =VLOOKUP(A:A,明细!D:M,10,0) -> 17 | L117: 0
A118: 694 | B118: 0701000355 | C118: 贝茨旅馆第四季2BD | D118: \ | E118: 本 | F118: 蓝光电影 | H118: 20 | I118: 20 | J118: 0 | K118: =VLOOKUP(A:A,明细!D:M,10,0) -> 0 | L118: 0
A119: 695 | B119: 0704000366 | C119: 课程指南 | D119: \ | E119: 本 | F119: 书本 | H119: 600 | I119: 40 | J119: 560 | K119: =VLOOKUP(A:A,明细!D:M,10,0) -> 560 | L119: 0
A120: 696 | B120: 0704000368 | C120: 国际业务：全球化的挑战 | D120: \ | E120: 本 | F120: 书本 | H120: 72 | I120: 40 | J120: 32 | K120: =VLOOKUP(A:A,明细!D:M,10,0) -> 32 | L120: 0
A121: (空白) | B121: (空白) | C121: (空白) | D121: (空白) | E121: (空白) | F121: (空白)
A122: 总计 | G122: 43829 | H122: 5462 | I122: 3002

Sheet 000目录
A1: 编号 | B1: 目录
A2: 1 | B2: 结存
A3: 2 | B3: 明细
A4: 3 | B4: 基础资料
A5: 4 | B5: 说明
A6: 5 | B6: 使用公式和函数
A7: 6 | B7: 打印结存

Sheet 明细
A1: 日期 | B1: 单号 | C1: 公司或部门 | D1: 内部编号 | E1: SKU | F1: 存货名称 | G1: 规格 | H1: 单位 | I1: 存货大类 | J1: 收入数量 | K1: 发出数量 | L1: 期初数量 | M1: 结存(公式） | N1: 结存(引用） | O1: 结存(比较） | P1: 备注
D2: 526 | E2: =VLOOKUP($D:$D,基础资料!$A:B,2,0) -> 07010001 | F2: =VLOOKUP($D:$D,基础资料!$A:C,3,0) -> 蓝剧-地球百子第3季 4BD | G2: =VLOOKUP($D:$D,基础资料!$A:D,4,0) -> 4 | H2: =VLOOKUP($D:$D,基础资料!$A:E,5,0) -> 套 | I2: =VLOOKUP($D:$D,基础资料!$A:F,6,0) -> 蓝光电视剧 | J2: =VLOOKUP(H:H,基础资料!E:G,3,0) -> 0 | L2: 21 | M2: =SUMIF($D:$D,D2,$L:$L)+SUMIF($D:$D,D2,$J:$J)-SUMIF($D:$D,D2,$K:$K) -> 19 | N2: =VLOOKUP(D:D,结存!A:J,10,0) -> 19 | O2: =M2 - N2 -> 0
D3: 527 | E3: =VLOOKUP($D:$D,基础资料!$A:B,2,0) -> 07010002 | F3: =VLOOKUP($D:$D,基础资料!$A:C,3,0) -> 蓝剧-降世神通：科拉传奇 第2季 神灵2BD | G3: =VLOOKUP($D:$D,基础资料!$A:D,4,0) -> 2 | H3: =VLOOKUP($D:$D,基础资料!$A:E,5,0) -> 套 | I3: =VLOOKUP($D:$D,基础资料!$A:F,6,0) -> 蓝光电视剧 | J3: =VLOOKUP(I:I,基础资料!F:G,2,0) -> 19 | L3: 99 | M3: =SUMIF($D:$D,D3,$L:$L)+SUMIF($D:$D,D3,$J:$J)-SUMIF($D:$D,D3,$K:$K) -> 118 | N3: =VLOOKUP(D:D,结存!A:J,10,0) -> 99 | O3: =M3 - N3 -> 19
D4: 530 | E4: =VLOOKUP($D:$D,基础资料!$A:B,2,0) -> 07010003 | F4: =VLOOKUP($D:$D,基础资料!$A:C,3,0) -> 蓝剧-降世神通：科拉传奇 第3季2BD | G4: =VLOOKUP($D:$D,基础资料!$A:D,4,0) -> 2 | H4: =VLOOKUP($D:$D,基础资料!$A:E,5,0) -> 套 | I4: =VLOOKUP($D:$D,基础资料!$A:F,6,0) -> 蓝光电视剧 | J4: =VLOOKUP(I:I,基础资料!F:G,2,0) -> 19 | L4: 99 | M4: =SUMIF($D:$D,D4,$L:$L)+SUMIF($D:$D,D4,$J:$J)-SUMIF($D:$D,D4,$K:$K) -> 118 | N4: =VLOOKUP(D:D,结存!A:J,10,0) -> 99 | O4: =M4 - N4 -> 19
D5: 531 | E5: =VLOOKUP($D:$D,基础资料!$A:B,2,0) -> 07010004 | F5: =VLOOKUP($D:$D,基础资料!$A:C,3,0) -> 蓝剧-降世神通：科拉传奇 第4季2BD | G5: =VLOOKUP($D:$D,基础资料!$A:D,4,0) -> 2 | H5: =VLOOKUP($D:$D,基础资料!$A:E,5,0) -> 套 | I5: =VLOOKUP($D:$D,基础资料!$A:F,6,0) -> 蓝光电视剧 | J5: =VLOOKUP(I:I,基础资料!F:G,2,0) -> 19 | L5: 85 | M5: =SUMIF($D:$D,D5,$L:$L)+SUMIF($D:$D,D5,$J:$J)-SUMIF($D:$D,D5,$K:$K) -> 104 | N5: =VLOOKUP(D:D,结存!A:J,10,0) -> 85 | O5: =M5 - N5 -> 19
D6: 533 | E6: =VLOOKUP($D:$D,基础资料!$A:B,2,0) -> 07010006 | F6: =VLOOKUP($D:$D,基础资料!$A:C,3,0) -> 蓝剧-冰血暴第2季 3BD | G6: =VLOOKUP($D:$D,基础资料!$A:D,4,0) -> 3 | H6: =VLOOKUP($D:$D,基础资料!$A:E,5,0) -> 套 | I6: =VLOOKUP($D:$D,基础资料!$A:F,6,0) -> 蓝光电视剧 | J6: =VLOOKUP(I:I,基础资料!F:G,2,0) -> 19 | L6: 72 | M6: =SUMIF($D:$D,D6,$L:$L)+SUMIF($D:$D,D6,$J:$J)-SUMIF($D:$D,D6,$K:$K) -> 89 | N6: =VLOOKUP(D:D,结存!A:J,10,0) -> 70 | O6: =M6 - N6 -> 19
D7: 534 | E7: =VLOOKUP($D:$D,基础资料!$A:B,2,0) -> 07010008 | F7: =VLOOKUP($D:$D,基础资料!$A:C,3,0) -> 蓝剧-我是僵尸第2季 4BD | G7: =VLOOKUP($D:$D,基础资料!$A:D,4,0) -> 4 | H7: =VLOOKUP($D:$D,基础资料!$A:E,5,0) -> 套 | I7: =VLOOKUP($D:$D,基础资料!$A:F,6,0) -> 蓝光电视剧 | J7: =VLOOKUP(I:I,基础资料!F:G,2,0) -> 19 | L7: 61 | M7: =SUMIF($D:$D,D7,$L:$L)+SUMIF($D:$D,D7,$J:$J)-SUMIF($D:$D,D7,$K:$K) -> 80 | N7: =VLOOKUP(D:D,结存!A:J,10,0) -> 61 | O7: =M7 - N7 -> 19
D8: 536 | E8: =VLOOKUP($D:$D,基础资料!$A:B,2,0) -> 07010010 | F8: =VLOOKUP($D:$D,基础资料!$A:C,3,0) -> 蓝剧-黑色孤儿第1季 2BD | G8: =VLOOKUP($D:$D,基础资料!$A:D,4,0) -> 2 | H8: =VLOOKUP($D:$D,基础资料!$A:E,5,0) -> 套 | I8: =VLOOKUP($D:$D,基础资料!$A:F,6,0) -> 蓝光电视剧 | J8: =VLOOKUP(I:I,基础资料!F:G,2,0) -> 19 | L8: 86 | M8: =SUMIF($D:$D,D8,$L:$L)+SUMIF($D:$D,D8,$J:$J)-SUMIF($D:$D,D8,$K:$K) -> 104 | N8: =VLOOKUP(D:D,结存!A:J,10,0) -> 85 | O8: =M8 - N8 -> 19
D9: 537 | E9: =VLOOKUP($D:$D,基础资料!$A:B,2,0) -> 07010011 | F9: =VLOOKUP($D:$D,基础资料!$A:C,3,0) -> 蓝剧-黑色孤儿第2季 2BD | G9: =VLOOKUP($D:$D,基础资料!$A:D,4,0) -> 2 | H9: =VLOOKUP($D:$D,基础资料!$A:E,5,0) -> 套 | I9: =VLOOKUP($D:$D,基础资料!$A:F,6,0) -> 蓝光电视剧 | J9: =VLOOKUP(I:I,基础资料!F:G,2,0) -> 19 | L9: 85 | M9: =SUMIF($D:$D,D9,$L:$L)+SUMIF($D:$D,D9,$J:$J)-SUMIF($D:$D,D9,$K:$K) -> 98 | N9: =VLOOKUP(D:D,结存!A:J,10,0) -> 79 | O9: =M9 - N9 -> 19
D10: 538 | E10: =VLOOKUP($D:$D,基础资料!$A:B,2,0) -> 07010012 | F10: =VLOOKUP($D:$D,基础资料!$A:C,3,0) -> 蓝剧-地球百子第1季 3BD | G10: =VLOOKUP($D:$D,基础资料!$A:D,4,0) -> 3 | H10: =VLOOKUP($D:$D,基础资料!$A:E,5,0) -> 套 | I10: =VLOOKUP($D:$D,基础资料!$A:F,6,0) -> 蓝光电视剧 | L10: 95 | M10: =SUMIF($D:$D,D10,$L:$L)+SUMIF($D:$D,D10,$J:$J)-SUMIF($D:$D,D10,$K:$K) -> 95 | N10: =VLOOKUP(D:D,结存!A:J,10,0) -> 95 | O10: =M10 - N10 -> 0
D11: 539 | E11: =VLOOKUP($D:$D,基础资料!$A:B,2,0) -> 07010013 | F11: =VLOOKUP($D:$D,基础资料!$A:C,3,0) -> 蓝剧-黑色孤儿第3季 2BD | G11: =VLOOKUP($D:$D,基础资料!$A:D,4,0) -> 2 | H11: =VLOOKUP($D:$D,基础资料!$A:E,5,0) -> 套 | I11: =VLOOKUP($D:$D,基础资料!$A:F,6,0) -> 蓝光电视剧 | L11: 83 | M11: =SUMIF($D:$D,D11,$L:$L)+SUMIF($D:$D,D11,$J:$J)-SUMIF($D:$D,D11,$K:$K) -> 86 | N11: =VLOOKUP(D:D,结存!A:J,10,0) -> 86 | O11: =M11 - N11 -> 0
D12: 541 | E12: =VLOOKUP($D:$D,基础资料!$A:B,2,0) -> 07010015 | F12: =VLOOKUP($D:$D,基础资料!$A:C,3,0) -> 蓝剧-黑色孤儿第4季 2BD | G12: =VLOOKUP($D:$D,基础资料!$A:D,4,0) -> 2 | H12: =VLOOKUP($D:$D,基础资料!$A:E,5,0) -> 套 | I12: =VLOOKUP($D:$D,基础资料!$A:F,6,0) -> 蓝光电视剧 | L12: 74 | M12: =SUMIF($D:$D,D12,$L:$L)+SUMIF($D:$D,D12,$J:$J)-SUMIF($D:$D,D12,$K:$K) -> 63 | N12: =VLOOKUP(D:D,结存!A:J,10,0) -> 63 | O12: =M12 - N12 -> 0
D13: 571 | E13: =VLOOKUP($D:$D,基础资料!$A:B,2,0) -> 07020003 | F13: =VLOOKUP($D:$D,基础资料!$A:C,3,0) -> 蓝影-遇见你之前1BD+1DVD | G13: =VLOOKUP($D:$D,基础资料!$A:D,4,0) -> 2 | H13: =VLOOKUP($D:$D,基础资料!$A:E,5,0) -> 套 | I13: =VLOOKUP($D:$D,基础资料!$A:F,6,0) -> 蓝光电影 | L13: 73 | M13: =SUMIF($D:$D,D13,$L:$L)+SUMIF($D:$D,D13,$J:$J)-SUMIF($D:$D,D13,$K:$K) -> 73 | N13: =VLOOKUP(D:D,结存!A:J,10,0) -> 73 | O13: =M13 - N13 -> 0
D14: 572 | E14: =VLOOKUP($D:$D,基础资料!$A:B,2,0) -> 07020004 | F14: =VLOOKUP($D:$D,基础资料!$A:C,3,0) -> 蓝影 -一切都会过去：淘儿唱片的浮与沉 1BD | G14: =VLOOKUP($D:$D,基础资料!$A:D,4,0) -> 1 | H14: =VLOOKUP($D:$D,基础资料!$A:E,5,0) -> 套 | I14: =VLOOKUP($D:$D,基础资料!$A:F,6,0) -> 蓝光电影 | J14: =VLOOKUP($D:$D,基础资料!$A:G,3,0) -> 蓝影 -一切都会过去：淘儿唱片的浮与沉 1BD | L14: 87 | M14: =SUMIF($D:$D,D14,$L:$L)+SUMIF($D:$D,D14,$J:$J)-SUMIF($D:$D,D14,$K:$K) -> 87 | N14: =VLOOKUP(D:D,结存!A:J,10,0) -> 87 | O14: =M14 - N14 -> 0
D15: 573 | E15: =VLOOKUP($D:$D,基础资料!$A:B,2,0) -> 07020005 | F15: =VLOOKUP($D:$D,基础资料!$A:C,3,0) -> 蓝影-猫王:是这样的:特别版 1BD+1DVD | G15: =VLOOKUP($D:$D,基础资料!$A:D,4,0) -> 2 | H15: =VLOOKUP($D:$D,基础资料!$A:E,5,0) -> 套 | I15: =VLOOKUP($D:$D,基础资料!$A:F,6,0) -> 蓝光电影 | L15: 85 | M15: =SUMIF($D:$D,D15,$L:$L)+SUMIF($D:$D,D15,$J:$J)-SUMIF($D:$D,D15,$K:$K) -> 69 | N15: =VLOOKUP(D:D,结存!A:J,10,0) -> 69 | O15: =M15 - N15 -> 0
D16: 574 | E16: =VLOOKUP($D:$D,基础资料!$A:B,2,0) -> 07020006 | F16: =VLOOKUP($D:$D,基础资料!$A:C,3,0) -> 蓝影-辛普森一家20周年特辑 2BD | G16: =VLOOKUP($D:$D,基础资料!$A:D,4,0) -> 2 | H16: =VLOOKUP($D:$D,基础资料!$A:E,5,0) -> 套 | I16: =VLOOKUP($D:$D,基础资料!$A:F,6,0) -> 蓝光电影 | L16: 15 | M16: =SUMIF($D:$D,D16,$L:$L)+SUMIF($D:$D,D16,$J:$J)-SUMIF($D:$D,D16,$K:$K) -> 15 | N16: =VLOOKUP(D:D,结存!A:J,10,0) -> 15 | O16: =M16 - N16 -> 0
D17: 576 | E17: =VLOOKUP($D:$D,基础资料!$A:B,2,0) -> 07020008 | F17: =VLOOKUP($D:$D,基础资料!$A:C,3,0) -> 蓝影-三傻大闹宝莱坞1BD | G17: =VLOOKUP($D:$D,基础资料!$A:D,4,0) -> 1 | H17: =VLOOKUP($D:$D,基础资料!$A:E,5,0) -> 套 | I17: =VLOOKUP($D:$D,基础资料!$A:F,6,0) -> 蓝光电影 | L17: 72 | M17: =SUMIF($D:$D,D17,$L:$L)+SUMIF($D:$D,D17,$J:$J)-SUMIF($D:$D,D17,$K:$K) -> 72 | N17: =VLOOKUP(D:D,结存!A:J,10,0) -> 72 | O17: =M17 - N17 -> 0
D18: 577 | E18: =VLOOKUP($D:$D,基础资料!$A:B,2,0) -> 07020009 | F18: =VLOOKUP($D:$D,基础资料!$A:C,3,0) -> 蓝影-盖世枭雄1BD | G18: =VLOOKUP($D:$D,基础资料!$A:D,4,0) -> 1 | H18: =VLOOKUP($D:$D,基础资料!$A:E,5,0) -> 套 | I18: =VLOOKUP($D:$D,基础资料!$A:F,6,0) -> 蓝光电影 | L18: 73 | M18: =SUMIF($D:$D,D18,$L:$L)+SUMIF($D:$D,D18,$J:$J)-SUMIF($D:$D,D18,$K:$K) -> 73 | N18: =VLOOKUP(D:D,结存!A:J,10,0) -> 73 | O18: =M18 - N18 -> 0
D19: 578 | E19: =VLOOKUP($D:$D,基础资料!$A:B,2,0) -> 07020010 | F19: =VLOOKUP($D:$D,基础资料!$A:C,3,0) -> 蓝影-功夫熊猫21BD+2DVD | G19: =VLOOKUP($D:$D,基础资料!$A:D,4,0) -> 3 | H19: =VLOOKUP($D:$D,基础资料!$A:E,5,0) -> 套 | I19: =VLOOKUP($D:$D,基础资料!$A:F,6,0) -> 蓝光电影 | L19: 89 | M19: =SUMIF($D:$D,D19,$L:$L)+SUMIF($D:$D,D19,$J:$J)-SUMIF($D:$D,D19,$K:$K) -> 81 | N19: =VLOOKUP(D:D,结存!A:J,10,0) -> 81 | O19: =M19 - N19 -> 0
D20: 579 | E20: =VLOOKUP($D:$D,基础资料!$A:B,2,0) -> 07020011 | F20: =VLOOKUP($D:$D,基础资料!$A:C,3,0) -> 蓝影-功夫熊猫3 1BD+1DVD | G20: =VLOOKUP($D:$D,基础资料!$A:D,4,0) -> 2 | H20: =VLOOKUP($D:$D,基础资料!$A:E,5,0) -> 套 | I20: =VLOOKUP($D:$D,基础资料!$A:F,6,0) -> 蓝光电影 | L20: 75 | M20: =SUMIF($D:$D,D20,$L:$L)+SUMIF($D:$D,D20,$J:$J)-SUMIF($D:$D,D20,$K:$K) -> 67 | N20: =VLOOKUP(D:D,结存!A:J,10,0) -> 67 | O20: =M20 - N20 -> 0
D21: 582 | E21: =VLOOKUP($D:$D,基础资料!$A:B,2,0) -> 07020014 | F21: =VLOOKUP($D:$D,基础资料!$A:C,3,0) -> 蓝影 -银河护卫队 1BD | G21: =VLOOKUP($D:$D,基础资料!$A:D,4,0) -> 1 | H21: =VLOOKUP($D:$D,基础资料!$A:E,5,0) -> 套 | I21: =VLOOKUP($D:$D,基础资料!$A:F,6,0) -> 蓝光电影 | L21: 77 | M21: =SUMIF($D:$D,D21,$L:$L)+SUMIF($D:$D,D21,$J:$J)-SUMIF($D:$D,D21,$K:$K) -> 77 | N21: =VLOOKUP(D:D,结存!A:J,10,0) -> 77 | O21: =M21 - N21 -> 0
D22: 583 | E22: =VLOOKUP($D:$D,基础资料!$A:B,2,0) -> 07020015 | F22: =VLOOKUP($D:$D,基础资料!$A:C,3,0) -> 蓝影-元气囝仔 2BD+2DVD | G22: =VLOOKUP($D:$D,基础资料!$A:D,4,0) -> 4 | H22: =VLOOKUP($D:$D,基础资料!$A:E,5,0) -> 套 | I22: =VLOOKUP($D:$D,基础资料!$A:F,6,0) -> 蓝光电影 | L22: 98 | M22: =SUMIF($D:$D,D22,$L:$L)+SUMIF($D:$D,D22,$J:$J)-SUMIF($D:$D,D22,$K:$K) -> 94 | N22: =VLOOKUP(D:D,结存!A:J,10,0) -> 94 | O22: =M22 - N22 -> 0
D23: 585 | E23: =VLOOKUP($D:$D,基础资料!$A:B,2,0) -> 07020017 | F23: =VLOOKUP($D:$D,基础资料!$A:C,3,0) -> 蓝影-刑事 1BD+1DVD | G23: =VLOOKUP($D:$D,基础资料!$A:D,4,0) -> 2 | H23: =VLOOKUP($D:$D,基础资料!$A:E,5,0) -> 套 | I23: =VLOOKUP($D:$D,基础资料!$A:F,6,0) -> 蓝光电影 | L23: 4 | M23: =SUMIF($D:$D,D23,$L:$L)+SUMIF($D:$D,D23,$J:$J)-SUMIF($D:$D,D23,$K:$K) -> 4 | N23: =VLOOKUP(D:D,结存!A:J,10,0) -> 4 | O23: =M23 - N23 -> 0
D24: 588 | E24: =VLOOKUP($D:$D,基础资料!$A:B,2,0) -> 07020020 | F24: =VLOOKUP($D:$D,基础资料!$A:C,3,0) -> 蓝影-猫王-埃尔维斯之旅 1BD | G24: =VLOOKUP($D:$D,基础资料!$A:D,4,0) -> 1 | H24: =VLOOKUP($D:$D,基础资料!$A:E,5,0) -> 套 | I24: =VLOOKUP($D:$D,基础资料!$A:F,6,0) -> 蓝光电影 | L24: 97 | M24: =SUMIF($D:$D,D24,$L:$L)+SUMIF($D:$D,D24,$J:$J)-SUMIF($D:$D,D24,$K:$K) -> 96 | N24: =VLOOKUP(D:D,结存!A:J,10,0) -> 96 | O24: =M24 - N24 -> 0
D25: 590 | E25: =VLOOKUP($D:$D,基础资料!$A:B,2,0) -> 07020022 | F25: =VLOOKUP($D:$D,基础资料!$A:C,3,0) -> 蓝影-美国不为人知的历史 1BD | G25: =VLOOKUP($D:$D,基础资料!$A:D,4,0) -> 1 | H25: =VLOOKUP($D:$D,基础资料!$A:E,5,0) -> 套 | I25: =VLOOKUP($D:$D,基础资料!$A:F,6,0) -> 蓝光电影 | L25: 89 | M25: =SUMIF($D:$D,D25,$L:$L)+SUMIF($D:$D,D25,$J:$J)-SUMIF($D:$D,D25,$K:$K) -> 88 | N25: =VLOOKUP(D:D,结存!A:J,10,0) -> 88 | O25: =M25 - N25 -> 0
D26: 591 | E26: =VLOOKUP($D:$D,基础资料!$A:B,2,0) -> 07020023 | F26: =VLOOKUP($D:$D,基础资料!$A:C,3,0) -> 蓝影-绿野仙踪1BD | G26: =VLOOKUP($D:$D,基础资料!$A:D,4,0) -> 1 | H26: =VLOOKUP($D:$D,基础资料!$A:E,5,0) -> 套 | I26: =VLOOKUP($D:$D,基础资料!$A:F,6,0) -> 蓝光电影 | L26: 82 | M26: =SUMIF($D:$D,D26,$L:$L)+SUMIF($D:$D,D26,$J:$J)-SUMIF($D:$D,D26,$K:$K) -> 82 | N26: =VLOOKUP(D:D,结存!A:J,10,0) -> 82 | O26: =M26 - N26 -> 0
D27: 596 | E27: =VLOOKUP($D:$D,基础资料!$A:B,2,0) -> 07020028 | F27: =VLOOKUP($D:$D,基础资料!$A:C,3,0) -> 蓝影-模仿游戏1BD+1DVD | G27: =VLOOKUP($D:$D,基础资料!$A:D,4,0) -> 2 | H27: =VLOOKUP($D:$D,基础资料!$A:E,5,0) -> 套 | I27: =VLOOKUP($D:$D,基础资料!$A:F,6,0) -> 蓝光电影 | L27: 99 | M27: =SUMIF($D:$D,D27,$L:$L)+SUMIF($D:$D,D27,$J:$J)-SUMIF($D:$D,D27,$K:$K) -> 99 | N27: =VLOOKUP(D:D,结存!A:J,10,0) -> 99 | O27: =M27 - N27 -> 0
D28: 598 | E28: =VLOOKUP($D:$D,基础资料!$A:B,2,0) -> 07020030 | F28: =VLOOKUP($D:$D,基础资料!$A:C,3,0) -> 蓝影-金钱怪兽1BD | G28: =VLOOKUP($D:$D,基础资料!$A:D,4,0) -> 1 | H28: =VLOOKUP($D:$D,基础资料!$A:E,5,0) -> 套 | I28: =VLOOKUP($D:$D,基础资料!$A:F,6,0) -> 蓝光电影 | L28: 90 | M28: =SUMIF($D:$D,D28,$L:$L)+SUMIF($D:$D,D28,$J:$J)-SUMIF($D:$D,D28,$K:$K) -> 90 | N28: =VLOOKUP(D:D,结存!A:J,10,0) -> 90 | O28: =M28 - N28 -> 0
D29: 599 | E29: =VLOOKUP($D:$D,基础资料!$A:B,2,0) -> 07020031 | F29: =VLOOKUP($D:$D,基础资料!$A:C,3,0) -> 蓝影-杀死一只知更鸟1BD | G29: =VLOOKUP($D:$D,基础资料!$A:D,4,0) -> 1 | H29: =VLOOKUP($D:$D,基础资料!$A:E,5,0) -> 套 | I29: =VLOOKUP($D:$D,基础资料!$A:F,6,0) -> 蓝光电影 | L29: 79 | M29: =SUMIF($D:$D,D29,$L:$L)+SUMIF($D:$D,D29,$J:$J)-SUMIF($D:$D,D29,$K:$K) -> 78 | N29: =VLOOKUP(D:D,结存!A:J,10,0) -> 78 | O29: =M29 - N29 -> 0
D30: 604 | E30: =VLOOKUP($D:$D,基础资料!$A:B,2,0) -> 07020036 | F30: =VLOOKUP($D:$D,基础资料!$A:C,3,0) -> 蓝影- 喷火战斗机住在温布利球场 1BD | G30: =VLOOKUP($D:$D,基础资料!$A:D,4,0) -> 1 | H30: =VLOOKUP($D:$D,基础资料!$A:E,5,0) -> 套 | I30: =VLOOKUP($D:$D,基础资料!$A:F,6,0) -> 蓝光电影 | L30: 86 | M30: =SUMIF($D:$D,D30,$L:$L)+SUMIF($D:$D,D30,$J:$J)-SUMIF($D:$D,D30,$K:$K) -> 86 | N30: =VLOOKUP(D:D,结存!A:J,10,0) -> 86 | O30: =M30 - N30 -> 0
D31: 605 | E31: =VLOOKUP($D:$D,基础资料!$A:B,2,0) -> 07020037 | F31: =VLOOKUP($D:$D,基础资料!$A:C,3,0) -> 蓝影-鲁邦三世：卡里奥斯特罗城 1BD | G31: =VLOOKUP($D:$D,基础资料!$A:D,4,0) -> 1 | H31: =VLOOKUP($D:$D,基础资料!$A:E,5,0) -> 套 | I31: =VLOOKUP($D:$D,基础资料!$A:F,6,0) -> 蓝光电影 | L31: 85 | M31: =SUMIF($D:$D,D31,$L:$L)+SUMIF($D:$D,D31,$J:$J)-SUMIF($D:$D,D31,$K:$K) -> 85 | N31: =VLOOKUP(D:D,结存!A:J,10,0) -> 85 | O31: =M31 - N31 -> 0
D32: 606 | E32: =VLOOKUP($D:$D,基础资料!$A:B,2,0) -> 07020038 | F32: =VLOOKUP($D:$D,基础资料!$A:C,3,0) -> 蓝影-钢之炼金术师完整版 6BD | G32: =VLOOKUP($D:$D,基础资料!$A:D,4,0) -> 6 | H32: =VLOOKUP($D:$D,基础资料!$A:E,5,0) -> 套 | I32: =VLOOKUP($D:$D,基础资料!$A:F,6,0) -> 蓝光电影 | L32: 43 | M32: =SUMIF($D:$D,D32,$L:$L)+SUMIF($D:$D,D32,$J:$J)-SUMIF($D:$D,D32,$K:$K) -> 43 | N32: =VLOOKUP(D:D,结存!A:J,10,0) -> 43 | O32: =M32 - N32 -> 0
D33: 607 | E33: =VLOOKUP($D:$D,基础资料!$A:B,2,0) -> 07020039 | F33: =VLOOKUP($D:$D,基础资料!$A:C,3,0) -> 蓝影-钢之炼金术师：兄弟会（上） 4BD | G33: =VLOOKUP($D:$D,基础资料!$A:D,4,0) -> 4 | H33: =VLOOKUP($D:$D,基础资料!$A:E,5,0) -> 套 | I33: =VLOOKUP($D:$D,基础资料!$A:F,6,0) -> 蓝光电影 | L33: 88 | M33: =SUMIF($D:$D,D33,$L:$L)+SUMIF($D:$D,D33,$J:$J)-SUMIF($D:$D,D33,$K:$K) -> 72 | N33: =VLOOKUP(D:D,结存!A:J,10,0) -> 72 | O33: =M33 - N33 -> 0
D34: 608 | E34: =VLOOKUP($D:$D,基础资料!$A:B,2,0) -> 07020040 | F34: =VLOOKUP($D:$D,基础资料!$A:C,3,0) -> 蓝影-钢之炼金术师：兄弟会（下） 4BD | G34: =VLOOKUP($D:$D,基础资料!$A:D,4,0) -> 4 | H34: =VLOOKUP($D:$D,基础资料!$A:E,5,0) -> 套 | I34: =VLOOKUP($D:$D,基础资料!$A:F,6,0) -> 蓝光电影 | L34: 86 | M34: =SUMIF($D:$D,D34,$L:$L)+SUMIF($D:$D,D34,$J:$J)-SUMIF($D:$D,D34,$K:$K) -> 77 | N34: =VLOOKUP(D:D,结存!A:J,10,0) -> 77 | O34: =M34 - N34 -> 0
D35: 609 | E35: =VLOOKUP($D:$D,基础资料!$A:B,2,0) -> 07020041 | F35: =VLOOKUP($D:$D,基础资料!$A:C,3,0) -> 蓝影-海贼王剧场版10：强者天下 1BD+1DVD | G35: =VLOOKUP($D:$D,基础资料!$A:D,4,0) -> 2 | H35: =VLOOKUP($D:$D,基础资料!$A:E,5,0) -> 套 | I35: =VLOOKUP($D:$D,基础资料!$A:F,6,0) -> 蓝光电影 | L35: 89 | M35: =SUMIF($D:$D,D35,$L:$L)+SUMIF($D:$D,D35,$J:$J)-SUMIF($D:$D,D35,$K:$K) -> 89 | N35: =VLOOKUP(D:D,结存!A:J,10,0) -> 89 | O35: =M35 - N35 -> 0
D36: 610 | E36: =VLOOKUP($D:$D,基础资料!$A:B,2,0) -> 07020042 | F36: =VLOOKUP($D:$D,基础资料!$A:C,3,0) -> 蓝影-控方证人 1BD | G36: =VLOOKUP($D:$D,基础资料!$A:D,4,0) -> 1 | H36: =VLOOKUP($D:$D,基础资料!$A:E,5,0) -> 套 | I36: =VLOOKUP($D:$D,基础资料!$A:F,6,0) -> 蓝光电影 | L36: 87 | M36: =SUMIF($D:$D,D36,$L:$L)+SUMIF($D:$D,D36,$J:$J)-SUMIF($D:$D,D36,$K:$K) -> 87 | N36: =VLOOKUP(D:D,结存!A:J,10,0) -> 87 | O36: =M36 - N36 -> 0
D37: 611 | E37: =VLOOKUP($D:$D,基础资料!$A:B,2,0) -> 07020043 | F37: =VLOOKUP($D:$D,基础资料!$A:C,3,0) -> 蓝影-狼厅 3BD | G37: =VLOOKUP($D:$D,基础资料!$A:D,4,0) -> 3 | H37: =VLOOKUP($D:$D,基础资料!$A:E,5,0) -> 套 | I37: =VLOOKUP($D:$D,基础资料!$A:F,6,0) -> 蓝光电影 | L37: 75 | M37: =SUMIF($D:$D,D37,$L:$L)+SUMIF($D:$D,D37,$J:$J)-SUMIF($D:$D,D37,$K:$K) -> 74 | N37: =VLOOKUP(D:D,结存!A:J,10,0) -> 74 | O37: =M37 - N37 -> 0
D38: 613 | E38: =VLOOKUP($D:$D,基础资料!$A:B,2,0) -> 07020045 | F38: =VLOOKUP($D:$D,基础资料!$A:C,3,0) -> 蓝影-李小龙首播集 4BD | G38: =VLOOKUP($D:$D,基础资料!$A:D,4,0) -> 4 | H38: =VLOOKUP($D:$D,基础资料!$A:E,5,0) -> 套 | I38: =VLOOKUP($D:$D,基础资料!$A:F,6,0) -> 蓝光电影 | L38: 65 | M38: =SUMIF($D:$D,D38,$L:$L)+SUMIF($D:$D,D38,$J:$J)-SUMIF($D:$D,D38,$K:$K) -> 65 | N38: =VLOOKUP(D:D,结存!A:J,10,0) -> 65 | O38: =M38 - N38 -> 0
D39: 614 | E39: =VLOOKUP($D:$D,基础资料!$A:B,2,0) -> 07020046 | F39: =VLOOKUP($D:$D,基础资料!$A:C,3,0) -> 蓝影-卡罗尔1BD | G39: =VLOOKUP($D:$D,基础资料!$A:D,4,0) -> 1 | H39: =VLOOKUP($D:$D,基础资料!$A:E,5,0) -> 套 | I39: =VLOOKUP($D:$D,基础资料!$A:F,6,0) -> 蓝光电影 | L39: 84 | M39: =SUMIF($D:$D,D39,$L:$L)+SUMIF($D:$D,D39,$J:$J)-SUMIF($D:$D,D39,$K:$K) -> 84 | N39: =VLOOKUP(D:D,结存!A:J,10,0) -> 84 | O39: =M39 - N39 -> 0
D40: 615 | E40: =VLOOKUP($D:$D,基础资料!$A:B,2,0) -> 07020047 | F40: =VLOOKUP($D:$D,基础资料!$A:C,3,0) -> 蓝影-无人生还 2BD | G40: =VLOOKUP($D:$D,基础资料!$A:D,4,0) -> \ | H40: =VLOOKUP($D:$D,基础资料!$A:E,5,0) -> 套 | I40: =VLOOKUP($D:$D,基础资料!$A:F,6,0) -> 蓝光电影 | L40: 84 | M40: =SUMIF($D:$D,D40,$L:$L)+SUMIF($D:$D,D40,$J:$J)-SUMIF($D:$D,D40,$K:$K) -> 84 | N40: =VLOOKUP(D:D,结存!A:J,10,0) -> 84 | O40: =M40 - N40 -> 0
D41: 624 | E41: =VLOOKUP($D:$D,基础资料!$A:B,2,0) -> 07030001 | F41: =VLOOKUP($D:$D,基础资料!$A:C,3,0) -> 蓝卡-虞美人盛开的山坡 1BD+1DVD | G41: =VLOOKUP($D:$D,基础资料!$A:D,4,0) -> 2 | H41: =VLOOKUP($D:$D,基础资料!$A:E,5,0) -> 套 | I41: =VLOOKUP($D:$D,基础资料!$A:F,6,0) -> 蓝光卡通 | L41: 86 | M41: =SUMIF($D:$D,D41,$L:$L)+SUMIF($D:$D,D41,$J:$J)-SUMIF($D:$D,D41,$K:$K) -> 86 | N41: =VLOOKUP(D:D,结存!A:J,10,0) -> 86 | O41: =M41 - N41 -> 0
D42: 625 | E42: =VLOOKUP($D:$D,基础资料!$A:B,2,0) -> 07030002 | F42: =VLOOKUP($D:$D,基础资料!$A:C,3,0) -> 蓝卡-辉夜姬物语 1BD+2DVD | G42: =VLOOKUP($D:$D,基础资料!$A:D,4,0) -> 3 | H42: =VLOOKUP($D:$D,基础资料!$A:E,5,0) -> 套 | I42: =VLOOKUP($D:$D,基础资料!$A:F,6,0) -> 蓝光卡通 | L42: 84 | M42: =SUMIF($D:$D,D42,$L:$L)+SUMIF($D:$D,D42,$J:$J)-SUMIF($D:$D,D42,$K:$K) -> 84 | N42: =VLOOKUP(D:D,结存!A:J,10,0) -> 84 | O42: =M42 - N42 -> 0
D43: 627 | E43: =VLOOKUP($D:$D,基础资料!$A:B,2,0) -> 07030003 | F43: =VLOOKUP($D:$D,基础资料!$A:C,3,0) -> 蓝卡-海洋之歌1BD+1DVD | G43: =VLOOKUP($D:$D,基础资料!$A:D,4,0) -> 2 | H43: =VLOOKUP($D:$D,基础资料!$A:E,5,0) -> 套 | I43: =VLOOKUP($D:$D,基础资料!$A:F,6,0) -> 蓝光卡通 | L43: 85 | M43: =SUMIF($D:$D,D43,$L:$L)+SUMIF($D:$D,D43,$J:$J)-SUMIF($D:$D,D43,$K:$K) -> 85 | N43: =VLOOKUP(D:D,结存!A:J,10,0) -> 85 | O43: =M43 - N43 -> 0
D44: 628 | E44: =VLOOKUP($D:$D,基础资料!$A:B,2,0) -> 07030004 | F44: =VLOOKUP($D:$D,基础资料!$A:C,3,0) -> 蓝卡-怪物之子 1BD+1DVD | G44: =VLOOKUP($D:$D,基础资料!$A:D,4,0) -> 2 | H44: =VLOOKUP($D:$D,基础资料!$A:E,5,0) -> 套 | I44: =VLOOKUP($D:$D,基础资料!$A:F,6,0) -> 蓝光卡通 | L44: 98 | M44: =SUMIF($D:$D,D44,$L:$L)+SUMIF($D:$D,D44,$J:$J)-SUMIF($D:$D,D44,$K:$K) -> 98 | N44: =VLOOKUP(D:D,结存!A:J,10,0) -> 98 | O44: =M44 - N44 -> 0
D45: 630 | E45: =VLOOKUP($D:$D,基础资料!$A:B,2,0) -> 07030006 | F45: =VLOOKUP($D:$D,基础资料!$A:C,3,0) -> 蓝卡-非凡的世界 1BD+1DVD | G45: =VLOOKUP($D:$D,基础资料!$A:D,4,0) -> 2 | H45: =VLOOKUP($D:$D,基础资料!$A:E,5,0) -> 套 | I45: =VLOOKUP($D:$D,基础资料!$A:F,6,0) -> 蓝光卡通 | L45: 86 | M45: =SUMIF($D:$D,D45,$L:$L)+SUMIF($D:$D,D45,$J:$J)-SUMIF($D:$D,D45,$K:$K) -> 86 | N45: =VLOOKUP(D:D,结存!A:J,10,0) -> 86 | O45: =M45 - N45 -> 0
D46: 632 | E46: =VLOOKUP($D:$D,基础资料!$A:B,2,0) -> 07030008 | F46: =VLOOKUP($D:$D,基础资料!$A:C,3,0) -> 蓝卡-夏日大作战 1BD+2DVD | G46: =VLOOKUP($D:$D,基础资料!$A:D,4,0) -> 3 | H46: =VLOOKUP($D:$D,基础资料!$A:E,5,0) -> 套 | I46: =VLOOKUP($D:$D,基础资料!$A:F,6,0) -> 蓝光卡通 | L46: 88 | M46: =SUMIF($D:$D,D46,$L:$L)+SUMIF($D:$D,D46,$J:$J)-SUMIF($D:$D,D46,$K:$K) -> 88 | N46: =VLOOKUP(D:D,结存!A:J,10,0) -> 88 | O46: =M46 - N46 -> 0
D47: 633 | E47: =VLOOKUP($D:$D,基础资料!$A:B,2,0) -> 07030009 | F47: =VLOOKUP($D:$D,基础资料!$A:C,3,0) -> 蓝卡-星际牛仔 4BD | G47: =VLOOKUP($D:$D,基础资料!$A:D,4,0) -> 4 | H47: =VLOOKUP($D:$D,基础资料!$A:E,5,0) -> 套 | I47: =VLOOKUP($D:$D,基础资料!$A:F,6,0) -> 蓝光卡通 | L47: 19 | M47: =SUMIF($D:$D,D47,$L:$L)+SUMIF($D:$D,D47,$J:$J)-SUMIF($D:$D,D47,$K:$K) -> 9 | N47: =VLOOKUP(D:D,结存!A:J,10,0) -> 9 | O47: =M47 - N47 -> 0
D48: 634 | E48: =VLOOKUP($D:$D,基础资料!$A:B,2,0) -> 07030010 | F48: =VLOOKUP($D:$D,基础资料!$A:C,3,0) -> 蓝卡-言叶之庭 1BD | G48: =VLOOKUP($D:$D,基础资料!$A:D,4,0) -> 1 | H48: =VLOOKUP($D:$D,基础资料!$A:E,5,0) -> 套 | I48: =VLOOKUP($D:$D,基础资料!$A:F,6,0) -> 蓝光卡通 | L48: 78 | M48: =SUMIF($D:$D,D48,$L:$L)+SUMIF($D:$D,D48,$J:$J)-SUMIF($D:$D,D48,$K:$K) -> 78 | N48: =VLOOKUP(D:D,结存!A:J,10,0) -> 78 | O48: =M48 - N48 -> 0
D49: 636 | E49: =VLOOKUP($D:$D,基础资料!$A:B,2,0) -> 0704000001 | F49: =VLOOKUP($D:$D,基础资料!$A:C,3,0) -> S-内识心理学 | G49: =VLOOKUP($D:$D,基础资料!$A:D,4,0) -> \ | H49: =VLOOKUP($D:$D,基础资料!$A:E,5,0) -> 本 | I49: =VLOOKUP($D:$D,基础资料!$A:F,6,0) -> 书本 | L49: 979 | M49: =SUMIF($D:$D,D49,$L:$L)+SUMIF($D:$D,D49,$J:$J)-SUMIF($D:$D,D49,$K:$K) -> 656 | N49: =VLOOKUP(D:D,结存!A:J,10,0) -> 656 | O49: =M49 - N49 -> 0
D50: 637 | E50: =VLOOKUP($D:$D,基础资料!$A:B,2,0) -> 0704000002 | F50: =VLOOKUP($D:$D,基础资料!$A:C,3,0) -> S-项目评价 | G50: =VLOOKUP($D:$D,基础资料!$A:D,4,0) -> \ | H50: =VLOOKUP($D:$D,基础资料!$A:E,5,0) -> 本 | I50: =VLOOKUP($D:$D,基础资料!$A:F,6,0) -> 书本 | L50: 45 | M50: =SUMIF($D:$D,D50,$L:$L)+SUMIF($D:$D,D50,$J:$J)-SUMIF($D:$D,D50,$K:$K) -> 1877 | N50: =VLOOKUP(D:D,结存!A:J,10,0) -> 1877 | O50: =M50 - N50 -> 0
D51: 638 | E51: =VLOOKUP($D:$D,基础资料!$A:B,2,0) -> 0704000003 | F51: =VLOOKUP($D:$D,基础资料!$A:C,3,0) -> S-人格理论 | G51: =VLOOKUP($D:$D,基础资料!$A:D,4,0) -> \ | H51: =VLOOKUP($D:$D,基础资料!$A:E,5,0) -> 本 | I51: =VLOOKUP($D:$D,基础资料!$A:F,6,0) -> 书本 | L51: 586 | M51: =SUMIF($D:$D,D51,$L:$L)+SUMIF($D:$D,D51,$J:$J)-SUMIF($D:$D,D51,$K:$K) -> 523 | N51: =VLOOKUP(D:D,结存!A:J,10,0) -> 523 | O51: =M51 - N51 -> 0
D52: 639 | E52: =VLOOKUP($D:$D,基础资料!$A:B,2,0) -> 0704000004 | F52: =VLOOKUP($D:$D,基础资料!$A:C,3,0) -> S-电器查询 | G52: =VLOOKUP($D:$D,基础资料!$A:D,4,0) -> \ | H52: =VLOOKUP($D:$D,基础资料!$A:E,5,0) -> 本 | I52: =VLOOKUP($D:$D,基础资料!$A:F,6,0) -> 书本 | L52: 258 | M52: =SUMIF($D:$D,D52,$L:$L)+SUMIF($D:$D,D52,$J:$J)-SUMIF($D:$D,D52,$K:$K) -> 223 | N52: =VLOOKUP(D:D,结存!A:J,10,0) -> 223 | O52: =M52 - N52 -> 0
D53: 640 | E53: =VLOOKUP($D:$D,基础资料!$A:B,2,0) -> 0704000035 | F53: =VLOOKUP($D:$D,基础资料!$A:C,3,0) -> S-商业：一个不断变化的世界 | G53: =VLOOKUP($D:$D,基础资料!$A:D,4,0) -> \ | H53: =VLOOKUP($D:$D,基础资料!$A:E,5,0) -> 本 | I53: =VLOOKUP($D:$D,基础资料!$A:F,6,0) -> 书本 | L53: 527 | M53: =SUMIF($D:$D,D53,$L:$L)+SUMIF($D:$D,D53,$J:$J)-SUMIF($D:$D,D53,$K:$K) -> 474 | N53: =VLOOKUP(D:D,结存!A:J,10,0) -> 474 | O53: =M53 - N53 -> 0
D54: 641 | E54: =VLOOKUP($D:$D,基础资料!$A:B,2,0) -> 0704000036 | F54: =VLOOKUP($D:$D,基础资料!$A:C,3,0) -> S-我们的人民 | G54: =VLOOKUP($D:$D,基础资料!$A:D,4,0) -> \ | H54: =VLOOKUP($D:$D,基础资料!$A:E,5,0) -> 本 | I54: =VLOOKUP($D:$D,基础资料!$A:F,6,0) -> 书本 | L54: 2745 | M54: =SUMIF($D:$D,D54,$L:$L)+SUMIF($D:$D,D54,$J:$J)-SUMIF($D:$D,D54,$K:$K) -> 2685 | N54: =VLOOKUP(D:D,结存!A:J,10,0) -> 2685 | O54: =M54 - N54 -> 0
D55: 642 | E55: =VLOOKUP($D:$D,基础资料!$A:B,2,0) -> 07040001 | F55: =VLOOKUP($D:$D,基础资料!$A:C,3,0) -> S-恐怖故事（3本一套） | G55: =VLOOKUP($D:$D,基础资料!$A:D,4,0) -> \ | H55: =VLOOKUP($D:$D,基础资料!$A:E,5,0) -> 套 | I55: =VLOOKUP($D:$D,基础资料!$A:F,6,0) -> 书本 | L55: 91 | M55: =SUMIF($D:$D,D55,$L:$L)+SUMIF($D:$D,D55,$J:$J)-SUMIF($D:$D,D55,$K:$K) -> 35 | N55: =VLOOKUP(D:D,结存!A:J,10,0) -> 35 | O55: =M55 - N55 -> 0
D56: 643 | E56: =VLOOKUP($D:$D,基础资料!$A:B,2,0) -> 07040002 | F56: =VLOOKUP($D:$D,基础资料!$A:C,3,0) -> S-定量技术分析 | G56: =VLOOKUP($D:$D,基础资料!$A:D,4,0) -> \ | H56: =VLOOKUP($D:$D,基础资料!$A:E,5,0) -> 本 | I56: =VLOOKUP($D:$D,基础资料!$A:F,6,0) -> 书本 | L56: 570 | M56: =SUMIF($D:$D,D56,$L:$L)+SUMIF($D:$D,D56,$J:$J)-SUMIF($D:$D,D56,$K:$K) -> 570 | N56: =VLOOKUP(D:D,结存!A:J,10,0) -> 570 | O56: =M56 - N56 -> 0
D57: 644 | E57: =VLOOKUP($D:$D,基础资料!$A:B,2,0) -> 0704000293 | F57: =VLOOKUP($D:$D,基础资料!$A:C,3,0) -> S-环境经济学 | G57: =VLOOKUP($D:$D,基础资料!$A:D,4,0) -> \ | H57: =VLOOKUP($D:$D,基础资料!$A:E,5,0) -> 本 | I57: =VLOOKUP($D:$D,基础资料!$A:F,6,0) -> 书本 | L57: 555 | M57: =SUMIF($D:$D,D57,$L:$L)+SUMIF($D:$D,D57,$J:$J)-SUMIF($D:$D,D57,$K:$K) -> 419 | N57: =VLOOKUP(D:D,结存!A:J,10,0) -> 419 | O57: =M57 - N57 -> 0
D58: 645 | E58: =VLOOKUP($D:$D,基础资料!$A:B,2,0) -> 07040003 | F58: =VLOOKUP($D:$D,基础资料!$A:C,3,0) -> S-公共演讲的艺术 | G58: =VLOOKUP($D:$D,基础资料!$A:D,4,0) -> \ | H58: =VLOOKUP($D:$D,基础资料!$A:E,5,0) -> 本 | I58: =VLOOKUP($D:$D,基础资料!$A:F,6,0) -> 书本 | L58: 1461 | M58: =SUMIF($D:$D,D58,$L:$L)+SUMIF($D:$D,D58,$J:$J)-SUMIF($D:$D,D58,$K:$K) -> 1403 | N58: =VLOOKUP(D:D,结存!A:J,10,0) -> 1403 | O58: =M58 - N58 -> 0
D59: 646 | E59: =VLOOKUP($D:$D,基础资料!$A:B,2,0) -> 07040004 | F59: =VLOOKUP($D:$D,基础资料!$A:C,3,0) -> S-媒体伦理 | G59: =VLOOKUP($D:$D,基础资料!$A:D,4,0) -> \ | H59: =VLOOKUP($D:$D,基础资料!$A:E,5,0) -> 本 | I59: =VLOOKUP($D:$D,基础资料!$A:F,6,0) -> 书本 | L59: 619 | M59: =SUMIF($D:$D,D59,$L:$L)+SUMIF($D:$D,D59,$J:$J)-SUMIF($D:$D,D59,$K:$K) -> 619 | N59: =VLOOKUP(D:D,结存!A:J,10,0) -> 619 | O59: =M59 - N59 -> 0
D60: 647 | E60: =VLOOKUP($D:$D,基础资料!$A:B,2,0) -> 07040005 | F60: =VLOOKUP($D:$D,基础资料!$A:C,3,0) -> S-有效的小组讨论 | G60: =VLOOKUP($D:$D,基础资料!$A:D,4,0) -> \ | H60: =VLOOKUP($D:$D,基础资料!$A:E,5,0) -> 本 | I60: =VLOOKUP($D:$D,基础资料!$A:F,6,0) -> 书本 | L60: 382 | M60: =SUMIF($D:$D,D60,$L:$L)+SUMIF($D:$D,D60,$J:$J)-SUMIF($D:$D,D60,$K:$K) -> 382 | N60: =VLOOKUP(D:D,结存!A:J,10,0) -> 382 | O60: =M60 - N60 -> 0
D61: 648 | E61: =VLOOKUP($D:$D,基础资料!$A:B,2,0) -> 07040006 | F61: =VLOOKUP($D:$D,基础资料!$A:C,3,0) -> S-大众传媒法 | G61: =VLOOKUP($D:$D,基础资料!$A:D,4,0) -> \ | H61: =VLOOKUP($D:$D,基础资料!$A:E,5,0) -> 本 | I61: =VLOOKUP($D:$D,基础资料!$A:F,6,0) -> 书本 | L61: 94 | M61: =SUMIF($D:$D,D61,$L:$L)+SUMIF($D:$D,D61,$J:$J)-SUMIF($D:$D,D61,$K:$K) -> 19 | N61: =VLOOKUP(D:D,结存!A:J,10,0) -> 19 | O61: =M61 - N61 -> 0
D62: 649 | E62: =VLOOKUP($D:$D,基础资料!$A:B,2,0) -> 07040007 | F62: =VLOOKUP($D:$D,基础资料!$A:C,3,0) -> S-行为研究方法 | G62: =VLOOKUP($D:$D,基础资料!$A:D,4,0) -> \ | H62: =VLOOKUP($D:$D,基础资料!$A:E,5,0) -> 本 | I62: =VLOOKUP($D:$D,基础资料!$A:F,6,0) -> 书本 | L62: 4620 | M62: =SUMIF($D:$D,D62,$L:$L)+SUMIF($D:$D,D62,$J:$J)-SUMIF($D:$D,D62,$K:$K) -> 4577 | N62: =VLOOKUP(D:D,结存!A:J,10,0) -> 4577 | O62: =M62 - N62 -> 0
D63: 650 | E63: =VLOOKUP($D:$D,基础资料!$A:B,2,0) -> 07040008 | F63: =VLOOKUP($D:$D,基础资料!$A:C,3,0) -> S-谈判精要 | G63: =VLOOKUP($D:$D,基础资料!$A:D,4,0) -> \ | H63: =VLOOKUP($D:$D,基础资料!$A:E,5,0) -> 本 | I63: =VLOOKUP($D:$D,基础资料!$A:F,6,0) -> 书本 | L63: 678 | M63: =SUMIF($D:$D,D63,$L:$L)+SUMIF($D:$D,D63,$J:$J)-SUMIF($D:$D,D63,$K:$K) -> 538 | N63: =VLOOKUP(D:D,结存!A:J,10,0) -> 538 | O63: =M63 - N63 -> 0
D64: 651 | E64: =VLOOKUP($D:$D,基础资料!$A:B,2,0) -> 07040009 | F64: =VLOOKUP($D:$D,基础资料!$A:C,3,0) -> S-合作、协商和团队合作 | G64: =VLOOKUP($D:$D,基础资料!$A:D,4,0) -> \ | H64: =VLOOKUP($D:$D,基础资料!$A:E,5,0) -> 本 | I64: =VLOOKUP($D:$D,基础资料!$A:F,6,0) -> 书本 | L64: 314 | M64: =SUMIF($D:$D,D64,$L:$L)+SUMIF($D:$D,D64,$J:$J)-SUMIF($D:$D,D64,$K:$K) -> 311 | N64: =VLOOKUP(D:D,结存!A:J,10,0) -> 311 | O64: =M64 - N64 -> 0
D65: 652 | E65: =VLOOKUP($D:$D,基础资料!$A:B,2,0) -> 07040010 | F65: =VLOOKUP($D:$D,基础资料!$A:C,3,0) -> S-管理技能养成 | G65: =VLOOKUP($D:$D,基础资料!$A:D,4,0) -> \ | H65: =VLOOKUP($D:$D,基础资料!$A:E,5,0) -> 本 | I65: =VLOOKUP($D:$D,基础资料!$A:F,6,0) -> 书本 | L65: 424 | M65: =SUMIF($D:$D,D65,$L:$L)+SUMIF($D:$D,D65,$J:$J)-SUMIF($D:$D,D65,$K:$K) -> 292 | N65: =VLOOKUP(D:D,结存!A:J,10,0) -> 292 | O65: =M65 - N65 -> 0
D66: 653 | E66: =VLOOKUP($D:$D,基础资料!$A:B,2,0) -> 07040011 | F66: =VLOOKUP($D:$D,基础资料!$A:C,3,0) -> S-实现改变 | G66: =VLOOKUP($D:$D,基础资料!$A:D,4,0) -> \ | H66: =VLOOKUP($D:$D,基础资料!$A:E,5,0) -> 本 | I66: =VLOOKUP($D:$D,基础资料!$A:F,6,0) -> 书本 | L66: 985 | M66: =SUMIF($D:$D,D66,$L:$L)+SUMIF($D:$D,D66,$J:$J)-SUMIF($D:$D,D66,$K:$K) -> 985 | N66: =VLOOKUP(D:D,结存!A:J,10,0) -> 985 | O66: =M66 - N66 -> 0
D67: 654 | E67: =VLOOKUP($D:$D,基础资料!$A:B,2,0) -> 07040012 | F67: =VLOOKUP($D:$D,基础资料!$A:C,3,0) -> S-实践研究 | G67: =VLOOKUP($D:$D,基础资料!$A:D,4,0) -> \ | H67: =VLOOKUP($D:$D,基础资料!$A:E,5,0) -> 本 | I67: =VLOOKUP($D:$D,基础资料!$A:F,6,0) -> 书本 | L67: 2002 | M67: =SUMIF($D:$D,D67,$L:$L)+SUMIF($D:$D,D67,$J:$J)-SUMIF($D:$D,D67,$K:$K) -> 1966 | N67: =VLOOKUP(D:D,结存!A:J,10,0) -> 1966 | O67: =M67 - N67 -> 0
D68: 655 | E68: =VLOOKUP($D:$D,基础资料!$A:B,2,0) -> 07040013 | F68: =VLOOKUP($D:$D,基础资料!$A:C,3,0) -> S-校园法律 | G68: =VLOOKUP($D:$D,基础资料!$A:D,4,0) -> \ | H68: =VLOOKUP($D:$D,基础资料!$A:E,5,0) -> 本 | I68: =VLOOKUP($D:$D,基础资料!$A:F,6,0) -> 书本 | L68: 768 | M68: =SUMIF($D:$D,D68,$L:$L)+SUMIF($D:$D,D68,$J:$J)-SUMIF($D:$D,D68,$K:$K) -> 698 | N68: =VLOOKUP(D:D,结存!A:J,10,0) -> 698 | O68: =M68 - N68 -> 0
D69: 656 | E69: =VLOOKUP($D:$D,基础资料!$A:B,2,0) -> 07040014 | F69: =VLOOKUP($D:$D,基础资料!$A:C,3,0) -> S-伦理护理 | G69: =VLOOKUP($D:$D,基础资料!$A:D,4,0) -> \ | H69: =VLOOKUP($D:$D,基础资料!$A:E,5,0) -> 本 | I69: =VLOOKUP($D:$D,基础资料!$A:F,6,0) -> 书本 | L69: 966 | M69: =SUMIF($D:$D,D69,$L:$L)+SUMIF($D:$D,D69,$J:$J)-SUMIF($D:$D,D69,$K:$K) -> 956 | N69: =VLOOKUP(D:D,结存!A:J,10,0) -> 956 | O69: =M69 - N69 -> 0
D70: 657 | E70: =VLOOKUP($D:$D,基础资料!$A:B,2,0) -> 07040015 | F70: =VLOOKUP($D:$D,基础资料!$A:C,3,0) -> S-心理学 | G70: =VLOOKUP($D:$D,基础资料!$A:D,4,0) -> \ | H70: =VLOOKUP($D:$D,基础资料!$A:E,5,0) -> 本 | I70: =VLOOKUP($D:$D,基础资料!$A:F,6,0) -> 书本 | L70: 575 | M70: =SUMIF($D:$D,D70,$L:$L)+SUMIF($D:$D,D70,$J:$J)-SUMIF($D:$D,D70,$K:$K) -> 575 | N70: =VLOOKUP(D:D,结存!A:J,10,0) -> 575 | O70: =M70 - N70 -> 0
D71: 658 | E71: =VLOOKUP($D:$D,基础资料!$A:B,2,0) -> 07040016 | F71: =VLOOKUP($D:$D,基础资料!$A:C,3,0) -> S-四十项心理学的研究 821 | G71: =VLOOKUP($D:$D,基础资料!$A:D,4,0) -> \ | H71: =VLOOKUP($D:$D,基础资料!$A:E,5,0) -> 本 | I71: =VLOOKUP($D:$D,基础资料!$A:F,6,0) -> 书本 | L71: 251 | M71: =SUMIF($D:$D,D71,$L:$L)+SUMIF($D:$D,D71,$J:$J)-SUMIF($D:$D,D71,$K:$K) -> 1 | N71: =VLOOKUP(D:D,结存!A:J,10,0) -> 1 | O71: =M71 - N71 -> 0
D72: 659 | E72: =VLOOKUP($D:$D,基础资料!$A:B,2,0) -> 07040017 | F72: =VLOOKUP($D:$D,基础资料!$A:C,3,0) -> S-实习手册 | G72: =VLOOKUP($D:$D,基础资料!$A:D,4,0) -> \ | H72: =VLOOKUP($D:$D,基础资料!$A:E,5,0) -> 本 | I72: =VLOOKUP($D:$D,基础资料!$A:F,6,0) -> 书本 | L72: 934 | M72: =SUMIF($D:$D,D72,$L:$L)+SUMIF($D:$D,D72,$J:$J)-SUMIF($D:$D,D72,$K:$K) -> 934 | N72: =VLOOKUP(D:D,结存!A:J,10,0) -> 934 | O72: =M72 - N72 -> 0
D73: 660 | E73: =VLOOKUP($D:$D,基础资料!$A:B,2,0) -> 07040018 | F73: =VLOOKUP($D:$D,基础资料!$A:C,3,0) -> S-明了和优雅风格的教训 | G73: =VLOOKUP($D:$D,基础资料!$A:D,4,0) -> \ | H73: =VLOOKUP($D:$D,基础资料!$A:E,5,0) -> 本 | I73: =VLOOKUP($D:$D,基础资料!$A:F,6,0) -> 书本 | L73: 454 | M73: =SUMIF($D:$D,D73,$L:$L)+SUMIF($D:$D,D73,$J:$J)-SUMIF($D:$D,D73,$K:$K) -> 454 | N73: =VLOOKUP(D:D,结存!A:J,10,0) -> 454 | O73: =M73 - N73 -> 0
D74: 661 | E74: =VLOOKUP($D:$D,基础资料!$A:B,2,0) -> 07040019 | F74: =VLOOKUP($D:$D,基础资料!$A:C,3,0) -> S-美国药疗保健 | G74: =VLOOKUP($D:$D,基础资料!$A:D,4,0) -> \ | H74: =VLOOKUP($D:$D,基础资料!$A:E,5,0) -> 本 | I74: =VLOOKUP($D:$D,基础资料!$A:F,6,0) -> 书本 | L74: 1029 | M74: =SUMIF($D:$D,D74,$L:$L)+SUMIF($D:$D,D74,$J:$J)-SUMIF($D:$D,D74,$K:$K) -> 975 | N74: =VLOOKUP(D:D,结存!A:J,10,0) -> 975 | O74: =M74 - N74 -> 0
D75: 662 | E75: =VLOOKUP($D:$D,基础资料!$A:B,2,0) -> 07040020 | F75: =VLOOKUP($D:$D,基础资料!$A:C,3,0) -> S-硕士考试指南 | G75: =VLOOKUP($D:$D,基础资料!$A:D,4,0) -> \ | H75: =VLOOKUP($D:$D,基础资料!$A:E,5,0) -> 本 | I75: =VLOOKUP($D:$D,基础资料!$A:F,6,0) -> 书本 | L75: 2144 | M75: =SUMIF($D:$D,D75,$L:$L)+SUMIF($D:$D,D75,$J:$J)-SUMIF($D:$D,D75,$K:$K) -> 2104 | N75: =VLOOKUP(D:D,结存!A:J,10,0) -> 2104 | O75: =M75 - N75 -> 0
D76: 663 | E76: =VLOOKUP($D:$D,基础资料!$A:B,2,0) -> 07040021 | F76: =VLOOKUP($D:$D,基础资料!$A:C,3,0) -> S-面试技巧 | G76: =VLOOKUP($D:$D,基础资料!$A:D,4,0) -> \ | H76: =VLOOKUP($D:$D,基础资料!$A:E,5,0) -> 本 | I76: =VLOOKUP($D:$D,基础资料!$A:F,6,0) -> 书本 | L76: 615 | M76: =SUMIF($D:$D,D76,$L:$L)+SUMIF($D:$D,D76,$J:$J)-SUMIF($D:$D,D76,$K:$K) -> 595 | N76: =VLOOKUP(D:D,结存!A:J,10,0) -> 595 | O76: =M76 - N76 -> 0
D77: 664 | E77: =VLOOKUP($D:$D,基础资料!$A:B,2,0) -> 07040022 | F77: =VLOOKUP($D:$D,基础资料!$A:C,3,0) -> S-麦克的学习技巧 | G77: =VLOOKUP($D:$D,基础资料!$A:D,4,0) -> \ | H77: =VLOOKUP($D:$D,基础资料!$A:E,5,0) -> 本 | I77: =VLOOKUP($D:$D,基础资料!$A:F,6,0) -> 书本 | L77: 594 | M77: =SUMIF($D:$D,D77,$L:$L)+SUMIF($D:$D,D77,$J:$J)-SUMIF($D:$D,D77,$K:$K) -> 594 | N77: =VLOOKUP(D:D,结存!A:J,10,0) -> 594 | O77: =M77 - N77 -> 0
D78: 665 | E78: =VLOOKUP($D:$D,基础资料!$A:B,2,0) -> 07040023 | F78: =VLOOKUP($D:$D,基础资料!$A:C,3,0) -> S-医生的护理实践 | G78: =VLOOKUP($D:$D,基础资料!$A:D,4,0) -> \ | H78: =VLOOKUP($D:$D,基础资料!$A:E,5,0) -> 本 | I78: =VLOOKUP($D:$D,基础资料!$A:F,6,0) -> 书本 | L78: 1327 | M78: =SUMIF($D:$D,D78,$L:$L)+SUMIF($D:$D,D78,$J:$J)-SUMIF($D:$D,D78,$K:$K) -> 1327 | N78: =VLOOKUP(D:D,结存!A:J,10,0) -> 1327 | O78: =M78 - N78 -> 0
D79: 666 | E79: =VLOOKUP($D:$D,基础资料!$A:B,2,0) -> 07040024 | F79: =VLOOKUP($D:$D,基础资料!$A:C,3,0) -> S-社会精神 | G79: =VLOOKUP($D:$D,基础资料!$A:D,4,0) -> \ | H79: =VLOOKUP($D:$D,基础资料!$A:E,5,0) -> 本 | I79: =VLOOKUP($D:$D,基础资料!$A:F,6,0) -> 书本 | L79: 606 | M79: =SUMIF($D:$D,D79,$L:$L)+SUMIF($D:$D,D79,$J:$J)-SUMIF($D:$D,D79,$K:$K) -> 606 | N79: =VLOOKUP(D:D,结存!A:J,10,0) -> 606 | O79: =M79 - N79 -> 0
D80: 667 | E80: =VLOOKUP($D:$D,基础资料!$A:B,2,0) -> 07040025 | F80: =VLOOKUP($D:$D,基础资料!$A:C,3,0) -> S-临床评估工作簿 | G80: =VLOOKUP($D:$D,基础资料!$A:D,4,0) -> \ | H80: =VLOOKUP($D:$D,基础资料!$A:E,5,0) -> 本 | I80: =VLOOKUP($D:$D,基础资料!$A:F,6,0) -> 书本 | L80: 2358 | M80: =SUMIF($D:$D,D80,$L:$L)+SUMIF($D:$D,D80,$J:$J)-SUMIF($D:$D,D80,$K:$K) -> 2338 | N80: =VLOOKUP(D:D,结存!A:J,10,0) -> 2338 | O80: =M80 - N80 -> 0
D81: 668 | E81: =VLOOKUP($D:$D,基础资料!$A:B,2,0) -> 07040026 | F81: =VLOOKUP($D:$D,基础资料!$A:C,3,0) -> S-团体咨询 | G81: =VLOOKUP($D:$D,基础资料!$A:D,4,0) -> \ | H81: =VLOOKUP($D:$D,基础资料!$A:E,5,0) -> 本 | I81: =VLOOKUP($D:$D,基础资料!$A:F,6,0) -> 书本 | L81: 1522 | M81: =SUMIF($D:$D,D81,$L:$L)+SUMIF($D:$D,D81,$J:$J)-SUMIF($D:$D,D81,$K:$K) -> 1473 | N81: =VLOOKUP(D:D,结存!A:J,10,0) -> 1473 | O81: =M81 - N81 -> 0
D82: 669 | E82: =VLOOKUP($D:$D,基础资料!$A:B,2,0) -> 07040027 | F82: =VLOOKUP($D:$D,基础资料!$A:C,3,0) -> S-小屁孩日记（9本一套） | G82: =VLOOKUP($D:$D,基础资料!$A:D,4,0) -> \ | H82: =VLOOKUP($D:$D,基础资料!$A:E,5,0) -> 套 | I82: =VLOOKUP($D:$D,基础资料!$A:F,6,0) -> 书本 | L82: 963 | M82: =SUMIF($D:$D,D82,$L:$L)+SUMIF($D:$D,D82,$J:$J)-SUMIF($D:$D,D82,$K:$K) -> 958 | N82: =VLOOKUP(D:D,结存!A:J,10,0) -> 958 | O82: =M82 - N82 -> 0
D83: 677 | E83: =VLOOKUP($D:$D,基础资料!$A:B,2,0) -> 07040027-1 | F83: =VLOOKUP($D:$D,基础资料!$A:C,3,0) -> S-小屁孩日记（1/9本一套） | G83: =VLOOKUP($D:$D,基础资料!$A:D,4,0) -> \ | H83: =VLOOKUP($D:$D,基础资料!$A:E,5,0) -> 本 | I83: =VLOOKUP($D:$D,基础资料!$A:F,6,0) -> 书本 | L83: 8 | M83: =SUMIF($D:$D,D83,$L:$L)+SUMIF($D:$D,D83,$J:$J)-SUMIF($D:$D,D83,$K:$K) -> 8 | N83: =VLOOKUP(D:D,结存!A:J,10,0) -> 8 | O83: =M83 - N83 -> 0
D84: 678 | E84: =VLOOKUP($D:$D,基础资料!$A:B,2,0) -> 07040027-2 | F84: =VLOOKUP($D:$D,基础资料!$A:C,3,0) -> S-小屁孩日记（2/9本一套） | G84: =VLOOKUP($D:$D,基础资料!$A:D,4,0) -> \ | H84: =VLOOKUP($D:$D,基础资料!$A:E,5,0) -> 本 | I84: =VLOOKUP($D:$D,基础资料!$A:F,6,0) -> 书本 | L84: 1 | M84: =SUMIF($D:$D,D84,$L:$L)+SUMIF($D:$D,D84,$J:$J)-SUMIF($D:$D,D84,$K:$K) -> 1 | N84: =VLOOKUP(D:D,结存!A:J,10,0) -> 1 | O84: =M84 - N84 -> 0
D85: 679 | E85: =VLOOKUP($D:$D,基础资料!$A:B,2,0) -> 07040027-3 | F85: =VLOOKUP($D:$D,基础资料!$A:C,3,0) -> S-小屁孩日记（3/9本一套） | G85: =VLOOKUP($D:$D,基础资料!$A:D,4,0) -> \ | H85: =VLOOKUP($D:$D,基础资料!$A:E,5,0) -> 本 | I85: =VLOOKUP($D:$D,基础资料!$A:F,6,0) -> 书本 | L85: 11 | M85: =SUMIF($D:$D,D85,$L:$L)+SUMIF($D:$D,D85,$J:$J)-SUMIF($D:$D,D85,$K:$K) -> 11 | N85: =VLOOKUP(D:D,结存!A:J,10,0) -> 11 | O85: =M85 - N85 -> 0
D86: 680 | E86: =VLOOKUP($D:$D,基础资料!$A:B,2,0) -> 07040027-4 | F86: =VLOOKUP($D:$D,基础资料!$A:C,3,0) -> S-小屁孩日记（4/9本一套） | G86: =VLOOKUP($D:$D,基础资料!$A:D,4,0) -> \ | H86: =VLOOKUP($D:$D,基础资料!$A:E,5,0) -> 本 | I86: =VLOOKUP($D:$D,基础资料!$A:F,6,0) -> 书本 | L86: 15 | M86: =SUMIF($D:$D,D86,$L:$L)+SUMIF($D:$D,D86,$J:$J)-SUMIF($D:$D,D86,$K:$K) -> 15 | N86: =VLOOKUP(D:D,结存!A:J,10,0) -> 15 | O86: =M86 - N86 -> 0
D87: 681 | E87: =VLOOKUP($D:$D,基础资料!$A:B,2,0) -> 07040027-5 | F87: =VLOOKUP($D:$D,基础资料!$A:C,3,0) -> S-小屁孩日记（5/9本一套） | G87: =VLOOKUP($D:$D,基础资料!$A:D,4,0) -> \ | H87: =VLOOKUP($D:$D,基础资料!$A:E,5,0) -> 本 | I87: =VLOOKUP($D:$D,基础资料!$A:F,6,0) -> 书本 | L87: 30 | M87: =SUMIF($D:$D,D87,$L:$L)+SUMIF($D:$D,D87,$J:$J)-SUMIF($D:$D,D87,$K:$K) -> 30 | N87: =VLOOKUP(D:D,结存!A:J,10,0) -> 30 | O87: =M87 - N87 -> 0
D88: 682 | E88: =VLOOKUP($D:$D,基础资料!$A:B,2,0) -> 07040027-6 | F88: =VLOOKUP($D:$D,基础资料!$A:C,3,0) -> S-小屁孩日记（6/9本一套） | G88: =VLOOKUP($D:$D,基础资料!$A:D,4,0) -> \ | H88: =VLOOKUP($D:$D,基础资料!$A:E,5,0) -> 本 | I88: =VLOOKUP($D:$D,基础资料!$A:F,6,0) -> 书本 | L88: 570 | M88: =SUMIF($D:$D,D88,$L:$L)+SUMIF($D:$D,D88,$J:$J)-SUMIF($D:$D,D88,$K:$K) -> 570 | N88: =VLOOKUP(D:D,结存!A:J,10,0) -> 570 | O88: =M88 - N88 -> 0
D89: 683 | E89: =VLOOKUP($D:$D,基础资料!$A:B,2,0) -> 07040027-7 | F89: =VLOOKUP($D:$D,基础资料!$A:C,3,0) -> S-小屁孩日记（7/9本一套） | G89: =VLOOKUP($D:$D,基础资料!$A:D,4,0) -> \ | H89: =VLOOKUP($D:$D,基础资料!$A:E,5,0) -> 本 | I89: =VLOOKUP($D:$D,基础资料!$A:F,6,0) -> 书本 | L89: 517 | M89: =SUMIF($D:$D,D89,$L:$L)+SUMIF($D:$D,D89,$J:$J)-SUMIF($D:$D,D89,$K:$K) -> 517 | N89: =VLOOKUP(D:D,结存!A:J,10,0) -> 517 | O89: =M89 - N89 -> 0
D90: 684 | E90: =VLOOKUP($D:$D,基础资料!$A:B,2,0) -> 07040027-8 | F90: =VLOOKUP($D:$D,基础资料!$A:C,3,0) -> S-小屁孩日记（8/9本一套） | G90: =VLOOKUP($D:$D,基础资料!$A:D,4,0) -> \ | H90: =VLOOKUP($D:$D,基础资料!$A:E,5,0) -> 本 | I90: =VLOOKUP($D:$D,基础资料!$A:F,6,0) -> 书本 | L90: 454 | M90: =SUMIF($D:$D,D90,$L:$L)+SUMIF($D:$D,D90,$J:$J)-SUMIF($D:$D,D90,$K:$K) -> 454 | N90: =VLOOKUP(D:D,结存!A:J,10,0) -> 454 | O90: =M90 - N90 -> 0
D91: 685 | E91: =VLOOKUP($D:$D,基础资料!$A:B,2,0) -> 07040027-9 | F91: =VLOOKUP($D:$D,基础资料!$A:C,3,0) -> S-小屁孩日记（9/9本一套） | G91: =VLOOKUP($D:$D,基础资料!$A:D,4,0) -> \ | H91: =VLOOKUP($D:$D,基础资料!$A:E,5,0) -> 本 | I91: =VLOOKUP($D:$D,基础资料!$A:F,6,0) -> 书本 | L91: 508 | M91: =SUMIF($D:$D,D91,$L:$L)+SUMIF($D:$D,D91,$J:$J)-SUMIF($D:$D,D91,$K:$K) -> 508 | N91: =VLOOKUP(D:D,结存!A:J,10,0) -> 508 | O91: =M91 - N91 -> 0
D92: 670 | E92: =VLOOKUP($D:$D,基础资料!$A:B,2,0) -> 07040028 | F92: =VLOOKUP($D:$D,基础资料!$A:C,3,0) -> S-上诉辩护 | G92: =VLOOKUP($D:$D,基础资料!$A:D,4,0) -> \ | H92: =VLOOKUP($D:$D,基础资料!$A:E,5,0) -> 本 | I92: =VLOOKUP($D:$D,基础资料!$A:F,6,0) -> 书本 | L92: 703 | M92: =SUMIF($D:$D,D92,$L:$L)+SUMIF($D:$D,D92,$J:$J)-SUMIF($D:$D,D92,$K:$K) -> 703 | N92: =VLOOKUP(D:D,结存!A:J,10,0) -> 703 | O92: =M92 - N92 -> 0
D93: 671 | E93: =VLOOKUP($D:$D,基础资料!$A:B,2,0) -> 07040029 | F93: =VLOOKUP($D:$D,基础资料!$A:C,3,0) -> S-法律研究 | G93: =VLOOKUP($D:$D,基础资料!$A:D,4,0) -> \ | H93: =VLOOKUP($D:$D,基础资料!$A:E,5,0) -> 本 | I93: =VLOOKUP($D:$D,基础资料!$A:F,6,0) -> 书本 | L93: 807 | M93: =SUMIF($D:$D,D93,$L:$L)+SUMIF($D:$D,D93,$J:$J)-SUMIF($D:$D,D93,$K:$K) -> 807 | N93: =VLOOKUP(D:D,结存!A:J,10,0) -> 807 | O93: =M93 - N93 -> 0
D94: 672 | E94: =VLOOKUP($D:$D,基础资料!$A:B,2,0) -> 07040030 | F94: =VLOOKUP($D:$D,基础资料!$A:C,3,0) -> S-法律写作和分析 | G94: =VLOOKUP($D:$D,基础资料!$A:D,4,0) -> \ | H94: =VLOOKUP($D:$D,基础资料!$A:E,5,0) -> 本 | I94: =VLOOKUP($D:$D,基础资料!$A:F,6,0) -> 书本 | L94: 0 | M94: =SUMIF($D:$D,D94,$L:$L)+SUMIF($D:$D,D94,$J:$J)-SUMIF($D:$D,D94,$K:$K) -> 712 | N94: =VLOOKUP(D:D,结存!A:J,10,0) -> 712 | O94: =M94 - N94 -> 0
D95: 673 | E95: =VLOOKUP($D:$D,基础资料!$A:B,2,0) -> 07040031 | F95: =VLOOKUP($D:$D,基础资料!$A:C,3,0) -> S-电子和计算机考试学习指南 | G95: =VLOOKUP($D:$D,基础资料!$A:D,4,0) -> \ | H95: =VLOOKUP($D:$D,基础资料!$A:E,5,0) -> 本 | I95: =VLOOKUP($D:$D,基础资料!$A:F,6,0) -> 书本 | L95: 719 | M95: =SUMIF($D:$D,D95,$L:$L)+SUMIF($D:$D,D95,$J:$J)-SUMIF($D:$D,D95,$K:$K) -> 719 | N95: =VLOOKUP(D:D,结存!A:J,10,0) -> 719 | O95: =M95 - N95 -> 0
D96: 674 | E96: =VLOOKUP($D:$D,基础资料!$A:B,2,0) -> 07040032 | F96: =VLOOKUP($D:$D,基础资料!$A:C,3,0) -> S-民事诉讼 | G96: =VLOOKUP($D:$D,基础资料!$A:D,4,0) -> \ | H96: =VLOOKUP($D:$D,基础资料!$A:E,5,0) -> 本 | I96: =VLOOKUP($D:$D,基础资料!$A:F,6,0) -> 书本 | L96: 710 | M96: =SUMIF($D:$D,D96,$L:$L)+SUMIF($D:$D,D96,$J:$J)-SUMIF($D:$D,D96,$K:$K) -> 707 | N96: =VLOOKUP(D:D,结存!A:J,10,0) -> 707 | O96: =M96 - N96 -> 0
D97: 675 | E97: =VLOOKUP($D:$D,基础资料!$A:B,2,0) -> 07040033 | F97: =VLOOKUP($D:$D,基础资料!$A:C,3,0) -> S-机械实践 | G97: =VLOOKUP($D:$D,基础资料!$A:D,4,0) -> \ | H97: =VLOOKUP($D:$D,基础资料!$A:E,5,0) -> 本 | I97: =VLOOKUP($D:$D,基础资料!$A:F,6,0) -> 书本 | L97: 513 | M97: =SUMIF($D:$D,D97,$L:$L)+SUMIF($D:$D,D97,$J:$J)-SUMIF($D:$D,D97,$K:$K) -> 463 | N97: =VLOOKUP(D:D,结存!A:J,10,0) -> 463 | O97: =M97 - N97 -> 0
D98: 629 | E98: =VLOOKUP($D:$D,基础资料!$A:B,2,0) -> 07030005 | F98: =VLOOKUP($D:$D,基础资料!$A:C,3,0) -> 蓝卡-穿越时空的少女 1BD+2DVD | G98: =VLOOKUP($D:$D,基础资料!$A:D,4,0) -> 3 | H98: =VLOOKUP($D:$D,基础资料!$A:E,5,0) -> 套 | I98: =VLOOKUP($D:$D,基础资料!$A:F,6,0) -> 蓝光卡通 | L98: 77 | M98: =SUMIF($D:$D,D98,$L:$L)+SUMIF($D:$D,D98,$J:$J)-SUMIF($D:$D,D98,$K:$K) -> 77 | N98: =VLOOKUP(D:D,结存!A:J,10,0) -> 77 | O98: =M98 - N98 -> 0
D99: 676 | E99: =VLOOKUP($D:$D,基础资料!$A:B,2,0) -> 07040034 | F99: =VLOOKUP($D:$D,基础资料!$A:C,3,0) -> S-程序员考试 | G99: =VLOOKUP($D:$D,基础资料!$A:D,4,0) -> \ | H99: =VLOOKUP($D:$D,基础资料!$A:E,5,0) -> 本 | I99: =VLOOKUP($D:$D,基础资料!$A:F,6,0) -> 书本 | L99: 1422 | M99: =SUMIF($D:$D,D99,$L:$L)+SUMIF($D:$D,D99,$J:$J)-SUMIF($D:$D,D99,$K:$K) -> 1412 | N99: =VLOOKUP(D:D,结存!A:J,10,0) -> 1412 | O99: =M99 - N99 -> 0
A100: 2016-10-25 | B100: 1080047 | D100: 607 | E100: =VLOOKUP($D:$D,基础资料!$A:B,2,0) -> 07020039 | F100: =VLOOKUP($D:$D,基础资料!$A:C,3,0) -> 蓝影-钢之炼金术师：兄弟会（上） 4BD | G100: =VLOOKUP($D:$D,基础资料!$A:D,4,0) -> 4 | H100: =VLOOKUP($D:$D,基础资料!$A:E,5,0) -> 套 | I100: =VLOOKUP($D:$D,基础资料!$A:F,6,0) -> 蓝光电影 | K100: 5 | M100: =SUMIF($D:$D,D100,$L:$L)+SUMIF($D:$D,D100,$J:$J)-SUMIF($D:$D,D100,$K:$K) -> 72 | N100: =VLOOKUP(D:D,结存!A:J,10,0) -> 72 | O100: =M100 - N100 -> 0
A101: 2016-10-25 | B101: 1080047 | D101: 608 | E101: =VLOOKUP($D:$D,基础资料!$A:B,2,0) -> 07020040 | F101: =VLOOKUP($D:$D,基础资料!$A:C,3,0) -> 蓝影-钢之炼金术师：兄弟会（下） 4BD | G101: =VLOOKUP($D:$D,基础资料!$A:D,4,0) -> 4 | H101: =VLOOKUP($D:$D,基础资料!$A:E,5,0) -> 套 | I101: =VLOOKUP($D:$D,基础资料!$A:F,6,0) -> 蓝光电影 | K101: 5 | M101: =SUMIF($D:$D,D101,$L:$L)+SUMIF($D:$D,D101,$J:$J)-SUMIF($D:$D,D101,$K:$K) -> 77 | N101: =VLOOKUP(D:D,结存!A:J,10,0) -> 77 | O101: =M101 - N101 -> 0
A102: 2016-10-25 | B102: 10Y0049 | D102: 640 | E102: =VLOOKUP($D:$D,基础资料!$A:B,2,0) -> 0704000035 | F102: =VLOOKUP($D:$D,基础资料!$A:C,3,0) -> S-商业：一个不断变化的世界 | G102: =VLOOKUP($D:$D,基础资料!$A:D,4,0) -> \ | H102: =VLOOKUP($D:$D,基础资料!$A:E,5,0) -> 本 | I102: =VLOOKUP($D:$D,基础资料!$A:F,6,0) -> 书本 | K102: 10 | M102: =SUMIF($D:$D,D102,$L:$L)+SUMIF($D:$D,D102,$J:$J)-SUMIF($D:$D,D102,$K:$K) -> 474 | N102: =VLOOKUP(D:D,结存!A:J,10,0) -> 474 | O102: =M102 - N102 -> 0
A103: 2016-10-25 | B103: 10Y0041 | D103: 644 | E103: =VLOOKUP($D:$D,基础资料!$A:B,2,0) -> 0704000293 | F103: =VLOOKUP($D:$D,基础资料!$A:C,3,0) -> S-环境经济学 | G103: =VLOOKUP($D:$D,基础资料!$A:D,4,0) -> \ | H103: =VLOOKUP($D:$D,基础资料!$A:E,5,0) -> 本 | I103: =VLOOKUP($D:$D,基础资料!$A:F,6,0) -> 书本 | K103: 100 | M103: =SUMIF($D:$D,D103,$L:$L)+SUMIF($D:$D,D103,$J:$J)-SUMIF($D:$D,D103,$K:$K) -> 419 | N103: =VLOOKUP(D:D,结存!A:J,10,0) -> 419 | O103: =M103 - N103 -> 0
A104: 2016-10-25 | B104: 10Y0049 | D104: 648 | E104: =VLOOKUP($D:$D,基础资料!$A:B,2,0) -> 07040006 | F104: =VLOOKUP($D:$D,基础资料!$A:C,3,0) -> S-大众传媒法 | G104: =VLOOKUP($D:$D,基础资料!$A:D,4,0) -> \ | H104: =VLOOKUP($D:$D,基础资料!$A:E,5,0) -> 本 | I104: =VLOOKUP($D:$D,基础资料!$A:F,6,0) -> 书本 | K104: 50 | M104: =SUMIF($D:$D,D104,$L:$L)+SUMIF($D:$D,D104,$J:$J)-SUMIF($D:$D,D104,$K:$K) -> 19 | N104: =VLOOKUP(D:D,结存!A:J,10,0) -> 19 | O104: =M104 - N104 -> 0
A105: 2016-10-26 | B105: 0000000027 | D105: 539 | E105: =VLOOKUP($D:$D,基础资料!$A:B,2,0) -> 07010013 | F105: =VLOOKUP($D:$D,基础资料!$A:C,3,0) -> 蓝剧-黑色孤儿第3季 2BD | G105: =VLOOKUP($D:$D,基础资料!$A:D,4,0) -> 2 | H105: =VLOOKUP($D:$D,基础资料!$A:E,5,0) -> 套 | I105: =VLOOKUP($D:$D,基础资料!$A:F,6,0) -> 蓝光电视剧 | J105: 4 | M105: =SUMIF($D:$D,D105,$L:$L)+SUMIF($D:$D,D105,$J:$J)-SUMIF($D:$D,D105,$K:$K) -> 86 | N105: =VLOOKUP(D:D,结存!A:J,10,0) -> 86 | O105: =M105 - N105 -> 0
A106: 2016-10-26 | B106: 0000000028 | D106: 568 | E106: =VLOOKUP($D:$D,基础资料!$A:B,2,0) -> 0702000032 | F106: =VLOOKUP($D:$D,基础资料!$A:C,3,0) -> 蓝影年轻气盛1BD | G106: =VLOOKUP($D:$D,基础资料!$A:D,4,0) -> 1 | H106: =VLOOKUP($D:$D,基础资料!$A:E,5,0) -> 套 | I106: =VLOOKUP($D:$D,基础资料!$A:F,6,0) -> 蓝光电影 | J106: 1 | M106: =SUMIF($D:$D,D106,$L:$L)+SUMIF($D:$D,D106,$J:$J)-SUMIF($D:$D,D106,$K:$K) -> 95 | N106: =VLOOKUP(D:D,结存!A:J,10,0) -> 95 | O106: =M106 - N106 -> 0
A107: 2016-10-26 | B107: 1080052 | D107: 568 | E107: =VLOOKUP($D:$D,基础资料!$A:B,2,0) -> 0702000032 | F107: =VLOOKUP($D:$D,基础资料!$A:C,3,0) -> 蓝影年轻气盛1BD | G107: =VLOOKUP($D:$D,基础资料!$A:D,4,0) -> 1 | H107: =VLOOKUP($D:$D,基础资料!$A:E,5,0) -> 套 | I107: =VLOOKUP($D:$D,基础资料!$A:F,6,0) -> 蓝光电影 | K107: 1 | M107: =SUMIF($D:$D,D107,$L:$L)+SUMIF($D:$D,D107,$J:$J)-SUMIF($D:$D,D107,$K:$K) -> 95 | N107: =VLOOKUP(D:D,结存!A:J,10,0) -> 95 | O107: =M107 - N107 -> 0
A108: 2016-10-26 | B108: 1080052 | D108: 590 | E108: =VLOOKUP($D:$D,基础资料!$A:B,2,0) -> 07020022 | F108: =VLOOKUP($D:$D,基础资料!$A:C,3,0) -> 蓝影-美国不为人知的历史 1BD | G108: =VLOOKUP($D:$D,基础资料!$A:D,4,0) -> 1 | H108: =VLOOKUP($D:$D,基础资料!$A:E,5,0) -> 套 | I108: =VLOOKUP($D:$D,基础资料!$A:F,6,0) -> 蓝光电影 | K108: 1 | M108: =SUMIF($D:$D,D108,$L:$L)+SUMIF($D:$D,D108,$J:$J)-SUMIF($D:$D,D108,$K:$K) -> 88 | N108: =VLOOKUP(D:D,结存!A:J,10,0) -> 88 | O108: =M108 - N108 -> 0
A109: 2016-10-26 | D109: 594 | E109: =VLOOKUP($D:$D,基础资料!$A:B,2,0) -> 07020026 | F109: =VLOOKUP($D:$D,基础资料!$A:C,3,0) -> 蓝影-耐撕侦探1BD+1DVD | G109: =VLOOKUP($D:$D,基础资料!$A:D,4,0) -> 2 | H109: =VLOOKUP($D:$D,基础资料!$A:E,5,0) -> 套 | I109: =VLOOKUP($D:$D,基础资料!$A:F,6,0) -> 蓝光电影 | J109: 1 | M109: =SUMIF($D:$D,D109,$L:$L)+SUMIF($D:$D,D109,$J:$J)-SUMIF($D:$D,D109,$K:$K) -> 95 | N109: =VLOOKUP(D:D,结存!A:J,10,0) -> 95 | O109: =M109 - N109 -> 0
A110: 2016-10-26 | B110: 1080052 | D110: 594 | E110: =VLOOKUP($D:$D,基础资料!$A:B,2,0) -> 07020026 | F110: =VLOOKUP($D:$D,基础资料!$A:C,3,0) -> 蓝影-耐撕侦探1BD+1DVD | G110: =VLOOKUP($D:$D,基础资料!$A:D,4,0) -> 2 | H110: =VLOOKUP($D:$D,基础资料!$A:E,5,0) -> 套 | I110: =VLOOKUP($D:$D,基础资料!$A:F,6,0) -> 蓝光电影 | K110: 1 | M110: =SUMIF($D:$D,D110,$L:$L)+SUMIF($D:$D,D110,$J:$J)-SUMIF($D:$D,D110,$K:$K) -> 95 | N110: =VLOOKUP(D:D,结存!A:J,10,0) -> 95 | O110: =M110 - N110 -> 0
A111: 2016-10-26 | B111: 1080052 | D111: 599 | E111: =VLOOKUP($D:$D,基础资料!$A:B,2,0) -> 07020031 | F111: =VLOOKUP($D:$D,基础资料!$A:C,3,0) -> 蓝影-杀死一只知更鸟1BD | G111: =VLOOKUP($D:$D,基础资料!$A:D,4,0) -> 1 | H111: =VLOOKUP($D:$D,基础资料!$A:E,5,0) -> 套 | I111: =VLOOKUP($D:$D,基础资料!$A:F,6,0) -> 蓝光电影 | K111: 1 | M111: =SUMIF($D:$D,D111,$L:$L)+SUMIF($D:$D,D111,$J:$J)-SUMIF($D:$D,D111,$K:$K) -> 78 | N111: =VLOOKUP(D:D,结存!A:J,10,0) -> 78 | O111: =M111 - N111 -> 0
A112: 2016-10-26 | B112: 1080049 | D112: 607 | E112: =VLOOKUP($D:$D,基础资料!$A:B,2,0) -> 07020039 | F112: =VLOOKUP($D:$D,基础资料!$A:C,3,0) -> 蓝影-钢之炼金术师：兄弟会（上） 4BD | G112: =VLOOKUP($D:$D,基础资料!$A:D,4,0) -> 4 | H112: =VLOOKUP($D:$D,基础资料!$A:E,5,0) -> 套 | I112: =VLOOKUP($D:$D,基础资料!$A:F,6,0) -> 蓝光电影 | K112: 4 | M112: =SUMIF($D:$D,D112,$L:$L)+SUMIF($D:$D,D112,$J:$J)-SUMIF($D:$D,D112,$K:$K) -> 72 | N112: =VLOOKUP(D:D,结存!A:J,10,0) -> 72 | O112: =M112 - N112 -> 0
A113: 2016-10-26 | B113: 1080050 | D113: 633 | E113: =VLOOKUP($D:$D,基础资料!$A:B,2,0) -> 07030009 | F113: =VLOOKUP($D:$D,基础资料!$A:C,3,0) -> 蓝卡-星际牛仔 4BD | G113: =VLOOKUP($D:$D,基础资料!$A:D,4,0) -> 4 | H113: =VLOOKUP($D:$D,基础资料!$A:E,5,0) -> 套 | I113: =VLOOKUP($D:$D,基础资料!$A:F,6,0) -> 蓝光卡通 | K113: 2 | M113: =SUMIF($D:$D,D113,$L:$L)+SUMIF($D:$D,D113,$J:$J)-SUMIF($D:$D,D113,$K:$K) -> 9 | N113: =VLOOKUP(D:D,结存!A:J,10,0) -> 9 | O113: =M113 - N113 -> 0
A114: 2016-10-26 | B114: ‘0000000003 | D114: 688 | E114: =VLOOKUP($D:$D,基础资料!$A:B,2,0) -> 9090003 | F114: =VLOOKUP($D:$D,基础资料!$A:C,3,0) -> 蓝光瑞壳和莫蒂第1季1BD | G114: =VLOOKUP($D:$D,基础资料!$A:D,4,0) -> \ | H114: =VLOOKUP($D:$D,基础资料!$A:E,5,0) -> 套 | I114: =VLOOKUP($D:$D,基础资料!$A:F,6,0) -> 蓝光电影 | J114: 1 | M114: =SUMIF($D:$D,D114,$L:$L)+SUMIF($D:$D,D114,$J:$J)-SUMIF($D:$D,D114,$K:$K) -> 0 | N114: =VLOOKUP(D:D,结存!A:J,10,0) -> 0 | O114: =M114 - N114 -> 0
A115: 2016-10-26 | B115: 1080051 | D115: 688 | E115: =VLOOKUP($D:$D,基础资料!$A:B,2,0) -> 9090003 | F115: =VLOOKUP($D:$D,基础资料!$A:C,3,0) -> 蓝光瑞壳和莫蒂第1季1BD | G115: =VLOOKUP($D:$D,基础资料!$A:D,4,0) -> \ | H115: =VLOOKUP($D:$D,基础资料!$A:E,5,0) -> 套 | I115: =VLOOKUP($D:$D,基础资料!$A:F,6,0) -> 蓝光电影 | K115: 1 | M115: =SUMIF($D:$D,D115,$L:$L)+SUMIF($D:$D,D115,$J:$J)-SUMIF($D:$D,D115,$K:$K) -> 0 | N115: =VLOOKUP(D:D,结存!A:J,10,0) -> 0 | O115: =M115 - N115 -> 0
A116: 2016-10-26 | D116: 578 | E116: =VLOOKUP($D:$D,基础资料!$A:B,2,0) -> 07020010 | F116: =VLOOKUP($D:$D,基础资料!$A:C,3,0) -> 蓝影-功夫熊猫21BD+2DVD | G116: =VLOOKUP($D:$D,基础资料!$A:D,4,0) -> 3 | H116: =VLOOKUP($D:$D,基础资料!$A:E,5,0) -> 套 | I116: =VLOOKUP($D:$D,基础资料!$A:F,6,0) -> 蓝光电影 | K116: 8 | M116: =SUMIF($D:$D,D116,$L:$L)+SUMIF($D:$D,D116,$J:$J)-SUMIF($D:$D,D116,$K:$K) -> 81 | N116: =VLOOKUP(D:D,结存!A:J,10,0) -> 81 | O116: =M116 - N116 -> 0
A117: 2016-10-26 | D117: 579 | E117: =VLOOKUP($D:$D,基础资料!$A:B,2,0) -> 07020011 | F117: =VLOOKUP($D:$D,基础资料!$A:C,3,0) -> 蓝影-功夫熊猫3 1BD+1DVD | G117: =VLOOKUP($D:$D,基础资料!$A:D,4,0) -> 2 | H117: =VLOOKUP($D:$D,基础资料!$A:E,5,0) -> 套 | I117: =VLOOKUP($D:$D,基础资料!$A:F,6,0) -> 蓝光电影 | K117: 8 | M117: =SUMIF($D:$D,D117,$L:$L)+SUMIF($D:$D,D117,$J:$J)-SUMIF($D:$D,D117,$K:$K) -> 67 | N117: =VLOOKUP(D:D,结存!A:J,10,0) -> 67 | O117: =M117 - N117 -> 0
A118: 2016-10-27 | B118: 10Y0055 | D118: 636 | E118: =VLOOKUP($D:$D,基础资料!$A:B,2,0) -> 0704000001 | F118: =VLOOKUP($D:$D,基础资料!$A:C,3,0) -> S-内识心理学 | G118: =VLOOKUP($D:$D,基础资料!$A:D,4,0) -> \ | H118: =VLOOKUP($D:$D,基础资料!$A:E,5,0) -> 本 | I118: =VLOOKUP($D:$D,基础资料!$A:F,6,0) -> 书本 | K118: 52 | M118: =SUMIF($D:$D,D118,$L:$L)+SUMIF($D:$D,D118,$J:$J)-SUMIF($D:$D,D118,$K:$K) -> 656 | N118: =VLOOKUP(D:D,结存!A:J,10,0) -> 656 | O118: =M118 - N118 -> 0
A119: 2016-10-27 | B119: 10Y0055 | D119: 637 | E119: =VLOOKUP($D:$D,基础资料!$A:B,2,0) -> 0704000002 | F119: =VLOOKUP($D:$D,基础资料!$A:C,3,0) -> S-项目评价 | G119: =VLOOKUP($D:$D,基础资料!$A:D,4,0) -> \ | H119: =VLOOKUP($D:$D,基础资料!$A:E,5,0) -> 本 | I119: =VLOOKUP($D:$D,基础资料!$A:F,6,0) -> 书本 | K119: 4 | M119: =SUMIF($D:$D,D119,$L:$L)+SUMIF($D:$D,D119,$J:$J)-SUMIF($D:$D,D119,$K:$K) -> 1877 | N119: =VLOOKUP(D:D,结存!A:J,10,0) -> 1877 | O119: =M119 - N119 -> 0
A120: 2016-10-27 | B120: 10Y0055 | D120: 639 | E120: =VLOOKUP($D:$D,基础资料!$A:B,2,0) -> 0704000004 | F120: =VLOOKUP($D:$D,基础资料!$A:C,3,0) -> S-电器查询 | G120: =VLOOKUP($D:$D,基础资料!$A:D,4,0) -> \ | H120: =VLOOKUP($D:$D,基础资料!$A:E,5,0) -> 本 | I120: =VLOOKUP($D:$D,基础资料!$A:F,6,0) -> 书本 | K120: 15 | M120: =SUMIF($D:$D,D120,$L:$L)+SUMIF($D:$D,D120,$J:$J)-SUMIF($D:$D,D120,$K:$K) -> 223 | N120: =VLOOKUP(D:D,结存!A:J,10,0) -> 223 | O120: =M120 - N120 -> 0
A121: 2016-10-27 | B121: 10Y0055 | D121: 640 | E121: =VLOOKUP($D:$D,基础资料!$A:B,2,0) -> 0704000035 | F121: =VLOOKUP($D:$D,基础资料!$A:C,3,0) -> S-商业：一个不断变化的世界 | G121: =VLOOKUP($D:$D,基础资料!$A:D,4,0) -> \ | H121: =VLOOKUP($D:$D,基础资料!$A:E,5,0) -> 本 | I121: =VLOOKUP($D:$D,基础资料!$A:F,6,0) -> 书本 | K121: 3 | M121: =SUMIF($D:$D,D121,$L:$L)+SUMIF($D:$D,D121,$J:$J)-SUMIF($D:$D,D121,$K:$K) -> 474 | N121: =VLOOKUP(D:D,结存!A:J,10,0) -> 474 | O121: =M121 - N121 -> 0
A122: 2016-10-27 | B122: 10Y0055 | D122: 641 | E122: =VLOOKUP($D:$D,基础资料!$A:B,2,0) -> 0704000036 | F122: =VLOOKUP($D:$D,基础资料!$A:C,3,0) -> S-我们的人民 | G122: =VLOOKUP($D:$D,基础资料!$A:D,4,0) -> \ | H122: =VLOOKUP($D:$D,基础资料!$A:E,5,0) -> 本 | I122: =VLOOKUP($D:$D,基础资料!$A:F,6,0) -> 书本 | K122: 3 | M122: =SUMIF($D:$D,D122,$L:$L)+SUMIF($D:$D,D122,$J:$J)-SUMIF($D:$D,D122,$K:$K) -> 2685 | N122: =VLOOKUP(D:D,结存!A:J,10,0) -> 2685 | O122: =M122 - N122 -> 0
A123: 2016-10-27 | B123: 10Y0054 | D123: 644 | E123: =VLOOKUP($D:$D,基础资料!$A:B,2,0) -> 0704000293 | F123: =VLOOKUP($D:$D,基础资料!$A:C,3,0) -> S-环境经济学 | G123: =VLOOKUP($D:$D,基础资料!$A:D,4,0) -> \ | H123: =VLOOKUP($D:$D,基础资料!$A:E,5,0) -> 本 | I123: =VLOOKUP($D:$D,基础资料!$A:F,6,0) -> 书本 | M123: =SUMIF($D:$D,D123,$L:$L)+SUMIF($D:$D,D123,$J:$J)-SUMIF($D:$D,D123,$K:$K) -> 419 | N123: =VLOOKUP(D:D,结存!A:J,10,0) -> 419 | O123: =M123 - N123 -> 0
A124: 2016-10-27 | B124: 10Y0054 | D124: 644 | E124: =VLOOKUP($D:$D,基础资料!$A:B,2,0) -> 0704000293 | F124: =VLOOKUP($D:$D,基础资料!$A:C,3,0) -> S-环境经济学 | G124: =VLOOKUP($D:$D,基础资料!$A:D,4,0) -> \ | H124: =VLOOKUP($D:$D,基础资料!$A:E,5,0) -> 本 | I124: =VLOOKUP($D:$D,基础资料!$A:F,6,0) -> 书本 | K124: 36 | M124: =SUMIF($D:$D,D124,$L:$L)+SUMIF($D:$D,D124,$J:$J)-SUMIF($D:$D,D124,$K:$K) -> 419 | N124: =VLOOKUP(D:D,结存!A:J,10,0) -> 419 | O124: =M124 - N124 -> 0
A125: 2016-10-27 | B125: 10Y0055 | D125: 649 | E125: =VLOOKUP($D:$D,基础资料!$A:B,2,0) -> 07040007 | F125: =VLOOKUP($D:$D,基础资料!$A:C,3,0) -> S-行为研究方法 | G125: =VLOOKUP($D:$D,基础资料!$A:D,4,0) -> \ | H125: =VLOOKUP($D:$D,基础资料!$A:E,5,0) -> 本 | I125: =VLOOKUP($D:$D,基础资料!$A:F,6,0) -> 书本 | K125: 3 | M125: =SUMIF($D:$D,D125,$L:$L)+SUMIF($D:$D,D125,$J:$J)-SUMIF($D:$D,D125,$K:$K) -> 4577 | N125: =VLOOKUP(D:D,结存!A:J,10,0) -> 4577 | O125: =M125 - N125 -> 0
A126: 2016-10-27 | B126: 10Y0055 | D126: 654 | E126: =VLOOKUP($D:$D,基础资料!$A:B,2,0) -> 07040012 | F126: =VLOOKUP($D:$D,基础资料!$A:C,3,0) -> S-实践研究 | G126: =VLOOKUP($D:$D,基础资料!$A:D,4,0) -> \ | H126: =VLOOKUP($D:$D,基础资料!$A:E,5,0) -> 本 | I126: =VLOOKUP($D:$D,基础资料!$A:F,6,0) -> 书本 | K126: 3 | M126: =SUMIF($D:$D,D126,$L:$L)+SUMIF($D:$D,D126,$J:$J)-SUMIF($D:$D,D126,$K:$K) -> 1966 | N126: =VLOOKUP(D:D,结存!A:J,10,0) -> 1966 | O126: =M126 - N126 -> 0
A127: 2016-10-27 | B127: 10Y0055 | D127: 661 | E127: =VLOOKUP($D:$D,基础资料!$A:B,2,0) -> 07040019 | F127: =VLOOKUP($D:$D,基础资料!$A:C,3,0) -> S-美国药疗保健 | G127: =VLOOKUP($D:$D,基础资料!$A:D,4,0) -> \ | H127: =VLOOKUP($D:$D,基础资料!$A:E,5,0) -> 本 | I127: =VLOOKUP($D:$D,基础资料!$A:F,6,0) -> 书本 | K127: 3 | M127: =SUMIF($D:$D,D127,$L:$L)+SUMIF($D:$D,D127,$J:$J)-SUMIF($D:$D,D127,$K:$K) -> 975 | N127: =VLOOKUP(D:D,结存!A:J,10,0) -> 975 | O127: =M127 - N127 -> 0
A128: 2016-10-28 | B128: 10Y0056 | D128: 645 | E128: =VLOOKUP($D:$D,基础资料!$A:B,2,0) -> 07040003 | F128: =VLOOKUP($D:$D,基础资料!$A:C,3,0) -> S-公共演讲的艺术 | G128: =VLOOKUP($D:$D,基础资料!$A:D,4,0) -> \ | H128: =VLOOKUP($D:$D,基础资料!$A:E,5,0) -> 本 | I128: =VLOOKUP($D:$D,基础资料!$A:F,6,0) -> 书本 | K128: 10 | M128: =SUMIF($D:$D,D128,$L:$L)+SUMIF($D:$D,D128,$J:$J)-SUMIF($D:$D,D128,$K:$K) -> 1403 | N128: =VLOOKUP(D:D,结存!A:J,10,0) -> 1403 | O128: =M128 - N128 -> 0
A129: 2016-10-28 | B129: 10Y0056 | D129: 637 | E129: =VLOOKUP($D:$D,基础资料!$A:B,2,0) -> 0704000002 | F129: =VLOOKUP($D:$D,基础资料!$A:C,3,0) -> S-项目评价 | G129: =VLOOKUP($D:$D,基础资料!$A:D,4,0) -> \ | H129: =VLOOKUP($D:$D,基础资料!$A:E,5,0) -> 本 | I129: =VLOOKUP($D:$D,基础资料!$A:F,6,0) -> 书本 | K129: 10 | M129: =SUMIF($D:$D,D129,$L:$L)+SUMIF($D:$D,D129,$J:$J)-SUMIF($D:$D,D129,$K:$K) -> 1877 | N129: =VLOOKUP(D:D,结存!A:J,10,0) -> 1877 | O129: =M129 - N129 -> 0
A130: 2016-10-28 | B130: 10Y0056 | D130: 636 | E130: =VLOOKUP($D:$D,基础资料!$A:B,2,0) -> 0704000001 | F130: =VLOOKUP($D:$D,基础资料!$A:C,3,0) -> S-内识心理学 | G130: =VLOOKUP($D:$D,基础资料!$A:D,4,0) -> \ | H130: =VLOOKUP($D:$D,基础资料!$A:E,5,0) -> 本 | I130: =VLOOKUP($D:$D,基础资料!$A:F,6,0) -> 书本 | K130: 10 | M130: =SUMIF($D:$D,D130,$L:$L)+SUMIF($D:$D,D130,$J:$J)-SUMIF($D:$D,D130,$K:$K) -> 656 | N130: =VLOOKUP(D:D,结存!A:J,10,0) -> 656 | O130: =M130 - N130 -> 0
A131: 2016-10-28 | B131: 10Y0056 | D131: 652 | E131: =VLOOKUP($D:$D,基础资料!$A:B,2,0) -> 07040010 | F131: =VLOOKUP($D:$D,基础资料!$A:C,3,0) -> S-管理技能养成 | G131: =VLOOKUP($D:$D,基础资料!$A:D,4,0) -> \ | H131: =VLOOKUP($D:$D,基础资料!$A:E,5,0) -> 本 | I131: =VLOOKUP($D:$D,基础资料!$A:F,6,0) -> 书本 | K131: 10 | M131: =SUMIF($D:$D,D131,$L:$L)+SUMIF($D:$D,D131,$J:$J)-SUMIF($D:$D,D131,$K:$K) -> 292 | N131: =VLOOKUP(D:D,结存!A:J,10,0) -> 292 | O131: =M131 - N131 -> 0
A132: 2016-10-28 | B132: 10Y0056 | D132: 640 | E132: =VLOOKUP($D:$D,基础资料!$A:B,2,0) -> 0704000035 | F132: =VLOOKUP($D:$D,基础资料!$A:C,3,0) -> S-商业：一个不断变化的世界 | G132: =VLOOKUP($D:$D,基础资料!$A:D,4,0) -> \ | H132: =VLOOKUP($D:$D,基础资料!$A:E,5,0) -> 本 | I132: =VLOOKUP($D:$D,基础资料!$A:F,6,0) -> 书本 | K132: 10 | M132: =SUMIF($D:$D,D132,$L:$L)+SUMIF($D:$D,D132,$J:$J)-SUMIF($D:$D,D132,$K:$K) -> 474 | N132: =VLOOKUP(D:D,结存!A:J,10,0) -> 474 | O132: =M132 - N132 -> 0
A133: 2016-10-28 | B133: 10Y0056 | D133: 650 | E133: =VLOOKUP($D:$D,基础资料!$A:B,2,0) -> 07040008 | F133: =VLOOKUP($D:$D,基础资料!$A:C,3,0) -> S-谈判精要 | G133: =VLOOKUP($D:$D,基础资料!$A:D,4,0) -> \ | H133: =VLOOKUP($D:$D,基础资料!$A:E,5,0) -> 本 | I133: =VLOOKUP($D:$D,基础资料!$A:F,6,0) -> 书本 | K133: 10 | M133: =SUMIF($D:$D,D133,$L:$L)+SUMIF($D:$D,D133,$J:$J)-SUMIF($D:$D,D133,$K:$K) -> 538 | N133: =VLOOKUP(D:D,结存!A:J,10,0) -> 538 | O133: =M133 - N133 -> 0
A134: 2016-10-28 | B134: 10Y0056 | D134: 641 | E134: =VLOOKUP($D:$D,基础资料!$A:B,2,0) -> 0704000036 | F134: =VLOOKUP($D:$D,基础资料!$A:C,3,0) -> S-我们的人民 | G134: =VLOOKUP($D:$D,基础资料!$A:D,4,0) -> \ | H134: =VLOOKUP($D:$D,基础资料!$A:E,5,0) -> 本 | I134: =VLOOKUP($D:$D,基础资料!$A:F,6,0) -> 书本 | K134: 15 | M134: =SUMIF($D:$D,D134,$L:$L)+SUMIF($D:$D,D134,$J:$J)-SUMIF($D:$D,D134,$K:$K) -> 2685 | N134: =VLOOKUP(D:D,结存!A:J,10,0) -> 2685 | O134: =M134 - N134 -> 0
A135: 2016-10-28 | B135: 10Y0056 | D135: 648 | E135: =VLOOKUP($D:$D,基础资料!$A:B,2,0) -> 07040006 | F135: =VLOOKUP($D:$D,基础资料!$A:C,3,0) -> S-大众传媒法 | G135: =VLOOKUP($D:$D,基础资料!$A:D,4,0) -> \ | H135: =VLOOKUP($D:$D,基础资料!$A:E,5,0) -> 本 | I135: =VLOOKUP($D:$D,基础资料!$A:F,6,0) -> 书本 | K135: 10 | M135: =SUMIF($D:$D,D135,$L:$L)+SUMIF($D:$D,D135,$J:$J)-SUMIF($D:$D,D135,$K:$K) -> 19 | N135: =VLOOKUP(D:D,结存!A:J,10,0) -> 19 | O135: =M135 - N135 -> 0
A136: 2016-10-28 | B136: 10Y0056 | D136: 663 | E136: =VLOOKUP($D:$D,基础资料!$A:B,2,0) -> 07040021 | F136: =VLOOKUP($D:$D,基础资料!$A:C,3,0) -> S-面试技巧 | G136: =VLOOKUP($D:$D,基础资料!$A:D,4,0) -> \ | H136: =VLOOKUP($D:$D,基础资料!$A:E,5,0) -> 本 | I136: =VLOOKUP($D:$D,基础资料!$A:F,6,0) -> 书本 | K136: 20 | M136: =SUMIF($D:$D,D136,$L:$L)+SUMIF($D:$D,D136,$J:$J)-SUMIF($D:$D,D136,$K:$K) -> 595 | N136: =VLOOKUP(D:D,结存!A:J,10,0) -> 595 | O136: =M136 - N136 -> 0
A137: 2016-10-28 | B137: 10Y0056 | D137: 636 | E137: =VLOOKUP($D:$D,基础资料!$A:B,2,0) -> 0704000001 | F137: =VLOOKUP($D:$D,基础资料!$A:C,3,0) -> S-内识心理学 | G137: =VLOOKUP($D:$D,基础资料!$A:D,4,0) -> \ | H137: =VLOOKUP($D:$D,基础资料!$A:E,5,0) -> 本 | I137: =VLOOKUP($D:$D,基础资料!$A:F,6,0) -> 书本 | K137: 2 | M137: =SUMIF($D:$D,D137,$L:$L)+SUMIF($D:$D,D137,$J:$J)-SUMIF($D:$D,D137,$K:$K) -> 656 | N137: =VLOOKUP(D:D,结存!A:J,10,0) -> 656 | O137: =M137 - N137 -> 0
A138: 2016-10-28 | B138: 10Y0056 | D138: 652 | E138: =VLOOKUP($D:$D,基础资料!$A:B,2,0) -> 07040010 | F138: =VLOOKUP($D:$D,基础资料!$A:C,3,0) -> S-管理技能养成 | G138: =VLOOKUP($D:$D,基础资料!$A:D,4,0) -> \ | H138: =VLOOKUP($D:$D,基础资料!$A:E,5,0) -> 本 | I138: =VLOOKUP($D:$D,基础资料!$A:F,6,0) -> 书本 | K138: 2 | M138: =SUMIF($D:$D,D138,$L:$L)+SUMIF($D:$D,D138,$J:$J)-SUMIF($D:$D,D138,$K:$K) -> 292 | N138: =VLOOKUP(D:D,结存!A:J,10,0) -> 292 | O138: =M138 - N138 -> 0
A139: 2016-10-28 | B139: 10Y0056 | D139: 637 | E139: =VLOOKUP($D:$D,基础资料!$A:B,2,0) -> 0704000002 | F139: =VLOOKUP($D:$D,基础资料!$A:C,3,0) -> S-项目评价 | G139: =VLOOKUP($D:$D,基础资料!$A:D,4,0) -> \ | H139: =VLOOKUP($D:$D,基础资料!$A:E,5,0) -> 本 | I139: =VLOOKUP($D:$D,基础资料!$A:F,6,0) -> 书本 | K139: 1 | M139: =SUMIF($D:$D,D139,$L:$L)+SUMIF($D:$D,D139,$J:$J)-SUMIF($D:$D,D139,$K:$K) -> 1877 | N139: =VLOOKUP(D:D,结存!A:J,10,0) -> 1877 | O139: =M139 - N139 -> 0
A140: 2016-10-28 | B140: 1080055 | D140: 536 | E140: =VLOOKUP($D:$D,基础资料!$A:B,2,0) -> 07010010 | F140: =VLOOKUP($D:$D,基础资料!$A:C,3,0) -> 蓝剧-黑色孤儿第1季 2BD | G140: =VLOOKUP($D:$D,基础资料!$A:D,4,0) -> 2 | H140: =VLOOKUP($D:$D,基础资料!$A:E,5,0) -> 套 | I140: =VLOOKUP($D:$D,基础资料!$A:F,6,0) -> 蓝光电视剧 | K140: 1 | M140: =SUMIF($D:$D,D140,$L:$L)+SUMIF($D:$D,D140,$J:$J)-SUMIF($D:$D,D140,$K:$K) -> 104 | N140: =VLOOKUP(D:D,结存!A:J,10,0) -> 85 | O140: =M140 - N140 -> 19
A141: 2016-10-28 | B141: 1080055 | D141: 537 | E141: =VLOOKUP($D:$D,基础资料!$A:B,2,0) -> 07010011 | F141: =VLOOKUP($D:$D,基础资料!$A:C,3,0) -> 蓝剧-黑色孤儿第2季 2BD | G141: =VLOOKUP($D:$D,基础资料!$A:D,4,0) -> 2 | H141: =VLOOKUP($D:$D,基础资料!$A:E,5,0) -> 套 | I141: =VLOOKUP($D:$D,基础资料!$A:F,6,0) -> 蓝光电视剧 | K141: 1 | M141: =SUMIF($D:$D,D141,$L:$L)+SUMIF($D:$D,D141,$J:$J)-SUMIF($D:$D,D141,$K:$K) -> 98 | N141: =VLOOKUP(D:D,结存!A:J,10,0) -> 79 | O141: =M141 - N141 -> 19
A142: 2016-10-28 | B142: 1080055 | D142: 539 | E142: =VLOOKUP($D:$D,基础资料!$A:B,2,0) -> 07010013 | F142: =VLOOKUP($D:$D,基础资料!$A:C,3,0) -> 蓝剧-黑色孤儿第3季 2BD | G142: =VLOOKUP($D:$D,基础资料!$A:D,4,0) -> 2 | H142: =VLOOKUP($D:$D,基础资料!$A:E,5,0) -> 套 | I142: =VLOOKUP($D:$D,基础资料!$A:F,6,0) -> 蓝光电视剧 | K142: 1 | M142: =SUMIF($D:$D,D142,$L:$L)+SUMIF($D:$D,D142,$J:$J)-SUMIF($D:$D,D142,$K:$K) -> 86 | N142: =VLOOKUP(D:D,结存!A:J,10,0) -> 86 | O142: =M142 - N142 -> 0
A143: 2016-10-28 | B143: 1080055 | D143: 541 | E143: =VLOOKUP($D:$D,基础资料!$A:B,2,0) -> 07010015 | F143: =VLOOKUP($D:$D,基础资料!$A:C,3,0) -> 蓝剧-黑色孤儿第4季 2BD | G143: =VLOOKUP($D:$D,基础资料!$A:D,4,0) -> 2 | H143: =VLOOKUP($D:$D,基础资料!$A:E,5,0) -> 套 | I143: =VLOOKUP($D:$D,基础资料!$A:F,6,0) -> 蓝光电视剧 | K143: 1 | M143: =SUMIF($D:$D,D143,$L:$L)+SUMIF($D:$D,D143,$J:$J)-SUMIF($D:$D,D143,$K:$K) -> 63 | N143: =VLOOKUP(D:D,结存!A:J,10,0) -> 63 | O143: =M143 - N143 -> 0
A144: 2016-10-28 | B144: 1080054 | D144: 573 | E144: =VLOOKUP($D:$D,基础资料!$A:B,2,0) -> 07020005 | F144: =VLOOKUP($D:$D,基础资料!$A:C,3,0) -> 蓝影-猫王:是这样的:特别版 1BD+1DVD | G144: =VLOOKUP($D:$D,基础资料!$A:D,4,0) -> 2 | H144: =VLOOKUP($D:$D,基础资料!$A:E,5,0) -> 套 | I144: =VLOOKUP($D:$D,基础资料!$A:F,6,0) -> 蓝光电影 | K144: 1 | M144: =SUMIF($D:$D,D144,$L:$L)+SUMIF($D:$D,D144,$J:$J)-SUMIF($D:$D,D144,$K:$K) -> 69 | N144: =VLOOKUP(D:D,结存!A:J,10,0) -> 69 | O144: =M144 - N144 -> 0
A145: 2016-10-28 | B145: 1080054 | D145: 588 | E145: =VLOOKUP($D:$D,基础资料!$A:B,2,0) -> 07020020 | F145: =VLOOKUP($D:$D,基础资料!$A:C,3,0) -> 蓝影-猫王-埃尔维斯之旅 1BD | G145: =VLOOKUP($D:$D,基础资料!$A:D,4,0) -> 1 | H145: =VLOOKUP($D:$D,基础资料!$A:E,5,0) -> 套 | I145: =VLOOKUP($D:$D,基础资料!$A:F,6,0) -> 蓝光电影 | K145: 1 | M145: =SUMIF($D:$D,D145,$L:$L)+SUMIF($D:$D,D145,$J:$J)-SUMIF($D:$D,D145,$K:$K) -> 96 | N145: =VLOOKUP(D:D,结存!A:J,10,0) -> 96 | O145: =M145 - N145 -> 0
A146: 2016-10-28 | D146: 583 | E146: =VLOOKUP($D:$D,基础资料!$A:B,2,0) -> 07020015 | F146: =VLOOKUP($D:$D,基础资料!$A:C,3,0) -> 蓝影-元气囝仔 2BD+2DVD | G146: =VLOOKUP($D:$D,基础资料!$A:D,4,0) -> 4 | H146: =VLOOKUP($D:$D,基础资料!$A:E,5,0) -> 套 | I146: =VLOOKUP($D:$D,基础资料!$A:F,6,0) -> 蓝光电影 | K146: 4 | M146: =SUMIF($D:$D,D146,$L:$L)+SUMIF($D:$D,D146,$J:$J)-SUMIF($D:$D,D146,$K:$K) -> 94 | N146: =VLOOKUP(D:D,结存!A:J,10,0) -> 94 | O146: =M146 - N146 -> 0
A147: 2016-10-28 | D147: 633 | E147: =VLOOKUP($D:$D,基础资料!$A:B,2,0) -> 07030009 | F147: =VLOOKUP($D:$D,基础资料!$A:C,3,0) -> 蓝卡-星际牛仔 4BD | G147: =VLOOKUP($D:$D,基础资料!$A:D,4,0) -> 4 | H147: =VLOOKUP($D:$D,基础资料!$A:E,5,0) -> 套 | I147: =VLOOKUP($D:$D,基础资料!$A:F,6,0) -> 蓝光卡通 | K147: 6 | M147: =SUMIF($D:$D,D147,$L:$L)+SUMIF($D:$D,D147,$J:$J)-SUMIF($D:$D,D147,$K:$K) -> 9 | N147: =VLOOKUP(D:D,结存!A:J,10,0) -> 9 | O147: =M147 - N147 -> 0
A148: 2016-10-28 | D148: 607 | E148: =VLOOKUP($D:$D,基础资料!$A:B,2,0) -> 07020039 | F148: =VLOOKUP($D:$D,基础资料!$A:C,3,0) -> 蓝影-钢之炼金术师：兄弟会（上） 4BD | G148: =VLOOKUP($D:$D,基础资料!$A:D,4,0) -> 4 | H148: =VLOOKUP($D:$D,基础资料!$A:E,5,0) -> 套 | I148: =VLOOKUP($D:$D,基础资料!$A:F,6,0) -> 蓝光电影 | K148: 4 | M148: =SUMIF($D:$D,D148,$L:$L)+SUMIF($D:$D,D148,$J:$J)-SUMIF($D:$D,D148,$K:$K) -> 72 | N148: =VLOOKUP(D:D,结存!A:J,10,0) -> 72 | O148: =M148 - N148 -> 0
A149: 2016-10-28 | D149: 608 | E149: =VLOOKUP($D:$D,基础资料!$A:B,2,0) -> 07020040 | F149: =VLOOKUP($D:$D,基础资料!$A:C,3,0) -> 蓝影-钢之炼金术师：兄弟会（下） 4BD | G149: =VLOOKUP($D:$D,基础资料!$A:D,4,0) -> 4 | H149: =VLOOKUP($D:$D,基础资料!$A:E,5,0) -> 套 | I149: =VLOOKUP($D:$D,基础资料!$A:F,6,0) -> 蓝光电影 | K149: 4 | M149: =SUMIF($D:$D,D149,$L:$L)+SUMIF($D:$D,D149,$J:$J)-SUMIF($D:$D,D149,$K:$K) -> 77 | N149: =VLOOKUP(D:D,结存!A:J,10,0) -> 77 | O149: =M149 - N149 -> 0
A150: 2016-10-28 | D150: 594 | E150: =VLOOKUP($D:$D,基础资料!$A:B,2,0) -> 07020026 | F150: =VLOOKUP($D:$D,基础资料!$A:C,3,0) -> 蓝影-耐撕侦探1BD+1DVD | G150: =VLOOKUP($D:$D,基础资料!$A:D,4,0) -> 2 | H150: =VLOOKUP($D:$D,基础资料!$A:E,5,0) -> 套 | I150: =VLOOKUP($D:$D,基础资料!$A:F,6,0) -> 蓝光电影 | J150: 10 | M150: =SUMIF($D:$D,D150,$L:$L)+SUMIF($D:$D,D150,$J:$J)-SUMIF($D:$D,D150,$K:$K) -> 95 | N150: =VLOOKUP(D:D,结存!A:J,10,0) -> 95 | O150: =M150 - N150 -> 0
A151: 2016-10-28 | D151: 594 | E151: =VLOOKUP($D:$D,基础资料!$A:B,2,0) -> 07020026 | F151: =VLOOKUP($D:$D,基础资料!$A:C,3,0) -> 蓝影-耐撕侦探1BD+1DVD | G151: =VLOOKUP($D:$D,基础资料!$A:D,4,0) -> 2 | H151: =VLOOKUP($D:$D,基础资料!$A:E,5,0) -> 套 | I151: =VLOOKUP($D:$D,基础资料!$A:F,6,0) -> 蓝光电影 | K151: 2 | M151: =SUMIF($D:$D,D151,$L:$L)+SUMIF($D:$D,D151,$J:$J)-SUMIF($D:$D,D151,$K:$K) -> 95 | N151: =VLOOKUP(D:D,结存!A:J,10,0) -> 95 | O151: =M151 - N151 -> 0
A152: 2016-10-28 | D152: 690 | E152: =VLOOKUP($D:$D,基础资料!$A:B,2,0) -> 0703000344 | F152: =VLOOKUP($D:$D,基础资料!$A:C,3,0) -> 瑞奇与叮当 | G152: =VLOOKUP($D:$D,基础资料!$A:D,4,0) -> \ | H152: =VLOOKUP($D:$D,基础资料!$A:E,5,0) -> 套 | I152: =VLOOKUP($D:$D,基础资料!$A:F,6,0) -> 蓝光卡通 | J152: 1 | M152: =SUMIF($D:$D,D152,$L:$L)+SUMIF($D:$D,D152,$J:$J)-SUMIF($D:$D,D152,$K:$K) -> 96 | N152: =VLOOKUP(D:D,结存!A:J,10,0) -> 96 | O152: =M152 - N152 -> 0
A153: 2016-10-28 | B153: 1080065 | D153: 690 | E153: =VLOOKUP($D:$D,基础资料!$A:B,2,0) -> 0703000344 | F153: =VLOOKUP($D:$D,基础资料!$A:C,3,0) -> 瑞奇与叮当 | G153: =VLOOKUP($D:$D,基础资料!$A:D,4,0) -> \ | H153: =VLOOKUP($D:$D,基础资料!$A:E,5,0) -> 套 | I153: =VLOOKUP($D:$D,基础资料!$A:F,6,0) -> 蓝光卡通 | K153: 1 | M153: =SUMIF($D:$D,D153,$L:$L)+SUMIF($D:$D,D153,$J:$J)-SUMIF($D:$D,D153,$K:$K) -> 96 | N153: =VLOOKUP(D:D,结存!A:J,10,0) -> 96 | O153: =M153 - N153 -> 0
A154: 2016-10-28 | D154: 635 | E154: =VLOOKUP($D:$D,基础资料!$A:B,2,0) -> 07030011 | F154: =VLOOKUP($D:$D,基础资料!$A:C,3,0) -> 蓝卡-凉宫春日的消失 1BD+2DVD | G154: =VLOOKUP($D:$D,基础资料!$A:D,4,0) -> \ | H154: =VLOOKUP($D:$D,基础资料!$A:E,5,0) -> 套 | I154: =VLOOKUP($D:$D,基础资料!$A:F,6,0) -> 蓝光卡通 | J154: 4 | M154: =SUMIF($D:$D,D154,$L:$L)+SUMIF($D:$D,D154,$J:$J)-SUMIF($D:$D,D154,$K:$K) -> 95 | N154: =VLOOKUP(D:D,结存!A:J,10,0) -> 95 | O154: =M154 - N154 -> 0
A155: 2016-10-28 | D155: 635 | E155: =VLOOKUP($D:$D,基础资料!$A:B,2,0) -> 07030011 | F155: =VLOOKUP($D:$D,基础资料!$A:C,3,0) -> 蓝卡-凉宫春日的消失 1BD+2DVD | G155: =VLOOKUP($D:$D,基础资料!$A:D,4,0) -> \ | H155: =VLOOKUP($D:$D,基础资料!$A:E,5,0) -> 套 | I155: =VLOOKUP($D:$D,基础资料!$A:F,6,0) -> 蓝光卡通 | K155: 4 | M155: =SUMIF($D:$D,D155,$L:$L)+SUMIF($D:$D,D155,$J:$J)-SUMIF($D:$D,D155,$K:$K) -> 95 | N155: =VLOOKUP(D:D,结存!A:J,10,0) -> 95 | O155: =M155 - N155 -> 0
A156: 2016-10-28 | B156: 1080060 | D156: 526 | E156: =VLOOKUP($D:$D,基础资料!$A:B,2,0) -> 07010001 | F156: =VLOOKUP($D:$D,基础资料!$A:C,3,0) -> 蓝剧-地球百子第3季 4BD | G156: =VLOOKUP($D:$D,基础资料!$A:D,4,0) -> 4 | H156: =VLOOKUP($D:$D,基础资料!$A:E,5,0) -> 套 | I156: =VLOOKUP($D:$D,基础资料!$A:F,6,0) -> 蓝光电视剧 | K156: 1 | M156: =SUMIF($D:$D,D156,$L:$L)+SUMIF($D:$D,D156,$J:$J)-SUMIF($D:$D,D156,$K:$K) -> 19 | N156: =VLOOKUP(D:D,结存!A:J,10,0) -> 19 | O156: =M156 - N156 -> 0
A157: 2016-10-28 | B157: 1080060 | D157: 533 | E157: =VLOOKUP($D:$D,基础资料!$A:B,2,0) -> 07010006 | F157: =VLOOKUP($D:$D,基础资料!$A:C,3,0) -> 蓝剧-冰血暴第2季 3BD | G157: =VLOOKUP($D:$D,基础资料!$A:D,4,0) -> 3 | H157: =VLOOKUP($D:$D,基础资料!$A:E,5,0) -> 套 | I157: =VLOOKUP($D:$D,基础资料!$A:F,6,0) -> 蓝光电视剧 | K157: 2 | M157: =SUMIF($D:$D,D157,$L:$L)+SUMIF($D:$D,D157,$J:$J)-SUMIF($D:$D,D157,$K:$K) -> 89 | N157: =VLOOKUP(D:D,结存!A:J,10,0) -> 70 | O157: =M157 - N157 -> 19
A158: 2016-10-29 | B158: 1080062 | D158: 611 | E158: =VLOOKUP($D:$D,基础资料!$A:B,2,0) -> 07020043 | F158: =VLOOKUP($D:$D,基础资料!$A:C,3,0) -> 蓝影-狼厅 3BD | G158: =VLOOKUP($D:$D,基础资料!$A:D,4,0) -> 3 | H158: =VLOOKUP($D:$D,基础资料!$A:E,5,0) -> 套 | I158: =VLOOKUP($D:$D,基础资料!$A:F,6,0) -> 蓝光电影 | K158: 1 | M158: =SUMIF($D:$D,D158,$L:$L)+SUMIF($D:$D,D158,$J:$J)-SUMIF($D:$D,D158,$K:$K) -> 74 | N158: =VLOOKUP(D:D,结存!A:J,10,0) -> 74 | O158: =M158 - N158 -> 0
A159: 2016-10-29 | B159: 1080061 | D159: 537 | E159: =VLOOKUP($D:$D,基础资料!$A:B,2,0) -> 07010011 | F159: =VLOOKUP($D:$D,基础资料!$A:C,3,0) -> 蓝剧-黑色孤儿第2季 2BD | G159: =VLOOKUP($D:$D,基础资料!$A:D,4,0) -> 2 | H159: =VLOOKUP($D:$D,基础资料!$A:E,5,0) -> 套 | I159: =VLOOKUP($D:$D,基础资料!$A:F,6,0) -> 蓝光电视剧 | K159: 5 | M159: =SUMIF($D:$D,D159,$L:$L)+SUMIF($D:$D,D159,$J:$J)-SUMIF($D:$D,D159,$K:$K) -> 98 | N159: =VLOOKUP(D:D,结存!A:J,10,0) -> 79 | O159: =M159 - N159 -> 19
A160: 2016-10-29 | B160: 1080061 | D160: 541 | E160: =VLOOKUP($D:$D,基础资料!$A:B,2,0) -> 07010015 | F160: =VLOOKUP($D:$D,基础资料!$A:C,3,0) -> 蓝剧-黑色孤儿第4季 2BD | G160: =VLOOKUP($D:$D,基础资料!$A:D,4,0) -> 2 | H160: =VLOOKUP($D:$D,基础资料!$A:E,5,0) -> 套 | I160: =VLOOKUP($D:$D,基础资料!$A:F,6,0) -> 蓝光电视剧 | K160: 5 | M160: =SUMIF($D:$D,D160,$L:$L)+SUMIF($D:$D,D160,$J:$J)-SUMIF($D:$D,D160,$K:$K) -> 63 | N160: =VLOOKUP(D:D,结存!A:J,10,0) -> 63 | O160: =M160 - N160 -> 0
A161: 2016-10-29 | B161: 10Y0058 | D161: 637 | E161: =VLOOKUP($D:$D,基础资料!$A:B,2,0) -> 0704000002 | F161: =VLOOKUP($D:$D,基础资料!$A:C,3,0) -> S-项目评价 | G161: =VLOOKUP($D:$D,基础资料!$A:D,4,0) -> \ | H161: =VLOOKUP($D:$D,基础资料!$A:E,5,0) -> 本 | I161: =VLOOKUP($D:$D,基础资料!$A:F,6,0) -> 书本 | K161: 80 | M161: =SUMIF($D:$D,D161,$L:$L)+SUMIF($D:$D,D161,$J:$J)-SUMIF($D:$D,D161,$K:$K) -> 1877 | N161: =VLOOKUP(D:D,结存!A:J,10,0) -> 1877 | O161: =M161 - N161 -> 0
A162: 2016-10-29 | B162: 10Y0058 | D162: 668 | E162: =VLOOKUP($D:$D,基础资料!$A:B,2,0) -> 07040026 | F162: =VLOOKUP($D:$D,基础资料!$A:C,3,0) -> S-团体咨询 | G162: =VLOOKUP($D:$D,基础资料!$A:D,4,0) -> \ | H162: =VLOOKUP($D:$D,基础资料!$A:E,5,0) -> 本 | I162: =VLOOKUP($D:$D,基础资料!$A:F,6,0) -> 书本 | K162: 30 | M162: =SUMIF($D:$D,D162,$L:$L)+SUMIF($D:$D,D162,$J:$J)-SUMIF($D:$D,D162,$K:$K) -> 1473 | N162: =VLOOKUP(D:D,结存!A:J,10,0) -> 1473 | O162: =M162 - N162 -> 0
A163: 2016-10-29 | B163: 10Y0058 | D163: 638 | E163: =VLOOKUP($D:$D,基础资料!$A:B,2,0) -> 0704000003 | F163: =VLOOKUP($D:$D,基础资料!$A:C,3,0) -> S-人格理论 | G163: =VLOOKUP($D:$D,基础资料!$A:D,4,0) -> \ | H163: =VLOOKUP($D:$D,基础资料!$A:E,5,0) -> 本 | I163: =VLOOKUP($D:$D,基础资料!$A:F,6,0) -> 书本 | K163: 10 | M163: =SUMIF($D:$D,D163,$L:$L)+SUMIF($D:$D,D163,$J:$J)-SUMIF($D:$D,D163,$K:$K) -> 523 | N163: =VLOOKUP(D:D,结存!A:J,10,0) -> 523 | O163: =M163 - N163 -> 0
A164: 2016-10-29 | B164: 10Y0058 | D164: 640 | E164: =VLOOKUP($D:$D,基础资料!$A:B,2,0) -> 0704000035 | F164: =VLOOKUP($D:$D,基础资料!$A:C,3,0) -> S-商业：一个不断变化的世界 | G164: =VLOOKUP($D:$D,基础资料!$A:D,4,0) -> \ | H164: =VLOOKUP($D:$D,基础资料!$A:E,5,0) -> 本 | I164: =VLOOKUP($D:$D,基础资料!$A:F,6,0) -> 书本 | K164: 25 | M164: =SUMIF($D:$D,D164,$L:$L)+SUMIF($D:$D,D164,$J:$J)-SUMIF($D:$D,D164,$K:$K) -> 474 | N164: =VLOOKUP(D:D,结存!A:J,10,0) -> 474 | O164: =M164 - N164 -> 0
A165: 2016-10-29 | B165: 10Y0058 | D165: 652 | E165: =VLOOKUP($D:$D,基础资料!$A:B,2,0) -> 07040010 | F165: =VLOOKUP($D:$D,基础资料!$A:C,3,0) -> S-管理技能养成 | G165: =VLOOKUP($D:$D,基础资料!$A:D,4,0) -> \ | H165: =VLOOKUP($D:$D,基础资料!$A:E,5,0) -> 本 | I165: =VLOOKUP($D:$D,基础资料!$A:F,6,0) -> 书本 | K165: 20 | M165: =SUMIF($D:$D,D165,$L:$L)+SUMIF($D:$D,D165,$J:$J)-SUMIF($D:$D,D165,$K:$K) -> 292 | N165: =VLOOKUP(D:D,结存!A:J,10,0) -> 292 | O165: =M165 - N165 -> 0
A166: 2016-10-29 | B166: 10Y0058 | D166: 636 | E166: =VLOOKUP($D:$D,基础资料!$A:B,2,0) -> 0704000001 | F166: =VLOOKUP($D:$D,基础资料!$A:C,3,0) -> S-内识心理学 | G166: =VLOOKUP($D:$D,基础资料!$A:D,4,0) -> \ | H166: =VLOOKUP($D:$D,基础资料!$A:E,5,0) -> 本 | I166: =VLOOKUP($D:$D,基础资料!$A:F,6,0) -> 书本 | K166: 51 | M166: =SUMIF($D:$D,D166,$L:$L)+SUMIF($D:$D,D166,$J:$J)-SUMIF($D:$D,D166,$K:$K) -> 656 | N166: =VLOOKUP(D:D,结存!A:J,10,0) -> 656 | O166: =M166 - N166 -> 0
A167: 2016-10-29 | B167: 10Y0058 | D167: 654 | E167: =VLOOKUP($D:$D,基础资料!$A:B,2,0) -> 07040012 | F167: =VLOOKUP($D:$D,基础资料!$A:C,3,0) -> S-实践研究 | G167: =VLOOKUP($D:$D,基础资料!$A:D,4,0) -> \ | H167: =VLOOKUP($D:$D,基础资料!$A:E,5,0) -> 本 | I167: =VLOOKUP($D:$D,基础资料!$A:F,6,0) -> 书本 | K167: 30 | M167: =SUMIF($D:$D,D167,$L:$L)+SUMIF($D:$D,D167,$J:$J)-SUMIF($D:$D,D167,$K:$K) -> 1966 | N167: =VLOOKUP(D:D,结存!A:J,10,0) -> 1966 | O167: =M167 - N167 -> 0
A168: 2016-10-29 | B168: 10Y0058 | D168: 661 | E168: =VLOOKUP($D:$D,基础资料!$A:B,2,0) -> 07040019 | F168: =VLOOKUP($D:$D,基础资料!$A:C,3,0) -> S-美国药疗保健 | G168: =VLOOKUP($D:$D,基础资料!$A:D,4,0) -> \ | H168: =VLOOKUP($D:$D,基础资料!$A:E,5,0) -> 本 | I168: =VLOOKUP($D:$D,基础资料!$A:F,6,0) -> 书本 | K168: 40 | M168: =SUMIF($D:$D,D168,$L:$L)+SUMIF($D:$D,D168,$J:$J)-SUMIF($D:$D,D168,$K:$K) -> 975 | N168: =VLOOKUP(D:D,结存!A:J,10,0) -> 975 | O168: =M168 - N168 -> 0
A169: 2016-10-29 | B169: 10Y0058 | D169: 641 | E169: =VLOOKUP($D:$D,基础资料!$A:B,2,0) -> 0704000036 | F169: =VLOOKUP($D:$D,基础资料!$A:C,3,0) -> S-我们的人民 | G169: =VLOOKUP($D:$D,基础资料!$A:D,4,0) -> \ | H169: =VLOOKUP($D:$D,基础资料!$A:E,5,0) -> 本 | I169: =VLOOKUP($D:$D,基础资料!$A:F,6,0) -> 书本 | K169: 25 | M169: =SUMIF($D:$D,D169,$L:$L)+SUMIF($D:$D,D169,$J:$J)-SUMIF($D:$D,D169,$K:$K) -> 2685 | N169: =VLOOKUP(D:D,结存!A:J,10,0) -> 2685 | O169: =M169 - N169 -> 0
A170: 2016-10-29 | B170: 10Y0058 | D170: 649 | E170: =VLOOKUP($D:$D,基础资料!$A:B,2,0) -> 07040007 | F170: =VLOOKUP($D:$D,基础资料!$A:C,3,0) -> S-行为研究方法 | G170: =VLOOKUP($D:$D,基础资料!$A:D,4,0) -> \ | H170: =VLOOKUP($D:$D,基础资料!$A:E,5,0) -> 本 | I170: =VLOOKUP($D:$D,基础资料!$A:F,6,0) -> 书本 | K170: 20 | M170: =SUMIF($D:$D,D170,$L:$L)+SUMIF($D:$D,D170,$J:$J)-SUMIF($D:$D,D170,$K:$K) -> 4577 | N170: =VLOOKUP(D:D,结存!A:J,10,0) -> 4577 | O170: =M170 - N170 -> 0
A171: 2016-10-29 | B171: 10Y0058 | D171: 667 | E171: =VLOOKUP($D:$D,基础资料!$A:B,2,0) -> 07040025 | F171: =VLOOKUP($D:$D,基础资料!$A:C,3,0) -> S-临床评估工作簿 | G171: =VLOOKUP($D:$D,基础资料!$A:D,4,0) -> \ | H171: =VLOOKUP($D:$D,基础资料!$A:E,5,0) -> 本 | I171: =VLOOKUP($D:$D,基础资料!$A:F,6,0) -> 书本 | K171: 20 | M171: =SUMIF($D:$D,D171,$L:$L)+SUMIF($D:$D,D171,$J:$J)-SUMIF($D:$D,D171,$K:$K) -> 2338 | N171: =VLOOKUP(D:D,结存!A:J,10,0) -> 2338 | O171: =M171 - N171 -> 0
A172: 2016-10-29 | B172: 10Y0058 | D172: 645 | E172: =VLOOKUP($D:$D,基础资料!$A:B,2,0) -> 07040003 | F172: =VLOOKUP($D:$D,基础资料!$A:C,3,0) -> S-公共演讲的艺术 | G172: =VLOOKUP($D:$D,基础资料!$A:D,4,0) -> \ | H172: =VLOOKUP($D:$D,基础资料!$A:E,5,0) -> 本 | I172: =VLOOKUP($D:$D,基础资料!$A:F,6,0) -> 书本 | K172: 10 | M172: =SUMIF($D:$D,D172,$L:$L)+SUMIF($D:$D,D172,$J:$J)-SUMIF($D:$D,D172,$K:$K) -> 1403 | N172: =VLOOKUP(D:D,结存!A:J,10,0) -> 1403 | O172: =M172 - N172 -> 0
A173: 2016-10-29 | B173: 10Y0058 | D173: 650 | E173: =VLOOKUP($D:$D,基础资料!$A:B,2,0) -> 07040008 | F173: =VLOOKUP($D:$D,基础资料!$A:C,3,0) -> S-谈判精要 | G173: =VLOOKUP($D:$D,基础资料!$A:D,4,0) -> \ | H173: =VLOOKUP($D:$D,基础资料!$A:E,5,0) -> 本 | I173: =VLOOKUP($D:$D,基础资料!$A:F,6,0) -> 书本 | K173: 20 | M173: =SUMIF($D:$D,D173,$L:$L)+SUMIF($D:$D,D173,$J:$J)-SUMIF($D:$D,D173,$K:$K) -> 538 | N173: =VLOOKUP(D:D,结存!A:J,10,0) -> 538 | O173: =M173 - N173 -> 0
A174: 2016-10-29 | B174: 0000000012 | D174: 637 | E174: =VLOOKUP($D:$D,基础资料!$A:B,2,0) -> 0704000002 | F174: =VLOOKUP($D:$D,基础资料!$A:C,3,0) -> S-项目评价 | G174: =VLOOKUP($D:$D,基础资料!$A:D,4,0) -> \ | H174: =VLOOKUP($D:$D,基础资料!$A:E,5,0) -> 本 | I174: =VLOOKUP($D:$D,基础资料!$A:F,6,0) -> 书本 | J174: 2021 | M174: =SUMIF($D:$D,D174,$L:$L)+SUMIF($D:$D,D174,$J:$J)-SUMIF($D:$D,D174,$K:$K) -> 1877 | N174: =VLOOKUP(D:D,结存!A:J,10,0) -> 1877 | O174: =M174 - N174 -> 0
A175: 2016-10-29 | B175: 10Y0057 | D175: 638 | E175: =VLOOKUP($D:$D,基础资料!$A:B,2,0) -> 0704000003 | F175: =VLOOKUP($D:$D,基础资料!$A:C,3,0) -> S-人格理论 | G175: =VLOOKUP($D:$D,基础资料!$A:D,4,0) -> \ | H175: =VLOOKUP($D:$D,基础资料!$A:E,5,0) -> 本 | I175: =VLOOKUP($D:$D,基础资料!$A:F,6,0) -> 书本 | K175: 50 | M175: =SUMIF($D:$D,D175,$L:$L)+SUMIF($D:$D,D175,$J:$J)-SUMIF($D:$D,D175,$K:$K) -> 523 | N175: =VLOOKUP(D:D,结存!A:J,10,0) -> 523 | O175: =M175 - N175 -> 0
A176: 2016-10-29 | B176: 10Y0057 | D176: 652 | E176: =VLOOKUP($D:$D,基础资料!$A:B,2,0) -> 07040010 | F176: =VLOOKUP($D:$D,基础资料!$A:C,3,0) -> S-管理技能养成 | G176: =VLOOKUP($D:$D,基础资料!$A:D,4,0) -> \ | H176: =VLOOKUP($D:$D,基础资料!$A:E,5,0) -> 本 | I176: =VLOOKUP($D:$D,基础资料!$A:F,6,0) -> 书本 | K176: 50 | M176: =SUMIF($D:$D,D176,$L:$L)+SUMIF($D:$D,D176,$J:$J)-SUMIF($D:$D,D176,$K:$K) -> 292 | N176: =VLOOKUP(D:D,结存!A:J,10,0) -> 292 | O176: =M176 - N176 -> 0
A177: 2016-10-30 | D177: 635 | E177: =VLOOKUP($D:$D,基础资料!$A:B,2,0) -> 07030011 | F177: =VLOOKUP($D:$D,基础资料!$A:C,3,0) -> 蓝卡-凉宫春日的消失 1BD+2DVD | G177: =VLOOKUP($D:$D,基础资料!$A:D,4,0) -> \ | H177: =VLOOKUP($D:$D,基础资料!$A:E,5,0) -> 套 | I177: =VLOOKUP($D:$D,基础资料!$A:F,6,0) -> 蓝光卡通 | J177: 95 | M177: =SUMIF($D:$D,D177,$L:$L)+SUMIF($D:$D,D177,$J:$J)-SUMIF($D:$D,D177,$K:$K) -> 95 | N177: =VLOOKUP(D:D,结存!A:J,10,0) -> 95 | O177: =M177 - N177 -> 0
A178: 2016-10-30 | D178: 690 | E178: =VLOOKUP($D:$D,基础资料!$A:B,2,0) -> 0703000344 | F178: =VLOOKUP($D:$D,基础资料!$A:C,3,0) -> 瑞奇与叮当 | G178: =VLOOKUP($D:$D,基础资料!$A:D,4,0) -> \ | H178: =VLOOKUP($D:$D,基础资料!$A:E,5,0) -> 套 | I178: =VLOOKUP($D:$D,基础资料!$A:F,6,0) -> 蓝光卡通 | J178: 97 | M178: =SUMIF($D:$D,D178,$L:$L)+SUMIF($D:$D,D178,$J:$J)-SUMIF($D:$D,D178,$K:$K) -> 96 | N178: =VLOOKUP(D:D,结存!A:J,10,0) -> 96 | O178: =M178 - N178 -> 0
A179: 2016-10-30 | D179: 568 | E179: =VLOOKUP($D:$D,基础资料!$A:B,2,0) -> 0702000032 | F179: =VLOOKUP($D:$D,基础资料!$A:C,3,0) -> 蓝影年轻气盛1BD | G179: =VLOOKUP($D:$D,基础资料!$A:D,4,0) -> 1 | H179: =VLOOKUP($D:$D,基础资料!$A:E,5,0) -> 套 | I179: =VLOOKUP($D:$D,基础资料!$A:F,6,0) -> 蓝光电影 | J179: 98 | M179: =SUMIF($D:$D,D179,$L:$L)+SUMIF($D:$D,D179,$J:$J)-SUMIF($D:$D,D179,$K:$K) -> 95 | N179: =VLOOKUP(D:D,结存!A:J,10,0) -> 95 | O179: =M179 - N179 -> 0
A180: 2016-10-30 | D180: 689 | E180: =VLOOKUP($D:$D,基础资料!$A:B,2,0) -> 0701000349 | F180: =VLOOKUP($D:$D,基础资料!$A:C,3,0) -> 奥丽芙.基特里奇2BD | G180: =VLOOKUP($D:$D,基础资料!$A:D,4,0) -> \ | H180: =VLOOKUP($D:$D,基础资料!$A:E,5,0) -> 套 | I180: =VLOOKUP($D:$D,基础资料!$A:F,6,0) -> 蓝光电视剧 | J180: 98 | M180: =SUMIF($D:$D,D180,$L:$L)+SUMIF($D:$D,D180,$J:$J)-SUMIF($D:$D,D180,$K:$K) -> 96 | N180: =VLOOKUP(D:D,结存!A:J,10,0) -> 96 | O180: =M180 - N180 -> 0
A181: 2016-10-30 | D181: 562 | E181: =VLOOKUP($D:$D,基础资料!$A:B,2,0) -> 0702000026 | F181: =VLOOKUP($D:$D,基础资料!$A:C,3,0) -> 蓝影我们都为比尔着盛装1BD | G181: =VLOOKUP($D:$D,基础资料!$A:D,4,0) -> 1 | H181: =VLOOKUP($D:$D,基础资料!$A:E,5,0) -> 套 | I181: =VLOOKUP($D:$D,基础资料!$A:F,6,0) -> 蓝光电影 | J181: 98 | M181: =SUMIF($D:$D,D181,$L:$L)+SUMIF($D:$D,D181,$J:$J)-SUMIF($D:$D,D181,$K:$K) -> 98 | N181: =VLOOKUP(D:D,结存!A:J,10,0) -> 98 | O181: =M181 - N181 -> 0
A182: 2016-11-01 | B182: 0000000042 | D182: 692 | E182: =VLOOKUP($D:$D,基础资料!$A:B,2,0) -> 0007050305 | F182: =VLOOKUP($D:$D,基础资料!$A:C,3,0) -> 滚石乐队15CD | G182: =VLOOKUP($D:$D,基础资料!$A:D,4,0) -> \ | H182: =VLOOKUP($D:$D,基础资料!$A:E,5,0) -> 套 | I182: =VLOOKUP($D:$D,基础资料!$A:F,6,0) -> CD成品 | J182: 27 | M182: =SUMIF($D:$D,D182,$L:$L)+SUMIF($D:$D,D182,$J:$J)-SUMIF($D:$D,D182,$K:$K) -> 28 | N182: =VLOOKUP(D:D,结存!A:J,10,0) -> 28 | O182: =M182 - N182 -> 0
A183: 2016-11-01 | B183: 1180074 | D183: 692 | E183: =VLOOKUP($D:$D,基础资料!$A:B,2,0) -> 0007050305 | F183: =VLOOKUP($D:$D,基础资料!$A:C,3,0) -> 滚石乐队15CD | G183: =VLOOKUP($D:$D,基础资料!$A:D,4,0) -> \ | H183: =VLOOKUP($D:$D,基础资料!$A:E,5,0) -> 套 | I183: =VLOOKUP($D:$D,基础资料!$A:F,6,0) -> CD成品 | K183: 10 | M183: =SUMIF($D:$D,D183,$L:$L)+SUMIF($D:$D,D183,$J:$J)-SUMIF($D:$D,D183,$K:$K) -> 28 | N183: =VLOOKUP(D:D,结存!A:J,10,0) -> 28 | O183: =M183 - N183 -> 0
A184: 2016-11-01 | B184: 11Y0065 | D184: 692 | E184: =VLOOKUP($D:$D,基础资料!$A:B,2,0) -> 0007050305 | F184: =VLOOKUP($D:$D,基础资料!$A:C,3,0) -> 滚石乐队15CD | G184: =VLOOKUP($D:$D,基础资料!$A:D,4,0) -> \ | H184: =VLOOKUP($D:$D,基础资料!$A:E,5,0) -> 套 | I184: =VLOOKUP($D:$D,基础资料!$A:F,6,0) -> CD成品 | K184: 2 | M184: =SUMIF($D:$D,D184,$L:$L)+SUMIF($D:$D,D184,$J:$J)-SUMIF($D:$D,D184,$K:$K) -> 28 | N184: =VLOOKUP(D:D,结存!A:J,10,0) -> 28 | O184: =M184 - N184 -> 0
A185: 2016-11-01 | B185: 1180075 | D185: 692 | E185: =VLOOKUP($D:$D,基础资料!$A:B,2,0) -> 0007050305 | F185: =VLOOKUP($D:$D,基础资料!$A:C,3,0) -> 滚石乐队15CD | G185: =VLOOKUP($D:$D,基础资料!$A:D,4,0) -> \ | H185: =VLOOKUP($D:$D,基础资料!$A:E,5,0) -> 套 | I185: =VLOOKUP($D:$D,基础资料!$A:F,6,0) -> CD成品 | K185: 15 | M185: =SUMIF($D:$D,D185,$L:$L)+SUMIF($D:$D,D185,$J:$J)-SUMIF($D:$D,D185,$K:$K) -> 28 | N185: =VLOOKUP(D:D,结存!A:J,10,0) -> 28 | O185: =M185 - N185 -> 0
A186: 2016-11-01 | B186: 11Y0064 | D186: 661 | E186: =VLOOKUP($D:$D,基础资料!$A:B,2,0) -> 07040019 | F186: =VLOOKUP($D:$D,基础资料!$A:C,3,0) -> S-美国药疗保健 | G186: =VLOOKUP($D:$D,基础资料!$A:D,4,0) -> \ | H186: =VLOOKUP($D:$D,基础资料!$A:E,5,0) -> 本 | I186: =VLOOKUP($D:$D,基础资料!$A:F,6,0) -> 书本 | K186: 10 | M186: =SUMIF($D:$D,D186,$L:$L)+SUMIF($D:$D,D186,$J:$J)-SUMIF($D:$D,D186,$K:$K) -> 975 | N186: =VLOOKUP(D:D,结存!A:J,10,0) -> 975 | O186: =M186 - N186 -> 0
A187: 2016-11-01 | B187: 11Y0064 | D187: 649 | E187: =VLOOKUP($D:$D,基础资料!$A:B,2,0) -> 07040007 | F187: =VLOOKUP($D:$D,基础资料!$A:C,3,0) -> S-行为研究方法 | G187: =VLOOKUP($D:$D,基础资料!$A:D,4,0) -> \ | H187: =VLOOKUP($D:$D,基础资料!$A:E,5,0) -> 本 | I187: =VLOOKUP($D:$D,基础资料!$A:F,6,0) -> 书本 | K187: 20 | M187: =SUMIF($D:$D,D187,$L:$L)+SUMIF($D:$D,D187,$J:$J)-SUMIF($D:$D,D187,$K:$K) -> 4577 | N187: =VLOOKUP(D:D,结存!A:J,10,0) -> 4577 | O187: =M187 - N187 -> 0
A188: 2016-11-01 | B188: 11Y0064 | D188: 668 | E188: =VLOOKUP($D:$D,基础资料!$A:B,2,0) -> 07040026 | F188: =VLOOKUP($D:$D,基础资料!$A:C,3,0) -> S-团体咨询 | G188: =VLOOKUP($D:$D,基础资料!$A:D,4,0) -> \ | H188: =VLOOKUP($D:$D,基础资料!$A:E,5,0) -> 本 | I188: =VLOOKUP($D:$D,基础资料!$A:F,6,0) -> 书本 | K188: 3 | M188: =SUMIF($D:$D,D188,$L:$L)+SUMIF($D:$D,D188,$J:$J)-SUMIF($D:$D,D188,$K:$K) -> 1473 | N188: =VLOOKUP(D:D,结存!A:J,10,0) -> 1473 | O188: =M188 - N188 -> 0
A189: 2016-11-01 | B189: 11Y0064 | D189: 637 | E189: =VLOOKUP($D:$D,基础资料!$A:B,2,0) -> 0704000002 | F189: =VLOOKUP($D:$D,基础资料!$A:C,3,0) -> S-项目评价 | G189: =VLOOKUP($D:$D,基础资料!$A:D,4,0) -> \ | H189: =VLOOKUP($D:$D,基础资料!$A:E,5,0) -> 本 | I189: =VLOOKUP($D:$D,基础资料!$A:F,6,0) -> 书本 | K189: 9 | M189: =SUMIF($D:$D,D189,$L:$L)+SUMIF($D:$D,D189,$J:$J)-SUMIF($D:$D,D189,$K:$K) -> 1877 | N189: =VLOOKUP(D:D,结存!A:J,10,0) -> 1877 | O189: =M189 - N189 -> 0
A190: 2016-11-01 | B190: 11Y0064 | D190: 638 | E190: =VLOOKUP($D:$D,基础资料!$A:B,2,0) -> 0704000003 | F190: =VLOOKUP($D:$D,基础资料!$A:C,3,0) -> S-人格理论 | G190: =VLOOKUP($D:$D,基础资料!$A:D,4,0) -> \ | H190: =VLOOKUP($D:$D,基础资料!$A:E,5,0) -> 本 | I190: =VLOOKUP($D:$D,基础资料!$A:F,6,0) -> 书本 | K190: 3 | M190: =SUMIF($D:$D,D190,$L:$L)+SUMIF($D:$D,D190,$J:$J)-SUMIF($D:$D,D190,$K:$K) -> 523 | N190: =VLOOKUP(D:D,结存!A:J,10,0) -> 523 | O190: =M190 - N190 -> 0
A191: 2016-11-01 | B191: 11Y0064 | D191: 636 | E191: =VLOOKUP($D:$D,基础资料!$A:B,2,0) -> 0704000001 | F191: =VLOOKUP($D:$D,基础资料!$A:C,3,0) -> S-内识心理学 | G191: =VLOOKUP($D:$D,基础资料!$A:D,4,0) -> \ | H191: =VLOOKUP($D:$D,基础资料!$A:E,5,0) -> 本 | I191: =VLOOKUP($D:$D,基础资料!$A:F,6,0) -> 书本 | K191: 3 | M191: =SUMIF($D:$D,D191,$L:$L)+SUMIF($D:$D,D191,$J:$J)-SUMIF($D:$D,D191,$K:$K) -> 656 | N191: =VLOOKUP(D:D,结存!A:J,10,0) -> 656 | O191: =M191 - N191 -> 0
A192: 2016-11-01 | B192: 11Y0064 | D192: 651 | E192: =VLOOKUP($D:$D,基础资料!$A:B,2,0) -> 07040009 | F192: =VLOOKUP($D:$D,基础资料!$A:C,3,0) -> S-合作、协商和团队合作 | G192: =VLOOKUP($D:$D,基础资料!$A:D,4,0) -> \ | H192: =VLOOKUP($D:$D,基础资料!$A:E,5,0) -> 本 | I192: =VLOOKUP($D:$D,基础资料!$A:F,6,0) -> 书本 | K192: 3 | M192: =SUMIF($D:$D,D192,$L:$L)+SUMIF($D:$D,D192,$J:$J)-SUMIF($D:$D,D192,$K:$K) -> 311 | N192: =VLOOKUP(D:D,结存!A:J,10,0) -> 311 | O192: =M192 - N192 -> 0
A193: 2016-11-01 | B193: 11Y0064 | D193: 654 | E193: =VLOOKUP($D:$D,基础资料!$A:B,2,0) -> 07040012 | F193: =VLOOKUP($D:$D,基础资料!$A:C,3,0) -> S-实践研究 | G193: =VLOOKUP($D:$D,基础资料!$A:D,4,0) -> \ | H193: =VLOOKUP($D:$D,基础资料!$A:E,5,0) -> 本 | I193: =VLOOKUP($D:$D,基础资料!$A:F,6,0) -> 书本 | K193: 3 | M193: =SUMIF($D:$D,D193,$L:$L)+SUMIF($D:$D,D193,$J:$J)-SUMIF($D:$D,D193,$K:$K) -> 1966 | N193: =VLOOKUP(D:D,结存!A:J,10,0) -> 1966 | O193: =M193 - N193 -> 0
A194: 2016-11-01 | B194: 11Y0064 | D194: 655 | E194: =VLOOKUP($D:$D,基础资料!$A:B,2,0) -> 07040013 | F194: =VLOOKUP($D:$D,基础资料!$A:C,3,0) -> S-校园法律 | G194: =VLOOKUP($D:$D,基础资料!$A:D,4,0) -> \ | H194: =VLOOKUP($D:$D,基础资料!$A:E,5,0) -> 本 | I194: =VLOOKUP($D:$D,基础资料!$A:F,6,0) -> 书本 | K194: 20 | M194: =SUMIF($D:$D,D194,$L:$L)+SUMIF($D:$D,D194,$J:$J)-SUMIF($D:$D,D194,$K:$K) -> 698 | N194: =VLOOKUP(D:D,结存!A:J,10,0) -> 698 | O194: =M194 - N194 -> 0
A195: 2016-11-01 | B195: 11Y0061 | D195: 645 | E195: =VLOOKUP($D:$D,基础资料!$A:B,2,0) -> 07040003 | F195: =VLOOKUP($D:$D,基础资料!$A:C,3,0) -> S-公共演讲的艺术 | G195: =VLOOKUP($D:$D,基础资料!$A:D,4,0) -> \ | H195: =VLOOKUP($D:$D,基础资料!$A:E,5,0) -> 本 | I195: =VLOOKUP($D:$D,基础资料!$A:F,6,0) -> 书本 | K195: 8 | M195: =SUMIF($D:$D,D195,$L:$L)+SUMIF($D:$D,D195,$J:$J)-SUMIF($D:$D,D195,$K:$K) -> 1403 | N195: =VLOOKUP(D:D,结存!A:J,10,0) -> 1403 | O195: =M195 - N195 -> 0
A196: 2016-10-31 | B196: 1080067 | D196: 532 | E196: =VLOOKUP($D:$D,基础资料!$A:B,2,0) -> 07010005 | F196: =VLOOKUP($D:$D,基础资料!$A:C,3,0) -> 蓝剧-我是僵尸第2季 4BD | G196: =VLOOKUP($D:$D,基础资料!$A:D,4,0) -> 4 | H196: =VLOOKUP($D:$D,基础资料!$A:E,5,0) -> 套 | I196: =VLOOKUP($D:$D,基础资料!$A:F,6,0) -> 蓝光电视剧 | K196: 5 | L196: 61 | M196: =SUMIF($D:$D,D196,$L:$L)+SUMIF($D:$D,D196,$J:$J)-SUMIF($D:$D,D196,$K:$K) -> 55 | N196: =VLOOKUP(D:D,结存!A:J,10,0) -> 55 | O196: =M196 - N196 -> 0
A197: 2016-10-31 | B197: 10Y0059 | D197: 674 | E197: =VLOOKUP($D:$D,基础资料!$A:B,2,0) -> 07040032 | F197: =VLOOKUP($D:$D,基础资料!$A:C,3,0) -> S-民事诉讼 | G197: =VLOOKUP($D:$D,基础资料!$A:D,4,0) -> \ | H197: =VLOOKUP($D:$D,基础资料!$A:E,5,0) -> 本 | I197: =VLOOKUP($D:$D,基础资料!$A:F,6,0) -> 书本 | K197: 3 | M197: =SUMIF($D:$D,D197,$L:$L)+SUMIF($D:$D,D197,$J:$J)-SUMIF($D:$D,D197,$K:$K) -> 707 | N197: =VLOOKUP(D:D,结存!A:J,10,0) -> 707 | O197: =M197 - N197 -> 0
A198: 2016-10-31 | B198: 10Y0059 | D198: 642 | E198: =VLOOKUP($D:$D,基础资料!$A:B,2,0) -> 07040001 | F198: =VLOOKUP($D:$D,基础资料!$A:C,3,0) -> S-恐怖故事（3本一套） | G198: =VLOOKUP($D:$D,基础资料!$A:D,4,0) -> \ | H198: =VLOOKUP($D:$D,基础资料!$A:E,5,0) -> 套 | I198: =VLOOKUP($D:$D,基础资料!$A:F,6,0) -> 书本 | K198: 10 | M198: =SUMIF($D:$D,D198,$L:$L)+SUMIF($D:$D,D198,$J:$J)-SUMIF($D:$D,D198,$K:$K) -> 35 | N198: =VLOOKUP(D:D,结存!A:J,10,0) -> 35 | O198: =M198 - N198 -> 0
A199: 2016-10-31 | B199: 10Y0059 | D199: 641 | E199: =VLOOKUP($D:$D,基础资料!$A:B,2,0) -> 0704000036 | F199: =VLOOKUP($D:$D,基础资料!$A:C,3,0) -> S-我们的人民 | G199: =VLOOKUP($D:$D,基础资料!$A:D,4,0) -> \ | H199: =VLOOKUP($D:$D,基础资料!$A:E,5,0) -> 本 | I199: =VLOOKUP($D:$D,基础资料!$A:F,6,0) -> 书本 | K199: 2 | M199: =SUMIF($D:$D,D199,$L:$L)+SUMIF($D:$D,D199,$J:$J)-SUMIF($D:$D,D199,$K:$K) -> 2685 | N199: =VLOOKUP(D:D,结存!A:J,10,0) -> 2685 | O199: =M199 - N199 -> 0
A200: 2016-10-31 | B200: 10Y0059 | D200: 668 | E200: =VLOOKUP($D:$D,基础资料!$A:B,2,0) -> 07040026 | F200: =VLOOKUP($D:$D,基础资料!$A:C,3,0) -> S-团体咨询 | G200: =VLOOKUP($D:$D,基础资料!$A:D,4,0) -> \ | H200: =VLOOKUP($D:$D,基础资料!$A:E,5,0) -> 本 | I200: =VLOOKUP($D:$D,基础资料!$A:F,6,0) -> 书本 | K200: 2 | M200: =SUMIF($D:$D,D200,$L:$L)+SUMIF($D:$D,D200,$J:$J)-SUMIF($D:$D,D200,$K:$K) -> 1473 | N200: =VLOOKUP(D:D,结存!A:J,10,0) -> 1473 | O200: =M200 - N200 -> 0
... 90 more rows

Sheet 基础资料
A1: 内部编号 | B1: SKU | C1: 存货名称 | D1: 规格 | E1: 单位 | F1: 存货大类 | G1: 实盘数 | H1: 备注 | I1: 英文名
A2: 1 | B2: 0001010273 | C2: 蓝光-美女与野兽第2季贝儿的心愿1DVD+1BD | D2: 2 | E2: 套 | F2: 调用成品 | G2: 0
A3: 2 | B3: 0001010274 | C3: 蓝光-八恶人1BD+1DVD | D3: 2 | E3: 套 | F3: 调用成品 | G3: 0
A4: 3 | B4: 0001010275 | C4: 蓝光-石中剑50周年版 1BD+1DVD | D4: 2 | E4: 套 | F4: 调用成品 | G4: 0
A5: 4 | B5: 0001010276 | C5: 蓝光-绝命毒师完整版16BD | D5: 16 | E5: 套 | F5: 调用成品 | G5: 0
A6: 5 | B6: 0001010277 | C6: 蓝光-詹姆斯邦德（007）完整版25BD | D6: 25 | E6: 套 | F6: 调用成品 | G6: 0
A7: 6 | B7: 0001010278 | C7: 蓝光战争与和平 2BD | D7: 2 | E7: 套 | F7: 调用成品 | G7: 0
A8: 7 | B8: 0001010279 | C8: 蓝光-猫的报恩 1BD+1DVD | D8: 2 | E8: 套 | F8: 调用成品 | G8: 0
A9: 8 | B9: 0001010280 | C9: 蓝光-绿箭侠第3季 4BD | D9: 4 | E9: 套 | F9: 调用成品 | G9: 0
A10: 9 | B10: 0001010281 | C10: 蓝光-绿箭侠第2季4BD | D10: 4 | E10: 套 | F10: 调用成品 | G10: 0
A11: 10 | B11: 0001010282 | C11: 蓝光-绿箭侠第1季4BD | D11: 4 | E11: 套 | F11: 调用成品 | G11: 0
A12: 11 | B12: 0001010283 | C12: 蓝光-迪士尼动画短片合集1BD+1DVD | D12: 2 | E12: 套 | F12: 调用成品 | G12: 0
A13: 12 | B13: 0001010284 | C13: 蓝光-末日孤舰第2季3BD | D13: 3 | E13: 套 | F13: 调用成品 | G13: 0
A14: 13 | B14: 0001010285 | C14: 蓝光-乐高大电影1BD+1DVD | D14: 2 | E14: 套 | F14: 调用成品 | G14: 0
A15: 14 | B15: 0001010286 | C15: 蓝光-侏罗纪公园完整版6BD | D15: 6 | E15: 套 | F15: 调用成品 | G15: 0
A16: 15 | B16: 0001010287 | C16: 蓝光-行尸之惧第1季2BD | D16: 2 | E16: 套 | F16: 调用成品 | G16: 0
A17: 16 | B17: 0001010288 | C17: 蓝光-童话镇第4季5BD | D17: 5 | E17: 套 | F17: 调用成品 | G17: 0
A18: 17 | B18: 0001010289 | C18: 蓝光-格林第4季 5BD | D18: 5 | E18: 套 | F18: 调用成品 | G18: 0
A19: 18 | B19: 0001010290 | C19: 蓝光-公主与青蛙 1BD+1DVD | D19: 2 | E19: 套 | F19: 调用成品 | G19: 0
A20: 19 | B20: 0007050243 | C20: 自由之歌的CD盒集4CD | D20: \ | E20: 套 | F20: CD成品 | G20: 0 | I20: Songs Of Freedom
A21: 20 | B21: 0007050244 | C21: 迪士尼经典套装4CD | D21: \ | E21: 套 | F21: CD成品 | G21: 0 | I21: Disney Classics Box Set
A22: 21 | B22: 0007050245 | C22: 在一个盒子里的信息：完整的录音CD盒集[ 4 ]套盒4CD | D22: \ | E22: 套 | F22: CD成品 | G22: 0 | I22: Message in a Box: The Complete Recording
A23: 22 | B23: 0007050246 | C23: 猫王这是它的方式（旧版)2CD | D23: \ | E23: 套 | F23: CD成品 | G23: 16 | I23: That`s the Way It Is
A24: 23 | B24: 0007050247 | C24: 《终极收藏套盒5CD | D24: \ | E24: 套 | F24: CD成品 | G24: 0 | I24: The Ultimate Collection
A25: 25 | B25: 0601010001 | C25: 14mm蓝色4碟PP盒（蓝光） | D25: \ | E25: 个 | F25: PP盒 | G25: 0
A26: 26 | B26: 0601010002 | C26: 14mm蓝色3碟PP盒 | D26: \ | E26: 个 | F26: PP盒 | G26: 0
A27: 27 | B27: 0602010001 | C27: BD-R | D27: \ | E27: 片 | F27: BD碟 | G27: 0
A28: 28 | B28: 0602010002 | C28: KL-虞美人盛开的山坡 BD碟1 | D28: \ | E28: 片 | F28: BD碟 | G28: 0 | I28: From Up on Poppy Hill
A29: 29 | B29: 0602010003 | C29: KL-猫王-埃尔维斯之旅 BD碟1 | D29: \ | E29: 片 | F29: BD碟 | G29: 0 | I29: Elvis Presley - Elvis On Tour
A30: 30 | B30: 0602010004 | C30: KL-地球百子第1季 BD碟1 | D30: \ | E30: 片 | F30: BD碟 | G30: 0 | I30: The 100: Season 1
A31: 31 | B31: 0602010005 | C31: KL-地球百子第1季 BD碟2 | D31: \ | E31: 片 | F31: BD碟 | G31: 0 | I31: The 100: Season 1
A32: 32 | B32: 0602010006 | C32: KL-地球百子第1季 BD碟3 | D32: \ | E32: 片 | F32: BD碟 | G32: 0 | I32: The 100: Season 1
A33: 33 | B33: 0602010007 | C33: KL-奥丽芙.基特里奇 BD碟1 | D33: \ | E33: 片 | F33: BD碟 | G33: 0 | I33: Olive Kitteridge
A34: 34 | B34: 0602010008 | C34: KL-奥丽芙.基特里奇 BD碟2 | D34: \ | E34: 片 | F34: BD碟 | G34: 0 | I34: Olive Kitteridge
A35: 35 | B35: 0602010009 | C35: KL-死亡笔记：完整系列的标准版 BD碟1 | D35: \ | E35: 片 | F35: BD碟 | G35: 0 | I35: Death Note: Complete Series Standard Edition
A36: 36 | B36: 0602010010 | C36: KL-死亡笔记：完整系列的标准版 BD碟2 | D36: \ | E36: 片 | F36: BD碟 | G36: 0 | I36: Death Note: Complete Series Standard Edition
A37: 37 | B37: 0602010011 | C37: KL-死亡笔记：完整系列的标准版 BD碟3 | D37: \ | E37: 片 | F37: BD碟 | G37: 0 | I37: Death Note: Complete Series Standard Edition
A38: 38 | B38: 0602010012 | C38: KL-死亡笔记：完整系列的标准版 BD碟4 | D38: \ | E38: 片 | F38: BD碟 | G38: 0 | I38: Death Note: Complete Series Standard Edition
A39: 39 | B39: 0602010013 | C39: KL-死亡笔记：完整系列的标准版 BD碟5 | D39: \ | E39: 片 | F39: BD碟 | G39: 0 | I39: Death Note: Complete Series Standard Edition
A40: 40 | B40: 0602010014 | C40: KL-硅谷：第2季 BD碟1 | D40: \ | E40: 片 | F40: BD碟 | G40: 0 | I40: Silicon Valley:The Complete Second Season
A41: 41 | B41: 0602010015 | C41: KL-硅谷：第2季 BD碟2 | D41: \ | E41: 片 | F41: BD碟 | G41: 0 | I41: Silicon Valley:The Complete Second Season
A42: 42 | B42: 0602010016 | C42: KL-尼克斯第2季 BD碟1 | D42: \ | E42: 片 | F42: BD碟 | G42: 0 | I42: The Knick The Complete Second Season
A43: 43 | B43: 0602010017 | C43: KL-尼克斯第2季 BD碟2 | D43: \ | E43: 片 | F43: BD碟 | G43: 0 | I43: The Knick The Complete Second Season
A44: 44 | B44: 0602010018 | C44: KL-尼克斯第2季 BD碟3 | D44: \ | E44: 片 | F44: BD碟 | G44: 0 | I44: The Knick The Complete Second Season
A45: 45 | B45: 0602010019 | C45: KL-尼克斯第2季 BD碟4 | D45: \ | E45: 片 | F45: BD碟 | G45: 0 | I45: The Knick The Complete Second Season
A46: 46 | B46: 0602010020 | C46: KL-辉夜姬物语 BD碟1 | D46: \ | E46: 片 | F46: BD碟 | G46: 0 | I46: The Tale of the Princess kaguya
A47: 47 | B47: 0602010021 | C47: KL-元气囝仔 BD碟1 | D47: \ | E47: 片 | F47: BD碟 | G47: 0 | I47: Barakamon: The Complete Series
A48: 48 | B48: 0602010022 | C48: KL-元气囝仔 BD碟2 | D48: \ | E48: 片 | F48: BD碟 | G48: 0 | I48: Barakamon: The Complete Series
A49: 49 | B49: 0602010023 | C49: KL-大西洋帝国第5季 BD碟1 | D49: \ | E49: 片 | F49: BD碟 | G49: 0 | I49: Boarwalk Empire:Season 5
A50: 50 | B50: 0602010024 | C50: KL-大西洋帝国第5季 BD碟2 | D50: \ | E50: 片 | F50: BD碟 | G50: 0 | I50: Boarwalk Empire:Season 5
A51: 51 | B51: 0602010025 | C51: KL-大西洋帝国第5季 BD碟3 | D51: \ | E51: 片 | F51: BD碟 | G51: 0 | I51: Boarwalk Empire:Season 5
A52: 52 | B52: 0602010026 | C52: KL-刑事 BD碟1 | D52: \ | E52: 片 | F52: BD碟 | G52: 0 | I52: Criminal
A53: 53 | B53: 0602010027 | C53: KL-黑客军团第1季 BD碟1 | D53: \ | E53: 片 | F53: BD碟 | G53: 0 | I53: Mr.Robot - Season 1
A54: 54 | B54: 0602010028 | C54: KL-黑客军团第1季 BD碟2 | D54: \ | E54: 片 | F54: BD碟 | G54: 0 | I54: Mr.Robot - Season 1
A55: 55 | B55: 0602010029 | C55: KL-欢乐满人间第五十周年纪念版 BD碟1 | D55: \ | E55: 片 | F55: BD碟 | G55: 0 | I55: Mary Poppins:50th Anniversary edition
A56: 56 | B56: 0602010030 | C56: KL-雷神：黑暗世界 BD碟1 | D56: \ | E56: 片 | F56: BD碟 | G56: 0 | I56: Thor:The Dark World
A57: 57 | B57: 0602010031 | C57: KL-美国队长：美国队长：冬日战士 BD碟1 | D57: \ | E57: 片 | F57: BD碟 | G57: 0 | I57: Captain American:The Winter Soldier
A58: 58 | B58: 0602010032 | C58: KL-银河护卫队 BD碟1 | D58: \ | E58: 片 | F58: BD碟 | G58: 0 | I58: Guardians Of The Galaxy
A59: 59 | B59: 0602010033 | C59: KL-美国队长：星球大战：义军崛起第1季 BD碟1 | D59: \ | E59: 片 | F59: BD碟 | G59: 0 | I59: Star Wars Rebels:Season 1
A60: 60 | B60: 0602010034 | C60: KL-美国队长：星球大战：义军崛起第1季 BD碟2 | D60: \ | E60: 片 | F60: BD碟 | G60: 0 | I60: Star Wars Rebels:Season 1
A61: 61 | B61: 0602010035 | C61: KL-辛普森一家20周年特辑 BD碟2 | D61: \ | E61: 片 | F61: BD碟 | G61: 0 | I61: The Simpsons - Season 20(20 Years)
A62: 62 | B62: 0602010036 | C62: KL-辛普森一家20周年特辑 BD碟1 | D62: \ | E62: 片 | F62: BD碟 | G62: 0 | I62: The Simpsons - Season 20(20 Years)
A63: 63 | B63: 0602010037 | C63: KL-猫王:是这样的:特别版 BD碟1 | D63: \ | E63: 片 | F63: BD碟 | G63: 0 | I63: Elvis:That is the Way It is :special Edition
A64: 64 | B64: 0602010038 | C64: KL-海贼王剧场版10：强者天下 BD碟1 | D64: \ | E64: 片 | F64: BD碟 | G64: 0 | I64: ONE PIECE FILM STRONG WORLD
A65: 65 | B65: 0602010039 | C65: KL-海贼王剧场版10：强者天下 BD碟2 | D65: \ | E65: 片 | F65: BD碟 | G65: 0 | I65: ONE PIECE FILM STRONG WORLD
A66: 66 | B66: 0602010040 | C66: KL-海贼王剧场版:Z(港) BD碟1 | D66: \ | E66: 片 | F66: BD碟 | G66: 0 | I66: ONE PIECE FILM:Film Z
A67: 67 | B67: 0602010041 | C67: KL-海贼王剧场版:Z(港) BD碟2 | D67: \ | E67: 片 | F67: BD碟 | G67: 0 | I67: ONE PIECE FILM:Film Z
A68: 68 | B68: 0602010042 | C68: KL-冰血暴第2季 BD碟2 | D68: \ | E68: 片 | F68: BD碟 | G68: 0 | I68: Fargo:Season 2
A69: 69 | B69: 0602010043 | C69: KL-冰血暴第2季 BD碟1 | D69: \ | E69: 片 | F69: BD碟 | G69: 0 | I69: Fargo:Season 2
A70: 70 | B70: 0602010044 | C70: KL-冰血暴第2季 BD碟3 | D70: \ | E70: 片 | F70: BD碟 | G70: 0 | I70: Fargo:Season 2
A71: 71 | B71: 0602010045 | C71: KL-X战警：金刚狼 BD碟6 | D71: \ | E71: 片 | F71: BD碟 | G71: 0 | I71: X-men and the Wolverine Collection(X-men/X2:X-men United/X-men:The Last Stand/X-men Origins:Wolverin
A72: 72 | B72: 0602010046 | C72: KL-X战警：金刚狼 BD碟4 | D72: \ | E72: 片 | F72: BD碟 | G72: 0 | I72: X-men and the Wolverine Collection(X-men/X2:X-men United/X-men:The Last Stand/X-men Origins:Wolverin
A73: 73 | B73: 0602010047 | C73: KL-X战警：金刚狼 BD碟1 | D73: \ | E73: 片 | F73: BD碟 | G73: 0 | I73: X-men and the Wolverine Collection(X-men/X2:X-men United/X-men:The Last Stand/X-men Origins:Wolverin
A74: 74 | B74: 0602010048 | C74: KL-X战警：金刚狼 BD碟3 | D74: \ | E74: 片 | F74: BD碟 | G74: 0 | I74: X-men and the Wolverine Collection(X-men/X2:X-men United/X-men:The Last Stand/X-men Origins:Wolverin
A75: 75 | B75: 0602010049 | C75: KL-X战警：金刚狼 BD碟5 | D75: \ | E75: 片 | F75: BD碟 | G75: 0 | I75: X-men and the Wolverine Collection(X-men/X2:X-men United/X-men:The Last Stand/X-men Origins:Wolverin
A76: 76 | B76: 0602010050 | C76: KL-X战警：金刚狼 BD碟2 | D76: \ | E76: 片 | F76: BD碟 | G76: 0 | I76: X-men and the Wolverine Collection(X-men/X2:X-men United/X-men:The Last Stand/X-men Origins:Wolverin
A77: 77 | B77: 0602010051 | C77: KL-美国不为人知的历史 BD碟1 | D77: \ | E77: 片 | F77: BD碟 | G77: 0 | I77: The United History of the United States
A78: 78 | B78: 0602010052 | C78: KL-美国队长：第一复仇者 BD碟1 | D78: \ | E78: 片 | F78: BD碟 | G78: 0 | I78: Captain American:The First Avenger
A79: 79 | B79: 0602010053 | C79: KL-钢铁侠3 BD碟1 | D79: \ | E79: 片 | F79: BD碟 | G79: 0 | I79: Iron Man 3-Movie Collection
A80: 80 | B80: 0602010054 | C80: KL-浴血黑帮 BD碟1 | D80: \ | E80: 片 | F80: BD碟 | G80: 0 | I80: Peaky Blinders
A81: 81 | B81: 0602010055 | C81: KL-浴血黑帮 BD碟2 | D81: \ | E81: 片 | F81: BD碟 | G81: 0 | I81: Peaky Blinders
A82: 82 | B82: 0602010056 | C82: KL-雷神 BD碟1 | D82: \ | E82: 片 | F82: BD碟 | G82: 0 | I82: Thor “Spectacular”
A83: 83 | B83: 0602010057 | C83: KL-鲁邦三世：卡里奥斯特罗城 BD碟1 | D83: \ | E83: 片 | F83: BD碟 | G83: 0 | I83: Lupin the Third:The Castle of Cagliostro
A84: 84 | B84: 0602010058 | C84: KL-我是僵尸第2季 BD碟1 | D84: \ | E84: 片 | F84: BD碟 | G84: 0 | I84: iZombie Season 2
A85: 85 | B85: 0602010059 | C85: KL-地球百子第3季 BD碟1 | D85: \ | E85: 片 | F85: BD碟 | G85: 0 | I85: Person of Interest: S1-5
A86: 86 | B86: 0602010060 | C86: KL-我是僵尸第2季 BD碟2 | D86: \ | E86: 片 | F86: BD碟 | G86: 0 | I86: iZombie Season 2
A87: 87 | B87: 0602010061 | C87: KL-我是僵尸第2季 BD碟3 | D87: \ | E87: 片 | F87: BD碟 | G87: 0 | I87: iZombie Season 2
A88: 88 | B88: 0602010062 | C88: KL-我是僵尸第2季 BD碟4 | D88: \ | E88: 片 | F88: BD碟 | G88: 0 | I88: iZombie Season 2
A89: 89 | B89: 0602010063 | C89: KL-怪物之子 BD碟1 | D89: \ | E89: 片 | F89: BD碟 | G89: 0 | I89: The Boy and the Beast
A90: 90 | B90: 0602010064 | C90: KL-穿越时空的少女 BD碟1 | D90: \ | E90: 片 | F90: BD碟 | G90: 0 | I90: The Girl Who Leapt Through Time
A91: 91 | B91: 0602010065 | C91: KL-非凡的世界 BD碟1 | D91: \ | E91: 片 | F91: BD碟 | G91: 0 | I91: April AND THE EXTRAORDINARY WORLD
A92: 92 | B92: 0602010066 | C92: KL-硬核亨利 BD碟1 | D92: \ | E92: 片 | F92: BD碟 | G92: 0 | I92: Hardcore Herry
A93: 93 | B93: 0602010067 | C93: KL-守望者收藏版 BD碟1 | D93: \ | E93: 片 | F93: BD碟 | G93: 0 | I93: Watchmen
A94: 94 | B94: 0602010068 | C94: KL-黑色孤儿第1季 BD碟1 | D94: \ | E94: 片 | F94: BD碟 | G94: 0 | I94: Orphan Black Season 1
A95: 95 | B95: 0602010069 | C95: KL-好莱坞在维也纳 BD碟1 | D95: \ | E95: 片 | F95: BD碟 | G95: 0 | I95: Hollywood In Vienna
A96: 96 | B96: 0602010070 | C96: KL-控方证人 BD碟1 | D96: \ | E96: 片 | F96: BD碟 | G96: 0 | I96: Witness for the Prosecution
A97: 97 | B97: 0602010071 | C97: KL-钢之炼金术师完整版 BD碟1 | D97: \ | E97: 片 | F97: BD碟 | G97: 0 | I97: FULLMETAL ALCHEMIST The Complete Series
A98: 98 | B98: 0602010072 | C98: KL-钢之炼金术师：兄弟会（上） BD碟1 | D98: \ | E98: 片 | F98: BD碟 | G98: 0 | I98: FULLMETAL ALCHEMIST：BROTHERHOOD Complete One
A99: 99 | B99: 0602010073 | C99: KL-钢之炼金术师：兄弟会（下） BD碟1 | D99: \ | E99: 片 | F99: BD碟 | G99: 0 | I99: FULLMETAL ALCHEMIST：BROTHERHOOD Complete Two
A100: 100 | B100: 0602010074 | C100: KL-狼之子雨与雪 BD碟1 | D100: \ | E100: 片 | F100: BD碟 | G100: 0 | I100: WOLF CHILDREN
A101: 101 | B101: 0602010075 | C101: KL-夏日大作战 BD碟1 | D101: \ | E101: 片 | F101: BD碟 | G101: 0 | I101: Summer wars
A102: 102 | B102: 0602010076 | C102: KL-守望者收藏版 BD碟2 | D102: \ | E102: 片 | F102: BD碟 | G102: 0 | I102: Watchmen
A103: 103 | B103: 0602010077 | C103: KL-黑色孤儿第1季 BD碟2 | D103: \ | E103: 片 | F103: BD碟 | G103: 0 | I103: Orphan Black Season 1
A104: 104 | B104: 0602010078 | C104: KL-钢之炼金术师完整版 BD碟2 | D104: \ | E104: 片 | F104: BD碟 | G104: 0 | I104: FULLMETAL ALCHEMIST The Complete Series
A105: 105 | B105: 0602010079 | C105: KL-钢之炼金术师：兄弟会（上） BD碟2 | D105: \ | E105: 片 | F105: BD碟 | G105: 0 | I105: FULLMETAL ALCHEMIST：BROTHERHOOD Complete One
A106: 106 | B106: 0602010080 | C106: KL-钢之炼金术师：兄弟会（下） BD碟2 | D106: \ | E106: 片 | F106: BD碟 | G106: 0 | I106: FULLMETAL ALCHEMIST：BROTHERHOOD Complete Two
A107: 107 | B107: 0602010081 | C107: KL-守望者收藏版 BD碟3 | D107: \ | E107: 片 | F107: BD碟 | G107: 0 | I107: Watchmen
A108: 108 | B108: 0602010082 | C108: KL-黑色孤儿第3季 BD碟3 | D108: \ | E108: 片 | F108: BD碟 | G108: 0 | I108: Orphan Black Season 3
A109: 109 | B109: 0602010083 | C109: KL-钢之炼金术师完整版 BD碟3 | D109: \ | E109: 片 | F109: BD碟 | G109: 0 | I109: FULLMETAL ALCHEMIST The Complete Series
A110: 110 | B110: 0602010084 | C110: KL-钢之炼金术师：兄弟会（上） BD碟3 | D110: \ | E110: 片 | F110: BD碟 | G110: 0 | I110: FULLMETAL ALCHEMIST：BROTHERHOOD Complete One
A111: 111 | B111: 0602010085 | C111: KL-钢之炼金术师：兄弟会（下） BD碟3 | D111: \ | E111: 片 | F111: BD碟 | G111: 0 | I111: FULLMETAL ALCHEMIST：BROTHERHOOD Complete Two
A112: 112 | B112: 0602010086 | C112: KL-黑色孤儿第3季 BD碟4 | D112: \ | E112: 片 | F112: BD碟 | G112: 0 | I112: Orphan Black Season 4
A113: 113 | B113: 0602010087 | C113: KL-钢之炼金术师完整版 BD碟4 | D113: \ | E113: 片 | F113: BD碟 | G113: 0 | I113: FULLMETAL ALCHEMIST The Complete Series
A114: 114 | B114: 0602010088 | C114: KL-钢之炼金术师：兄弟会（上） BD碟4 | D114: \ | E114: 片 | F114: BD碟 | G114: 0 | I114: FULLMETAL ALCHEMIST：BROTHERHOOD Complete One
A115: 115 | B115: 0602010089 | C115: KL-钢之炼金术师：兄弟会（下） BD碟4 | D115: \ | E115: 片 | F115: BD碟 | G115: 0 | I115: FULLMETAL ALCHEMIST：BROTHERHOOD Complete Two
A116: 116 | B116: 0602010090 | C116: KL-钢之炼金术师完整版 BD碟5 | D116: \ | E116: 片 | F116: BD碟 | G116: 0 | I116: FULLMETAL ALCHEMIST The Complete Series
A117: 117 | B117: 0602010091 | C117: KL-钢之炼金术师完整版 BD碟6 | D117: \ | E117: 片 | F117: BD碟 | G117: 0 | I117: FULLMETAL ALCHEMIST The Complete Series
A118: 118 | B118: 0602010092 | C118: KL-星际牛仔 BD碟4 | D118: \ | E118: 片 | F118: BD碟 | G118: 0 | I118: Cowboy Bebop
A119: 119 | B119: 0602010093 | C119: KL-星际牛仔 BD碟3 | D119: \ | E119: 片 | F119: BD碟 | G119: 0 | I119: Cowboy Bebop
A120: 120 | B120: 0602010094 | C120: KL-星际牛仔 BD碟2 | D120: \ | E120: 片 | F120: BD碟 | G120: 0 | I120: Cowboy Bebop
A121: 121 | B121: 0602010095 | C121: KL-星际牛仔 BD碟1 | D121: \ | E121: 片 | F121: BD碟 | G121: 0 | I121: Cowboy Bebop
A122: 122 | B122: 0602010096 | C122: KL-言叶之庭 BD碟1 | D122: \ | E122: 片 | F122: BD碟 | G122: 0 | I122: The Garden of Words
A123: 123 | B123: 0602010097 | C123: KL-狼厅 BD碟1 | D123: \ | E123: 片 | F123: BD碟 | G123: 0 | I123: Masterpiece: Wolf.Hall
A124: 124 | B124: 0602010098 | C124: kl-狼厅 BD碟2 | D124: \ | E124: 片 | F124: BD碟 | G124: 0 | I124: Masterpiece: Wolf.Hall
A125: 125 | B125: 0602010099 | C125: KL-狼厅 BD碟3 | D125: \ | E125: 片 | F125: BD碟 | G125: 0 | I125: Masterpiece: Wolf.Hall
A126: 126 | B126: 0602010100 | C126: KL-李小龙首播集 BD碟1 | D126: \ | E126: 片 | F126: BD碟 | G126: 0 | I126: THE BRUCE LEE PREMIERE COLLECTION
A127: 127 | B127: 0602010101 | C127: KL-李小龙首播集 BD碟2 | D127: \ | E127: 片 | F127: BD碟 | G127: 0 | I127: THE BRUCE LEE PREMIERE COLLECTION
A128: 128 | B128: 0602010102 | C128: KL-李小龙首播集 BD碟3 | D128: \ | E128: 片 | F128: BD碟 | G128: 0 | I128: THE BRUCE LEE PREMIERE COLLECTION
A129: 129 | B129: 0602010103 | C129: KL-李小龙首播集 BD碟4 | D129: \ | E129: 片 | F129: BD碟 | G129: 0 | I129: THE BRUCE LEE PREMIERE COLLECTION
A130: 130 | B130: 0602010104 | C130: 蓝卡-虞美人盛开的山坡 D5碟1 | D130: \ | E130: 片 | F130: DVD碟和CD碟 | G130: 0 | I130: From Up on Poppy Hill
A131: 131 | B131: 0602010105 | C131: 蓝剧-大西洋帝国第5季 D5碟1 | D131: \ | E131: 片 | F131: DVD碟和CD碟 | G131: 0 | I131: Boarwalk Empire:Season 5
A132: 132 | B132: 0602010106 | C132: 蓝卡-辉夜姬物语 D5碟1 | D132: \ | E132: 片 | F132: DVD碟和CD碟 | G132: 0 | I132: The Tale of the Princess kaguya
A133: 133 | B133: 0602010107 | C133: 蓝卡-辉夜姬物语 D5碟2 | D133: \ | E133: 片 | F133: DVD碟和CD碟 | G133: 0 | I133: The Tale of the Princess kaguya
A134: 134 | B134: 0602010108 | C134: 蓝影-元气囝仔 D5碟1 | D134: \ | E134: 片 | F134: DVD碟和CD碟 | G134: 0 | I134: Barakamon: The Complete Series
A135: 135 | B135: 0602010109 | C135: 蓝影-元气囝仔 D5碟2 | D135: \ | E135: 片 | F135: DVD碟和CD碟 | G135: 0 | I135: Barakamon: The Complete Series
A136: 136 | B136: 0602010110 | C136: 蓝影-刑事 D5碟1 | D136: \ | E136: 片 | F136: DVD碟和CD碟 | G136: 0 | I136: Criminal
A137: 137 | B137: 0602010111 | C137: 蓝影-欢乐满人间第五十周年纪念版 D5碟1 | D137: \ | E137: 片 | F137: DVD碟和CD碟 | G137: 0 | I137: Mary Poppins:50th Anniversary edition
A138: 138 | B138: 0602010112 | C138: 蓝影-猫王:是这样的:特别版 D5碟1 | D138: \ | E138: 片 | F138: DVD碟和CD碟 | G138: 0 | I138: Elvis:That is the Way It is :special Edition
A139: 139 | B139: 0602010113 | C139: 蓝影-海贼王剧场版10：强者天下 D5碟1 | D139: \ | E139: 片 | F139: DVD碟和CD碟 | G139: 0 | I139: ONE PIECE FILM STRONG WORLD
A140: 140 | B140: 0602010114 | C140: 蓝影-海贼王剧场版:Z(港) D5碟1 | D140: \ | E140: 片 | F140: DVD碟和CD碟 | G140: 0 | I140: ONE PIECE FILM:Film Z
A141: 141 | B141: 0602010115 | C141: 蓝卡-怪物之子 D5碟1 | D141: \ | E141: 片 | F141: DVD碟和CD碟 | G141: 0 | I141: The Boy and the Beast
A142: 142 | B142: 0602010116 | C142: 蓝卡-穿越时空的少女 D5碟1 | D142: \ | E142: 片 | F142: DVD碟和CD碟 | G142: 0 | I142: The Girl Who Leapt Through Time
A143: 143 | B143: 0602010117 | C143: 蓝卡-非凡的世界 D5碟1 | D143: \ | E143: 片 | F143: DVD碟和CD碟 | G143: 0 | I143: April AND THE EXTRAORDINARY WORLD
A144: 144 | B144: 0602010118 | C144: 蓝卡-狼之子雨与雪 D5碟1 | D144: \ | E144: 片 | F144: DVD碟和CD碟 | G144: 0 | I144: WOLF CHILDREN
A145: 145 | B145: 0602010119 | C145: 蓝卡-夏日大作战 D5碟1 | D145: \ | E145: 片 | F145: DVD碟和CD碟 | G145: 0 | I145: Summer wars
A146: 146 | B146: 0602010120 | C146: 蓝卡-穿越时空的少女 D5碟2 | D146: \ | E146: 片 | F146: DVD碟和CD碟 | G146: 0 | I146: The Girl Who Leapt Through Time
A147: 147 | B147: 0602010121 | C147: 蓝卡-狼之子雨与雪 D5碟2 | D147: \ | E147: 片 | F147: DVD碟和CD碟 | G147: 0 | I147: WOLF CHILDREN
A148: 148 | B148: 0602010122 | C148: 蓝卡-夏日大作战 D5碟2 | D148: \ | E148: 片 | F148: DVD碟和CD碟 | G148: 0 | I148: Summer wars
A149: 149 | B149: 0602010123 | C149: 蓝卡-守望者收藏版 D5碟1 | D149: \ | E149: 片 | F149: DVD碟和CD碟 | G149: 0 | I149: Watchmen
A150: 526 | B150: 07010001 | C150: 蓝剧-地球百子第3季 4BD | D150: 4 | E150: 套 | F150: 蓝光电视剧 | G150: 19 | I150: The 100 Season 3
A151: 527 | B151: 07010002 | C151: 蓝剧-降世神通：科拉传奇 第2季 神灵2BD | D151: 2 | E151: 套 | F151: 蓝光电视剧 | G151: 99 | I151: The Legend of Korra: Book 2, Spirits
A152: 528 | B152: 0701000232 | C152: 蓝剧扫兴者 第一季2BD | D152: 2 | E152: 套 | F152: 蓝光电视剧 | G152: 0 | I152: Killjoys Season 1
A153: 529 | B153: 0701000235 | C153: 蓝剧传教士 第一季3BD | D153: 3 | E153: 套 | F153: 蓝光电视剧 | G153: 90 | I153: Preacher Season 1
A154: 530 | B154: 07010003 | C154: 蓝剧-降世神通：科拉传奇 第3季2BD | D154: 2 | E154: 套 | F154: 蓝光电视剧 | G154: 99 | I154: Legend of Korra: Book Three: Change
A155: 531 | B155: 07010004 | C155: 蓝剧-降世神通：科拉传奇 第4季2BD | D155: 2 | E155: 套 | F155: 蓝光电视剧 | G155: 85 | I155: The Legend of Korra: Book Four: Balance
A156: 532 | B156: 07010005 | C156: 蓝剧-我是僵尸第2季 4BD | D156: 4 | E156: 套 | F156: 蓝光电视剧 | G156: 61 | I156: iZombie Season 2
A157: 533 | B157: 07010006 | C157: 蓝剧-冰血暴第2季 3BD | D157: 3 | E157: 套 | F157: 蓝光电视剧 | G157: 70 | I157: Fargo:Season 2
A158: 534 | B158: 07010008 | C158: 蓝剧-我是僵尸第2季 4BD | D158: 4 | E158: 套 | F158: 蓝光电视剧 | G158: 61 | I158: iZombie Season 2
A159: 535 | B159: 07010009 | C159: 蓝剧-黑客军团第1季 2BD | D159: 2 | E159: 套 | F159: 蓝光电视剧 | G159: 0 | I159: Mr.Robot - Season 1
A160: 536 | B160: 07010010 | C160: 蓝剧-黑色孤儿第1季 2BD | D160: 2 | E160: 套 | F160: 蓝光电视剧 | G160: 85 | I160: Orphan Black Season 1
A161: 537 | B161: 07010011 | C161: 蓝剧-黑色孤儿第2季 2BD | D161: 2 | E161: 套 | F161: 蓝光电视剧 | G161: 79 | I161: Orphan Black Season 2
A162: 538 | B162: 07010012 | C162: 蓝剧-地球百子第1季 3BD | D162: 3 | E162: 套 | F162: 蓝光电视剧 | G162: 95 | I162: The 100: Season 1
A163: 539 | B163: 07010013 | C163: 蓝剧-黑色孤儿第3季 2BD | D163: 2 | E163: 套 | F163: 蓝光电视剧 | G163: 86 | I163: Orphan Black Season 3
A164: 540 | B164: 07010014 | C164: 蓝剧-硅谷：第2季 2BD | D164: 2 | E164: 套 | F164: 蓝光电视剧 | G164: 0 | I164: Silicon Valley:The Complete Second Season
A165: 541 | B165: 07010015 | C165: 蓝剧-黑色孤儿第4季 2BD | D165: 2 | E165: 套 | F165: 蓝光电视剧 | G165: 63 | I165: Orphan Black Season 4
A166: 542 | B166: 07010016 | C166: 蓝剧-大西洋帝国第5季 3BD+1DVD | D166: 4 | E166: 套 | F166: 蓝光电视剧 | G166: 0 | I166: Boarwalk Empire:Season 5
A167: 543 | B167: 07010017 | C167: 蓝剧-尼克斯：第2季 4BD | D167: 4 | E167: 套 | F167: 蓝光电视剧 | G167: 0 | I167: The Knick The Complete Second Season
A168: 544 | B168: 07010018 | C168: 蓝剧-星球大战：义军崛起第1季 2BD | D168: 2 | E168: 套 | F168: 蓝光电视剧 | G168: 0 | I168: Star Wars Rebels:Season 1
A169: 545 | B169: 07010019 | C169: 蓝剧-蓝光-疑犯追踪1-5季完整版 19BD | D169: 19 | E169: 套 | F169: 蓝光电视剧 | G169: 0 | I169: Person of Interest: S1-5
A170: 546 | B170: 0702000006 | C170: 蓝影哈利·波特与魔法石2BD | D170: 2 | E170: 套 | F170: 蓝光电影 | G170: 0
A171: 547 | B171: 0702000007 | C171: 蓝影哈利·波特与密室2BD | D171: 2 | E171: 套 | F171: 蓝光电影 | G171: 0 | I171: Harry Potter and the Chamber of Secrets
A172: 548 | B172: 0702000008 | C172: 蓝影哈利·波特与阿兹卡班的囚徒2BD | D172: 2 | E172: 套 | F172: 蓝光电影 | G172: 0 | I172: Harry Potter and the Prisoner of Azkaban
A173: 549 | B173: 0702000009 | C173: 蓝影哈利·波特与火焰杯2BD | D173: 2 | E173: 套 | F173: 蓝光电影 | G173: 0 | I173: Harry Potter and the Goblet of Fire
A174: 550 | B174: 0702000010 | C174: 蓝影哈利·波特与凤凰社2BD | D174: 2 | E174: 套 | F174: 蓝光电影 | G174: 0 | I174: Harry Potter and the Order of the Phoenix
A175: 551 | B175: 0702000011 | C175: 蓝影哈利·波特与混血王子2B | D175: 2 | E175: 套 | F175: 蓝光电影 | G175: 0 | I175: Harry Potter and the Half-Blood Prince
A176: 552 | B176: 0702000012 | C176: 蓝影哈利·与死亡圣器(上)2B | D176: 2 | E176: 套 | F176: 蓝光电影 | G176: 0 | I176: Harry Potter and the Deathly Hallows: Part 1
A177: 553 | B177: 0702000013 | C177: 蓝影-哈利·与死亡圣器(下)2BD | D177: 2 | E177: 套 | F177: 蓝光电影 | G177: 0 | I177: Harry Potter and the Deathly Hallows: Part 2
A178: 554 | B178: 0702000014 | C178: 蓝影逃亡1BD | D178: 1 | E178: 套 | F178: 蓝光电影 | G178: 0 | I178: To Have and Have Not
A179: 555 | B179: 0702000015 | C179: 蓝影夜长梦多1BD | D179: 1 | E179: 套 | F179: 蓝光电影 | G179: 0 | I179: The Big Sleep
A180: 556 | B180: 0702000016 | C180: 蓝影逃狱雪冤1BD | D180: 1 | E180: 套 | F180: 蓝光电影 | G180: 0 | I180: Dark Passage
A181: 557 | B181: 0702000017 | C181: 蓝影蚁人1BD+3D | D181: 2 | E181: 套 | F181: 蓝光电影 | G181: 0 | I181: Ant-Man
A182: 558 | B182: 0702000018 | C182: 蓝影聚焦1BD+1DVD | D182: 2 | E182: 套 | F182: 蓝光电影 | G182: 0 | I182: Spotlight
A183: 559 | B183: 0702000019 | C183: 蓝影天堂电影院1BD | D183: 1 | E183: 套 | F183: 蓝光电影 | G183: 0 | I183: Nuovo Cinema Paradiso
A184: 560 | B184: 0702000020 | C184: 蓝影西游记之大圣闹天宫1BD | D184: 1 | E184: 套 | F184: 蓝光电影 | G184: 0 | I184: The Monkey King: Havoc In Heaven&#39;s Palace
A185: 561 | B185: 0702000025 | C185: 蓝影爆裂鼓手1BD | D185: 1 | E185: 套 | F185: 蓝光电影 | G185: 0 | I185: Whiplash [Blu-ray]
A186: 562 | B186: 0702000026 | C186: 蓝影我们都为比尔着盛装1BD | D186: 1 | E186: 套 | F186: 蓝光电影 | G186: 100 | I186: Bill Cunningham New York
A187: 563 | B187: 0702000027 | C187: 蓝影攀登梅鲁峰1BD | D187: 1 | E187: 套 | F187: 蓝光电影 | G187: 0 | I187: Meru
A188: 564 | B188: 0702000028 | C188: 蓝影房间1BD | D188: 1 | E188: 套 | F188: 蓝光电影 | G188: 0 | I188: Room
A189: 565 | B189: 0702000029 | C189: 蓝影记住1BD | D189: 1 | E189: 套 | F189: 蓝光电影 | G189: 0 | I189: Remember
A190: 566 | B190: 0702000030 | C190: 蓝影夜行者1BD+1DVD | D190: 2 | E190: 套 | F190: 蓝光电影 | G190: 0 | I190: Nightcrawler
A191: 567 | B191: 0702000031 | C191: 蓝影特朗勃1BD | D191: 1 | E191: 套 | F191: 蓝光电影 | G191: 0 | I191: Trumbo
A192: 568 | B192: 0702000032 | C192: 蓝影年轻气盛1BD | D192: 1 | E192: 套 | F192: 蓝光电影 | G192: 95 | I192: Youth
A193: 569 | B193: 07020001 | C193: 蓝影-星际迷航：下一代电影收藏4BD | D193: 4 | E193: 套 | F193: 蓝光电影 | G193: 0 | I193: Star Trek: The Next Generation Motion Picture Collection
A194: 570 | B194: 07020002 | C194: 蓝影-星际迷航：原初 第1季6BD | D194: 6 | E194: 套 | F194: 蓝光电影 | G194: 0 | I194: Star Trek: Original Motion Picture Collection
A195: 571 | B195: 07020003 | C195: 蓝影-遇见你之前1BD+1DVD | D195: 2 | E195: 套 | F195: 蓝光电影 | G195: 73 | I195: ME BEFORE YOU
A196: 572 | B196: 07020004 | C196: 蓝影 -一切都会过去：淘儿唱片的浮与沉 1BD | D196: 1 | E196: 套 | F196: 蓝光电影 | G196: 87 | I196: All Things Must Pass:The rise and Fall of Tower Records
A197: 573 | B197: 07020005 | C197: 蓝影-猫王:是这样的:特别版 1BD+1DVD | D197: 2 | E197: 套 | F197: 蓝光电影 | G197: 70 | I197: Elvis:That is the Way It is :special Edition
A198: 574 | B198: 07020006 | C198: 蓝影-辛普森一家20周年特辑 2BD | D198: 2 | E198: 套 | F198: 蓝光电影 | G198: 15 | I198: The Simpsons - Season 20(20 Years)
A199: 575 | B199: 07020007 | C199: 蓝影-滚石乐队 完全剥离，豪华限量版亚马逊独家3BD+1SD+1CD | D199: 1 | E199: 套 | F199: 蓝光电影 | G199: 0 | I199: otally Stripped Deluxe Limited Edition Amazon Exclusive
A200: 576 | B200: 07020008 | C200: 蓝影-三傻大闹宝莱坞1BD | D200: 1 | E200: 套 | F200: 蓝光电影 | G200: 72 | I200: 3 idiots
... 120 more rows

Sheet 说明
A1: 1 单元格变化时的事件Worksheet_Change来自动填充公式，对于vlookup函数不是很好用；
B2: 即使下面公式也出现一些莫名其秒的问题，如开始是填充第11列，后改到第12例，但11例还在填充。如把公式都全部删除了，还是可以有效果，奇怪了；
B3: Cells(X, 12).Formula = "=SUMIF($D:$D,D" & X & ",$I:$I)+SUMIF($D:$D,D" & X & ",$J:$J)-SUMIF($D:$D,D" & X & ",$K:$K)"
A4: 2 单元格变化时的事件Worksheet_Change来自动跳过公式也不是很好用；
A5: 3 条件求和特别慢；
B6: 变通的办法是把历史数据的公式复制为值，只保留最近两天的数据的公式；
A7: 4 公式备份
A8: 2016-11-05 | B8: 11Y0072 | D8: 621 | E8: =VLOOKUP($D:$D,基础资料!$A:B,2,0) -> 0703000024 | F8: =VLOOKUP($D:$D,基础资料!$A:C,3,0) -> 蓝卡愤怒的小鸟1BD+1DVD | G8: =VLOOKUP($D:$D,基础资料!$A:D,4,0) -> 1BD+1DVD | H8: =VLOOKUP($D:$D,基础资料!$A:F,5,0) -> 套 | I8: =VLOOKUP($D:$D,基础资料!$A:F,6,0) -> 蓝光卡通 | J8: 500 | M8: =SUMIF($D:$D,D8,$L:$L)+SUMIF($D:$D,D8,$J:$J)-SUMIF($D:$D,D8,$K:$K) -> 500 | N8: =VLOOKUP(D:D,#REF!,10,0) ->  | O8: =M8-N8 -> 
A9: 5 打印页面
B10: 5.1 有排序（透视表的排序不是很灵活）；
B11: 5.2 加了一列（实点）；
B12: 5.3 自然有各种格式化；
A13: 6 VBA过程也可以添加到快速启动栏
B14: Excel选项→自定义→宏→选择一个过程；
A15: 7 自定义工具栏存在的问题
B16: 如果是在A路径下添加的工作，复制到B路径后，发现菜单下关连的过程运行不了，需要重新更新一下工具（也就是运行一下添加菜单的过程）；
A18: 8 数据透视表
B19: 水平并排/垂直并排显示透视字段：选项→选项→布局；
B20: 字段名称如何去除“求和项：”
B21: 在“编辑栏”中删除“求和项”，再在文本的最后输入一个空格；
C22: ActiveSheet.PivotTables("数据透视表1").DataPivotField.PivotItems("求和项:期初数量").Caption = "期初数量 "
A24: 9 自动刷新代码
B25: ThisWorkbook.RefreshAll
A27: 10 刷新透视表后保持原来的和格式
B28: 选项→布局和格式→勾选“更新时保留单元格格式”和去掉勾选“更新时自动调整列宽”；
A30: 11 多重合并数据透视表
B31: 1 在2003版的数据透视表向导中可以添加多重源数据，如果是2007版则选要调出此向导：
B32: 快速访问工具栏→不在功能区中的命令→数据透视表和数据透视图向导→添加→确定
B33: 2 按向导操作即可选择多重数据源；

Sheet 打印结存
A1: 内部编号 | B1: SKU | C1: 存货名称 | D1: 规格 | E1: 单位 | F1: 存货大类 | G1: 期初数量 | H1: 收入数量 | I1: 发出数量 | J1: 结存数量 | K1: 实点
A2: 692 | B2: 0007050305 | C2: 滚石乐队15CD | D2: \ | E2: 套 | F2: CD成品 | H2: 98 | I2: 70 | J2: =G2+H2-I2 -> 28
A3: 22 | B3: 0007050246 | C3: 猫王这是它的方式（旧版)2CD | D3: \ | E3: 套 | F3: CD成品 | H3: 20 | I3: 9 | J3: 11
A4: 689 | B4: 0701000349 | C4: 奥丽芙.基特里奇2BD | D4: \ | E4: 套 | F4: 蓝光电视剧 | H4: 98 | I4: 2 | J4: 96
A5: 533 | B5: 07010006 | C5: 蓝剧-冰血暴第2季 3BD | D5: 3 | E5: 套 | F5: 蓝光电视剧 | G5: 72 | I5: 2 | J5: 70
A6: 529 | B6: 0701000235 | C6: 蓝剧传教士 第一季3BD | D6: 3 | E6: 套 | F6: 蓝光电视剧 | H6: 96 | I6: 6 | J6: 90
A7: 538 | B7: 07010012 | C7: 蓝剧-地球百子第1季 3BD | D7: 3 | E7: 套 | F7: 蓝光电视剧 | G7: 95 | J7: 95
A8: 526 | B8: 07010001 | C8: 蓝剧-地球百子第3季 4BD | D8: 4 | E8: 套 | F8: 蓝光电视剧 | G8: 21 | I8: 2 | J8: 19
A9: 536 | B9: 07010010 | C9: 蓝剧-黑色孤儿第1季 2BD | D9: 2 | E9: 套 | F9: 蓝光电视剧 | G9: 86 | I9: 1 | J9: 85
A10: 537 | B10: 07010011 | C10: 蓝剧-黑色孤儿第2季 2BD | D10: 2 | E10: 套 | F10: 蓝光电视剧 | G10: 85 | I10: 6 | J10: 79
A11: 539 | B11: 07010013 | C11: 蓝剧-黑色孤儿第3季 2BD | D11: 2 | E11: 套 | F11: 蓝光电视剧 | G11: 83 | H11: 4 | I11: 1 | J11: 86
A12: 541 | B12: 07010015 | C12: 蓝剧-黑色孤儿第4季 2BD | D12: 2 | E12: 套 | F12: 蓝光电视剧 | G12: 74 | I12: 11 | J12: 63
A13: 527 | B13: 07010002 | C13: 蓝剧-降世神通：科拉传奇 第2季 神灵2BD | D13: 2 | E13: 套 | F13: 蓝光电视剧 | G13: 99 | J13: 99
A14: 530 | B14: 07010003 | C14: 蓝剧-降世神通：科拉传奇 第3季2BD | D14: 2 | E14: 套 | F14: 蓝光电视剧 | G14: 99 | J14: 99
A15: 531 | B15: 07010004 | C15: 蓝剧-降世神通：科拉传奇 第4季2BD | D15: 2 | E15: 套 | F15: 蓝光电视剧 | G15: 85 | J15: 85
A16: 532 | B16: 07010005 | C16: 蓝剧-我是僵尸第2季 4BD | D16: 4 | E16: 套 | F16: 蓝光电视剧 | G16: 61 | I16: 6 | J16: 55
A17: 534 | B17: 07010008 | C17: 蓝剧-我是僵尸第2季 4BD | D17: 4 | E17: 套 | F17: 蓝光电视剧 | G17: 61 | J17: 61
A18: 694 | B18: 0701000355 | C18: 贝茨旅馆第四季2BD | D18: \ | E18: 本 | F18: 蓝光电影 | H18: 20 | I18: 20 | J18: 0
A19: 688 | B19: 9090003 | C19: 蓝光瑞壳和莫蒂第1季1BD | D19: \ | E19: 套 | F19: 蓝光电影 | H19: 1 | I19: 1 | J19: 0
A20: 604 | B20: 07020036 | C20: 蓝影- 喷火战斗机住在温布利球场 1BD | D20: 1 | E20: 套 | F20: 蓝光电影 | G20: 86 | J20: 86
A21: 572 | B21: 07020004 | C21: 蓝影 -一切都会过去：淘儿唱片的浮与沉 1BD | D21: 1 | E21: 套 | F21: 蓝光电影 | G21: 87 | J21: 87
A22: 582 | B22: 07020014 | C22: 蓝影 -银河护卫队 1BD | D22: 1 | E22: 套 | F22: 蓝光电影 | G22: 77 | J22: 77
A23: 584 | B23: 07020016 | C23: 蓝影-X战警：金刚狼 6BD | D23: 6 | E23: 套 | F23: 蓝光电影 | H23: 10 | I23: 10 | J23: 0
A24: 577 | B24: 07020009 | C24: 蓝影-盖世枭雄1BD | D24: 1 | E24: 套 | F24: 蓝光电影 | G24: 73 | J24: 73
A25: 607 | B25: 07020039 | C25: 蓝影-钢之炼金术师：兄弟会（上） 4BD | D25: 4 | E25: 套 | F25: 蓝光电影 | G25: 88 | I25: 16 | J25: 72
A26: 608 | B26: 07020040 | C26: 蓝影-钢之炼金术师：兄弟会（下） 4BD | D26: 4 | E26: 套 | F26: 蓝光电影 | G26: 86 | I26: 9 | J26: 77
A27: 606 | B27: 07020038 | C27: 蓝影-钢之炼金术师完整版 6BD | D27: 6 | E27: 套 | F27: 蓝光电影 | G27: 43 | J27: 43
A28: 578 | B28: 07020010 | C28: 蓝影-功夫熊猫21BD+2DVD | D28: 3 | E28: 套 | F28: 蓝光电影 | G28: 89 | I28: 8 | J28: 81
A29: 579 | B29: 07020011 | C29: 蓝影-功夫熊猫3 1BD+1DVD | D29: 2 | E29: 套 | F29: 蓝光电影 | G29: 75 | I29: 8 | J29: 67
A30: 609 | B30: 07020041 | C30: 蓝影-海贼王剧场版10：强者天下 1BD+1DVD | D30: 2 | E30: 套 | F30: 蓝光电影 | G30: 89 | J30: 89
A31: 598 | B31: 07020030 | C31: 蓝影-金钱怪兽1BD | D31: 1 | E31: 套 | F31: 蓝光电影 | G31: 90 | J31: 90
A32: 614 | B32: 07020046 | C32: 蓝影-卡罗尔1BD | D32: 1 | E32: 套 | F32: 蓝光电影 | G32: 84 | J32: 84
A33: 610 | B33: 07020042 | C33: 蓝影-控方证人 1BD | D33: 1 | E33: 套 | F33: 蓝光电影 | G33: 87 | J33: 87
A34: 611 | B34: 07020043 | C34: 蓝影-狼厅 3BD | D34: 3 | E34: 套 | F34: 蓝光电影 | G34: 75 | I34: 1 | J34: =G34+H34-I34 -> 74
A35: 613 | B35: 07020045 | C35: 蓝影-李小龙首播集 4BD | D35: 4 | E35: 套 | F35: 蓝光电影 | G35: 65 | J35: 65
A36: 605 | B36: 07020037 | C36: 蓝影-鲁邦三世：卡里奥斯特罗城 1BD | D36: 1 | E36: 套 | F36: 蓝光电影 | G36: 85 | J36: 85
A37: 591 | B37: 07020023 | C37: 蓝影-绿野仙踪1BD | D37: 1 | E37: 套 | F37: 蓝光电影 | G37: 82 | J37: 82
A38: 573 | B38: 07020005 | C38: 蓝影-猫王:是这样的:特别版 1BD+1DVD | D38: 2 | E38: 套 | F38: 蓝光电影 | G38: 85 | I38: 16 | J38: 69
A39: 588 | B39: 07020020 | C39: 蓝影-猫王-埃尔维斯之旅 1BD | D39: 1 | E39: 套 | F39: 蓝光电影 | G39: 97 | I39: 1 | J39: 96
A40: 590 | B40: 07020022 | C40: 蓝影-美国不为人知的历史 1BD | D40: 1 | E40: 套 | F40: 蓝光电影 | G40: 89 | I40: 1 | J40: 88
A41: 596 | B41: 07020028 | C41: 蓝影-模仿游戏1BD+1DVD | D41: 2 | E41: 套 | F41: 蓝光电影 | G41: 99 | J41: 99
A42: 594 | B42: 07020026 | C42: 蓝影-耐撕侦探1BD+1DVD | D42: 2 | E42: 套 | F42: 蓝光电影 | H42: 98 | I42: 3 | J42: 95
A43: 568 | B43: 0702000032 | C43: 蓝影年轻气盛1BD | D43: 1 | E43: 套 | F43: 蓝光电影 | H43: 99 | I43: 4 | J43: 95
A44: 563 | B44: 0702000027 | C44: 蓝影攀登梅鲁峰1BD | D44: 1 | E44: 套 | F44: 蓝光电影 | H44: 2 | I44: 2 | J44: 0
A45: 576 | B45: 07020008 | C45: 蓝影-三傻大闹宝莱坞1BD | D45: 1 | E45: 套 | F45: 蓝光电影 | G45: 72 | J45: 72
A46: 599 | B46: 07020031 | C46: 蓝影-杀死一只知更鸟1BD | D46: 1 | E46: 套 | F46: 蓝光电影 | G46: 79 | I46: 1 | J46: 78
A47: 562 | B47: 0702000026 | C47: 蓝影我们都为比尔着盛装1BD | D47: 1 | E47: 套 | F47: 蓝光电影 | H47: 98 | J47: 98
A48: 615 | B48: 07020047 | C48: 蓝影-无人生还 2BD | D48: \ | E48: 套 | F48: 蓝光电影 | G48: 84 | J48: 84
A49: 574 | B49: 07020006 | C49: 蓝影-辛普森一家20周年特辑 2BD | D49: 2 | E49: 套 | F49: 蓝光电影 | G49: 15 | J49: 15
A50: 585 | B50: 07020017 | C50: 蓝影-刑事 1BD+1DVD | D50: 2 | E50: 套 | F50: 蓝光电影 | G50: 4 | J50: 4
A51: 571 | B51: 07020003 | C51: 蓝影-遇见你之前1BD+1DVD | D51: 2 | E51: 套 | F51: 蓝光电影 | G51: 73 | J51: 73
A52: 583 | B52: 07020015 | C52: 蓝影-元气囝仔 2BD+2DVD | D52: 4 | E52: 套 | F52: 蓝光电影 | G52: 98 | I52: 4 | J52: 94
A53: 693 | B53: 0702000350 | C53: 星际迷航3：超越星辰 | D53: \ | E53: 套 | F53: 蓝光电影 | H53: 99 | I53: 82 | J53: 17
A54: 629 | B54: 07030005 | C54: 蓝卡-穿越时空的少女 1BD+2DVD | D54: 3 | E54: 套 | F54: 蓝光卡通 | G54: 77 | J54: 77
A55: 630 | B55: 07030006 | C55: 蓝卡-非凡的世界 1BD+1DVD | D55: 2 | E55: 套 | F55: 蓝光卡通 | G55: 86 | J55: 86
A56: 621 | B56: 0703000024 | C56: 蓝卡愤怒的小鸟1BD+1DVD | D56: 1BD+1DVD | E56: 套 | F56: 蓝光卡通 | G56: 22 | H56: 732 | I56: 269 | J56: 485
A57: 628 | B57: 07030004 | C57: 蓝卡-怪物之子 1BD+1DVD | D57: 2 | E57: 套 | F57: 蓝光卡通 | G57: 98 | J57: 98
A58: 627 | B58: 07030003 | C58: 蓝卡-海洋之歌1BD+1DVD | D58: 2 | E58: 套 | F58: 蓝光卡通 | G58: 85 | J58: 85
A59: 625 | B59: 07030002 | C59: 蓝卡-辉夜姬物语 1BD+2DVD | D59: 3 | E59: 套 | F59: 蓝光卡通 | G59: 84 | J59: 84
A60: 635 | B60: 07030011 | C60: 蓝卡-凉宫春日的消失 1BD+2DVD | D60: \ | E60: 套 | F60: 蓝光卡通 | H60: 99 | I60: 4 | J60: 95
A61: 632 | B61: 07030008 | C61: 蓝卡-夏日大作战 1BD+2DVD | D61: 3 | E61: 套 | F61: 蓝光卡通 | G61: 88 | J61: 88
A62: 633 | B62: 07030009 | C62: 蓝卡-星际牛仔 4BD | D62: 4 | E62: 套 | F62: 蓝光卡通 | G62: 19 | I62: 10 | J62: 9
A63: 634 | B63: 07030010 | C63: 蓝卡-言叶之庭 1BD | D63: 1 | E63: 套 | F63: 蓝光卡通 | G63: 78 | J63: 78
A64: 624 | B64: 07030001 | C64: 蓝卡-虞美人盛开的山坡 1BD+1DVD | D64: 2 | E64: 套 | F64: 蓝光卡通 | G64: 86 | J64: 86
A65: 690 | B65: 0703000344 | C65: 瑞奇与叮当 | D65: \ | E65: 套 | F65: 蓝光卡通 | H65: 98 | I65: 2 | J65: 96
A66: 676 | B66: 07040034 | C66: S-程序员考试 | D66: \ | E66: 本 | F66: 书本 | G66: 1422 | I66: 10 | J66: =G66+H66-I66 -> 1412
A67: 648 | B67: 07040006 | C67: S-大众传媒法 | D67: \ | E67: 本 | F67: 书本 | G67: 94 | I67: 75 | J67: 19
A68: 639 | B68: 0704000004 | C68: S-电器查询 | D68: \ | E68: 本 | F68: 书本 | G68: 258 | H68: 50 | I68: 85 | J68: 223
A69: 673 | B69: 07040031 | C69: S-电子和计算机考试学习指南 | D69: \ | E69: 本 | F69: 书本 | G69: 719 | J69: 719
A70: 643 | B70: 07040002 | C70: S-定量技术分析 | D70: \ | E70: 本 | F70: 书本 | G70: 570 | J70: 570
A71: 672 | B71: 07040030 | C71: S-法律写作和分析 | D71: \ | E71: 本 | F71: 书本 | G71: 0 | H71: 1012 | I71: 300 | J71: 712
A72: 671 | B72: 07040029 | C72: S-法律研究 | D72: \ | E72: 本 | F72: 书本 | G72: 807 | J72: 807
A73: 645 | B73: 07040003 | C73: S-公共演讲的艺术 | D73: \ | E73: 本 | F73: 书本 | G73: 1461 | I73: 58 | J73: 1403
A74: 652 | B74: 07040010 | C74: S-管理技能养成 | D74: \ | E74: 本 | F74: 书本 | G74: 424 | I74: 132 | J74: 292
A75: 649 | B75: 07040007 | C75: S-行为研究方法 | D75: \ | E75: 本 | F75: 书本 | G75: 4620 | I75: 43 | J75: 4577
A76: 651 | B76: 07040009 | C76: S-合作、协商和团队合作 | D76: \ | E76: 本 | F76: 书本 | G76: 314 | I76: 3 | J76: 311
A77: 644 | B77: 0704000293 | C77: S-环境经济学 | D77: \ | E77: 本 | F77: 书本 | G77: 555 | I77: 136 | J77: 419
A78: 675 | B78: 07040033 | C78: S-机械实践 | D78: \ | E78: 本 | F78: 书本 | G78: 513 | I78: 50 | J78: 463
A79: 642 | B79: 07040001 | C79: S-恐怖故事（3本一套） | D79: \ | E79: 套 | F79: 书本 | G79: 91 | I79: 56 | J79: 35
A80: 667 | B80: 07040025 | C80: S-临床评估工作簿 | D80: \ | E80: 本 | F80: 书本 | G80: 2358 | I80: 20 | J80: 2338
A81: 656 | B81: 07040014 | C81: S-伦理护理 | D81: \ | E81: 本 | F81: 书本 | G81: 966 | I81: 10 | J81: 956
A82: 664 | B82: 07040022 | C82: S-麦克的学习技巧 | D82: \ | E82: 本 | F82: 书本 | G82: 594 | J82: 594
A83: 646 | B83: 07040004 | C83: S-媒体伦理 | D83: \ | E83: 本 | F83: 书本 | G83: 619 | J83: 619
A84: 661 | B84: 07040019 | C84: S-美国药疗保健 | D84: \ | E84: 本 | F84: 书本 | G84: 1029 | I84: 54 | J84: 975
A85: 663 | B85: 07040021 | C85: S-面试技巧 | D85: \ | E85: 本 | F85: 书本 | G85: 615 | I85: 20 | J85: 595
A86: 674 | B86: 07040032 | C86: S-民事诉讼 | D86: \ | E86: 本 | F86: 书本 | G86: 710 | I86: 3 | J86: 707
A87: 660 | B87: 07040018 | C87: S-明了和优雅风格的教训 | D87: \ | E87: 本 | F87: 书本 | G87: 454 | J87: 454
A88: 636 | B88: 0704000001 | C88: S-内识心理学 | D88: \ | E88: 本 | F88: 书本 | G88: 979 | I88: 323 | J88: 656
A89: 638 | B89: 0704000003 | C89: S-人格理论 | D89: \ | E89: 本 | F89: 书本 | G89: 586 | I89: 63 | J89: 523
A90: 640 | B90: 0704000035 | C90: S-商业：一个不断变化的世界 | D90: \ | E90: 本 | F90: 书本 | G90: 527 | I90: 53 | J90: 474
A91: 670 | B91: 07040028 | C91: S-上诉辩护 | D91: \ | E91: 本 | F91: 书本 | G91: 703 | J91: 703
A92: 666 | B92: 07040024 | C92: S-社会精神 | D92: \ | E92: 本 | F92: 书本 | G92: 606 | J92: 606
A93: 654 | B93: 07040012 | C93: S-实践研究 | D93: \ | E93: 本 | F93: 书本 | G93: 2002 | I93: 36 | J93: 1966
A94: 659 | B94: 07040017 | C94: S-实习手册 | D94: \ | E94: 本 | F94: 书本 | G94: 934 | J94: 934
A95: 653 | B95: 07040011 | C95: S-实现改变 | D95: \ | E95: 本 | F95: 书本 | G95: 985 | J95: 985
A96: 662 | B96: 07040020 | C96: S-硕士考试指南 | D96: \ | E96: 本 | F96: 书本 | G96: 2144 | I96: 40 | J96: 2104
A97: 658 | B97: 07040016 | C97: S-四十项心理学的研究 821 | D97: \ | E97: 本 | F97: 书本 | G97: 251 | I97: 250 | J97: 1
A98: 650 | B98: 07040008 | C98: S-谈判精要 | D98: \ | E98: 本 | F98: 书本 | G98: 678 | I98: 140 | J98: =G98+H98-I98 -> 538
A99: 668 | B99: 07040026 | C99: S-团体咨询 | D99: \ | E99: 本 | F99: 书本 | G99: 1522 | H99: 1 | I99: 50 | J99: 1473
A100: 641 | B100: 0704000036 | C100: S-我们的人民 | D100: \ | E100: 本 | F100: 书本 | G100: 2745 | I100: 60 | J100: 2685
A101: 637 | B101: 0704000002 | C101: S-项目评价 | D101: \ | E101: 本 | F101: 书本 | G101: 45 | H101: 2021 | I101: 189 | J101: 1877
A102: 677 | B102: 07040027-1 | C102: S-小屁孩日记（1/9本一套） | D102: \ | E102: 本 | F102: 书本 | G102: 8 | J102: 8
A103: 678 | B103: 07040027-2 | C103: S-小屁孩日记（2/9本一套） | D103: \ | E103: 本 | F103: 书本 | G103: 1 | J103: 1
A104: 679 | B104: 07040027-3 | C104: S-小屁孩日记（3/9本一套） | D104: \ | E104: 本 | F104: 书本 | G104: 11 | J104: 11
A105: 680 | B105: 07040027-4 | C105: S-小屁孩日记（4/9本一套） | D105: \ | E105: 本 | F105: 书本 | G105: 15 | J105: 15
A106: 681 | B106: 07040027-5 | C106: S-小屁孩日记（5/9本一套） | D106: \ | E106: 本 | F106: 书本 | G106: 30 | J106: 30
A107: 682 | B107: 07040027-6 | C107: S-小屁孩日记（6/9本一套） | D107: \ | E107: 本 | F107: 书本 | G107: 570 | J107: 570
A108: 683 | B108: 07040027-7 | C108: S-小屁孩日记（7/9本一套） | D108: \ | E108: 本 | F108: 书本 | G108: 517 | J108: 517
A109: 684 | B109: 07040027-8 | C109: S-小屁孩日记（8/9本一套） | D109: \ | E109: 本 | F109: 书本 | G109: 454 | J109: 454
A110: 685 | B110: 07040027-9 | C110: S-小屁孩日记（9/9本一套） | D110: \ | E110: 本 | F110: 书本 | G110: 508 | J110: 508
A111: 669 | B111: 07040027 | C111: S-小屁孩日记（9本一套） | D111: \ | E111: 套 | F111: 书本 | G111: 963 | I111: 5 | J111: 958
A112: 655 | B112: 07040013 | C112: S-校园法律 | D112: \ | E112: 本 | F112: 书本 | G112: 768 | I112: 70 | J112: 698
A113: 657 | B113: 07040015 | C113: S-心理学 | D113: \ | E113: 本 | F113: 书本 | G113: 575 | J113: 575
A114: 665 | B114: 07040023 | C114: S-医生的护理实践 | D114: \ | E114: 本 | F114: 书本 | G114: 1327 | J114: 1327
A115: 647 | B115: 07040005 | C115: S-有效的小组讨论 | D115: \ | E115: 本 | F115: 书本 | G115: 382 | J115: 382
A116: 696 | B116: 0704000368 | C116: 国际业务：全球化的挑战 | D116: \ | E116: 本 | F116: 书本 | H116: 72 | I116: 40 | J116: 32
A117: 695 | B117: 0704000366 | C117: 课程指南 | D117: \ | E117: 本 | F117: 书本 | H117: 600 | I117: 40 | J117: 560
A118: 2 | B118: 0001010274 | C118: 蓝光-八恶人1BD+1DVD | D118: 2 | E118: 套 | F118: 调用成品 | H118: 22 | J118: 22
A119: 1 | B119: 0001010273 | C119: 蓝光-美女与野兽第2季贝儿的心愿1DVD+1BD | D119: 2 | E119: 套 | F119: 调用成品 | H119: 12 | J119: 12
